Workbook

Sheet RFPR cover
A1: Regulatory Financial Performance Report
A2: ='RFPR cover'!C5 -> Cadent-EOE
A3: ='RFPR cover'!C7 -> 2020
B5: Licensee | C5: Cadent-EOE | G5: Input cells
B6: Sector | C6: =INDEX(Data!$A$73:$A$100,MATCH($C$5,Data!$B$73:$B$100,0),0)&"1" -> GD1 | G6: Totals cells (of formula within worksheet)
B7: Reporting Year: (enter 2014 for 2013-14) | C7: 2020 | G7: Referencing to other worksheets
B8: Version (Number) | G8: Referencing to other workbooks
B9: Submitted Date: | G9: Check cells
B10: Cost of Equity | C10: =SUMIF(Data!$B$72:$B$100,C5,Data!$C$72:$C$100) -> 0.067 | G10: No Input
B11: Sharing Factor | C11: =SUMIF(Data!$B$72:$B$100,C5,Data!$D$72:$D$100) -> 0.6304 | G11: Descriptions and pack data
B12: Notional Gearing | C12: =SUMIF(Data!$B$72:$B$100,C5,Data!$E$72:$E$100) -> 0.65
B13: RIIO-1 start date | C13: =INDEX(Data!$G$73:$G$100,MATCH($C$5,Data!$B$73:$B$100,0),0) -> 2014 | F13: Materiality £m
B14: Price basis | C14: =INDEX(Data!$H$73:$H$100,MATCH($C$5,Data!$B$73:$B$100,0),0) -> £m 09/10 | F14: 0.1

Sheet Data
A1: Network Operator Data
A2: ='RFPR cover'!C5 -> Cadent-EOE
A3: ='RFPR cover'!C7 -> 2020
B6: 2018 | C6: 2017-18
B7: 2019 | C7: 2018-19
B8: 2020 | C8: 2019-20
B9: 2021 | C9: 2020-21
B10: 2022 | C10: 2021-22
B11: 2023 | C11: 2022-23
B13: RPI Index | C13: Reporting year | D13: Actual / Forecast index | E13: Financial Year Average RPI (RPIt) | F13: Year end RPI | G13: Corp. Tax
B14: 2009-10 | C14: 2010 | D14: =IF(VALUE(C14)<='RFPR cover'!$C$7,"Actual","Forecast") -> Actual | E14: 215.767 | F14: 221.75 | G14: 0.28
B15: 2010-11 | C15: 2011 | D15: =IF(VALUE(C15)<='RFPR cover'!$C$7,"Actual","Forecast") -> Actual | E15: 226.475 | F15: 233.45 | G15: 0.28
B16: 2011-12 | C16: 2012 | D16: =IF(VALUE(C16)<='RFPR cover'!$C$7,"Actual","Forecast") -> Actual | E16: 237.342 | F16: 241.65 | G16: 0.26
B17: 2012-13 | C17: 2013 | D17: =IF(VALUE(C17)<='RFPR cover'!$C$7,"Actual","Forecast") -> Actual | E17: 244.675 | F17: 249.1 | G17: 0.24
B18: 2013-14 | C18: 2014 | D18: =IF(VALUE(C18)<='RFPR cover'!$C$7,"Actual","Forecast") -> Actual | E18: 251.733 | F18: 255.25 | G18: 0.23
B19: 2014-15 | C19: 2015 | D19: =IF(VALUE(C19)<='RFPR cover'!$C$7,"Actual","Forecast") -> Actual | E19: 256.667 | F19: 257.55 | G19: 0.21
B20: 2015-16 | C20: 2016 | D20: =IF(VALUE(C20)<='RFPR cover'!$C$7,"Actual","Forecast") -> Actual | E20: 259.433 | F20: 261.25 | G20: 0.2
B21: 2016-17 | C21: 2017 | D21: =IF(VALUE(C21)<='RFPR cover'!$C$7,"Actual","Forecast") -> Actual | E21: 264.992 | F21: 269.95 | G21: 0.2
B22: 2017-18 | C22: 2018 | D22: =IF(VALUE(C22)<='RFPR cover'!$C$7,"Actual","Forecast") -> Actual | E22: 274.908 | F22: 279 | G22: 0.19
B23: 2018-19 | C23: 2019 | D23: =IF(VALUE(C23)<='RFPR cover'!$C$7,"Actual","Forecast") -> Actual | E23: 283.308 | F23: 286.65 | G23: 0.19
B24: 2019-20 | C24: 2020 | D24: =IF(VALUE(C24)<='RFPR cover'!$C$7,"Actual","Forecast") -> Actual | E24: 290.642 | F24: 292.6 | G24: 0.19
B25: 2020-21 | C25: 2021 | D25: =IF(VALUE(C25)<='RFPR cover'!$C$7,"Actual","Forecast") -> Forecast | E25: =E24*(1+INDEX($D$43:$J$43,0,MATCH($C25,$D$42:$J$42,0))) -> 297.326766 | F25: 299.3298 | G25: 0.19
B26: 2021-22 | C26: 2022 | D26: =IF(VALUE(C26)<='RFPR cover'!$C$7,"Actual","Forecast") -> Forecast | E26: 303.6449598 | F26: 305.6905582 | G26: 0.19
B27: 2022-23 | C27: 2023 | D27: =IF(VALUE(C27)<='RFPR cover'!$C$7,"Actual","Forecast") -> Forecast | E27: 311.4638175 | F27: 313.5620901 | G27: 0.19
B28: 2023-24 | C28: 2024 | D28: =IF(VALUE(C28)<='RFPR cover'!$C$7,"Actual","Forecast") -> Forecast | G28: 0.19
B29: 2024-25 | C29: 2025 | D29: =IF(VALUE(C29)<='RFPR cover'!$C$7,"Actual","Forecast") -> Forecast | G29: 0.19
B30: 2025-26 | C30: 2026 | D30: =IF(VALUE(C30)<='RFPR cover'!$C$7,"Actual","Forecast") -> Forecast | G30: 0.19
C32: =IF(C33<='RFPR cover'!$C$7,"Actuals","Forecast") -> Actuals | D32: =IF(D33<='RFPR cover'!$C$7,"Actuals","Forecast") -> Actuals | E32: =IF(E33<='RFPR cover'!$C$7,"Actuals","Forecast") -> Actuals | F32: =IF(F33<='RFPR cover'!$C$7,"Actuals","Forecast") -> Actuals | G32: =IF(G33<='RFPR cover'!$C$7,"Actuals","Forecast") -> Actuals | H32: =IF(H33<='RFPR cover'!$C$7,"Actuals","Forecast") -> Actuals | I32: =IF(I33<='RFPR cover'!$C$7,"Actuals","Forecast") -> Actuals | J32: =IF(J33<='RFPR cover'!$C$7,"Actuals","Forecast") -> Forecast
C33: ='RFPR cover'!$C$13 -> 2014 | D33: =C33+1 -> 2015 | E33: 2016 | F33: 2017 | G33: 2018 | H33: 2019 | I33: 2020 | J33: 2021
B34: Financial Year Average RPI (RPIt) | C34: =INDEX(Data!$E$14:$E$30,MATCH(C$33,Data!$C$14:$C$30,0),0)/IF('RFPR cover'!$C$6="ED1",Data!$E$17,Data!$E$14) -> 1.166689067 | D34: =INDEX(Data!$E$14:$E$30,MATCH(D$33,Data!$C$14:$C$30,0),0)/IF('RFPR cover'!$C$6="ED1",Data!$E$17,Data!$E$14) -> 1.189556327 | E34: =INDEX(Data!$E$14:$E$30,MATCH(E$33,Data!$C$14:$C$30,0),0)/IF('RFPR cover'!$C$6="ED1",Data!$E$17,Data!$E$14) -> 1.202375711 | F34: =INDEX(Data!$E$14:$E$30,MATCH(F$33,Data!$C$14:$C$30,0),0)/IF('RFPR cover'!$C$6="ED1",Data!$E$17,Data!$E$14) -> 1.228139614 | G34: =INDEX(Data!$E$14:$E$30,MATCH(G$33,Data!$C$14:$C$30,0),0)/IF('RFPR cover'!$C$6="ED1",Data!$E$17,Data!$E$14) -> 1.274096595 | H34: =INDEX(Data!$E$14:$E$30,MATCH(H$33,Data!$C$14:$C$30,0),0)/IF('RFPR cover'!$C$6="ED1",Data!$E$17,Data!$E$14) -> 1.313027479 | I34: =INDEX(Data!$E$14:$E$30,MATCH(I$33,Data!$C$14:$C$30,0),0)/IF('RFPR cover'!$C$6="ED1",Data!$E$17,Data!$E$14) -> 1.347017848 | J34: =INDEX(Data!$E$14:$E$30,MATCH(J$33,Data!$C$14:$C$30,0),0)/IF('RFPR cover'!$C$6="ED1",Data!$E$17,Data!$E$14) -> 1.377999258
B35: Year end RPI | C35: =INDEX(Data!$F$14:$F$30,MATCH(C$33,Data!$C$14:$C$30,0),0)/IF('RFPR cover'!$C$6="ED1",Data!$E$17,Data!$E$14) -> 1.182989058 | D35: =INDEX(Data!$F$14:$F$30,MATCH(D$33,Data!$C$14:$C$30,0),0)/IF('RFPR cover'!$C$6="ED1",Data!$E$17,Data!$E$14) -> 1.193648704 | E35: =INDEX(Data!$F$14:$F$30,MATCH(E$33,Data!$C$14:$C$30,0),0)/IF('RFPR cover'!$C$6="ED1",Data!$E$17,Data!$E$14) -> 1.210796832 | F35: =INDEX(Data!$F$14:$F$30,MATCH(F$33,Data!$C$14:$C$30,0),0)/IF('RFPR cover'!$C$6="ED1",Data!$E$17,Data!$E$14) -> 1.251118104 | G35: =INDEX(Data!$F$14:$F$30,MATCH(G$33,Data!$C$14:$C$30,0),0)/IF('RFPR cover'!$C$6="ED1",Data!$E$17,Data!$E$14) -> 1.293061497 | H35: =INDEX(Data!$F$14:$F$30,MATCH(H$33,Data!$C$14:$C$30,0),0)/IF('RFPR cover'!$C$6="ED1",Data!$E$17,Data!$E$14) -> 1.328516409 | I35: =INDEX(Data!$F$14:$F$30,MATCH(I$33,Data!$C$14:$C$30,0),0)/IF('RFPR cover'!$C$6="ED1",Data!$E$17,Data!$E$14) -> 1.356092452 | J35: =INDEX(Data!$F$14:$F$30,MATCH(J$33,Data!$C$14:$C$30,0),0)/IF('RFPR cover'!$C$6="ED1",Data!$E$17,Data!$E$14) -> 1.387282578
B36: 1 year change in Fin Year Ave RPI | C36: =INDEX(Data!$E$14:$E$30,MATCH(C$33,Data!$C$14:$C$30,0))/INDEX(Data!$E$14:$E$30,MATCH(C$33-1,Data!$C$14:$C$30,0)) -> 1.028846429 | D36: =INDEX(Data!$E$14:$E$30,MATCH(D$33,Data!$C$14:$C$30,0))/INDEX(Data!$E$14:$E$30,MATCH(D$33-1,Data!$C$14:$C$30,0)) -> 1.019600132 | E36: =INDEX(Data!$E$14:$E$30,MATCH(E$33,Data!$C$14:$C$30,0))/INDEX(Data!$E$14:$E$30,MATCH(E$33-1,Data!$C$14:$C$30,0)) -> 1.010776609 | F36: =INDEX(Data!$E$14:$E$30,MATCH(F$33,Data!$C$14:$C$30,0))/INDEX(Data!$E$14:$E$30,MATCH(F$33-1,Data!$C$14:$C$30,0)) -> 1.021427498 | G36: =INDEX(Data!$E$14:$E$30,MATCH(G$33,Data!$C$14:$C$30,0))/INDEX(Data!$E$14:$E$30,MATCH(G$33-1,Data!$C$14:$C$30,0)) -> 1.037419998 | H36: =INDEX(Data!$E$14:$E$30,MATCH(H$33,Data!$C$14:$C$30,0))/INDEX(Data!$E$14:$E$30,MATCH(H$33-1,Data!$C$14:$C$30,0)) -> 1.030555677 | I36: =INDEX(Data!$E$14:$E$30,MATCH(I$33,Data!$C$14:$C$30,0))/INDEX(Data!$E$14:$E$30,MATCH(I$33-1,Data!$C$14:$C$30,0)) -> 1.02588702 | J36: =INDEX(Data!$E$14:$E$30,MATCH(J$33,Data!$C$14:$C$30,0))/INDEX(Data!$E$14:$E$30,MATCH(J$33-1,Data!$C$14:$C$30,0)) -> 1.023
B37: HMT Forecasts for UK Economy - M3 New Forecasts RPI
C38: Calendar Year | D38: 2017 | E38: =D38+1 -> 2018 | F38: 2019 | G38: 2020 | H38: 2021 | I38: 2022 | J38: 2023 | K38: Source
B39: M3 New Forecasts RPI | F39: 0.026 | G39: 0.024 | H39: 0.02 | I39: 0.025 | J39: 0.028 | K39: December 2019 Publication
B41: Forecast growth rate
C42: Reporting Year | D42: 2017 | E42: =D42+1 -> 2018 | F42: 2019 | G42: 2020 | H42: 2021 | I42: 2022 | J42: 2023
B43: Future inflation assumption | G43: =(F39*0.75)+(G39*0.25) -> 0.0255 | H43: =(G39*0.75)+(H39*0.25) -> 0.023 | I43: =(H39*0.75)+(I39*0.25) -> 0.02125 | J43: =(I39*0.75)+(J39*0.25) -> 0.02575
B45: ="Selected Capitalisation rates for "&'RFPR cover'!C5 -> Selected Capitalisation rates for Cadent-EOE
C47: RIIO1
B48: =INDEX($G$54:$G$57,MATCH(LEFT('RFPR cover'!$C$6,2),Data!$E$54:$E$57,0),0) -> Totex excluding repex | C48: =INDEX($F$73:$F$100,MATCH('RFPR cover'!$C$5,Data!$B$73:$B$100,0),0) -> 0.2663450186
C50: 2014 | D50: =C50+1 -> 2015 | E50: 2016 | F50: 2017 | G50: 2018 | H50: 2019 | I50: 2020 | J50: 2021
B51: =INDEX($J$54:$J$57,MATCH(LEFT('RFPR cover'!$C$6,2),Data!$E$54:$E$57,0),0) -> Repex | C51: =IFERROR(INDEX(C$106:C$115,MATCH('RFPR cover'!$C$5,Data!$B$106:$B$115,0),0),0) -> 0.5 | D51: =IFERROR(INDEX(D$106:D$115,MATCH('RFPR cover'!$C$5,Data!$B$106:$B$115,0),0),0) -> 0.5714285714 | E51: =IFERROR(INDEX(E$106:E$115,MATCH('RFPR cover'!$C$5,Data!$B$106:$B$115,0),0),0) -> 0.6428571429 | F51: =IFERROR(INDEX(F$106:F$115,MATCH('RFPR cover'!$C$5,Data!$B$106:$B$115,0),0),0) -> 0.7142857143 | G51: =IFERROR(INDEX(G$106:G$115,MATCH('RFPR cover'!$C$5,Data!$B$106:$B$115,0),0),0) -> 0.7857142857 | H51: =IFERROR(INDEX(H$106:H$115,MATCH('RFPR cover'!$C$5,Data!$B$106:$B$115,0),0),0) -> 0.8571428571 | I51: =IFERROR(INDEX(I$106:I$115,MATCH('RFPR cover'!$C$5,Data!$B$106:$B$115,0),0),0) -> 0.9285714286 | J51: =IFERROR(INDEX(J$106:J$115,MATCH('RFPR cover'!$C$5,Data!$B$106:$B$115,0),0),0) -> 1
E54: ED | F54: £m 12/13 | G54: Totex | J54: n/a
E55: ET | F55: £m 09/10 | G55: Totex | J55: n/a
E56: GD | F56: £m 09/10 | G56: Totex excluding repex | J56: Repex
E57: GT | F57: £m 09/10 | G57: Totex (non-'uncertainty rate') | J57: Uncertainty rate
B61: Allowed cost of debt %
C62: 2014 | D62: =C62+1 -> 2015 | E62: 2016 | F62: 2017 | G62: 2018 | H62: 2019 | I62: 2020 | J62: 2021 | K62: 2022 | L62: 2023
B63: WPD | E63: 0.0255 | F63: 0.0238 | G63: 0.0222 | H63: 0.0191 | I63: 0.0158 | J63: 0.0109 | K63: 0.0077 | L63: 0.0046
B64: ED - excluding WPD | E64: 0.0255 | F64: 0.0242 | G64: 0.0229 | H64: 0.0209 | I64: 0.0194 | J64: 0.0178 | K64: 0.0163 | L64: 0.0148
B65: SHET | C65: 0.0292 | D65: 0.025 | E65: 0.0215 | F65: 0.0179 | G65: 0.0151 | H65: 0.0116 | I65: 0.0102 | J65: 0.0083
B66: ET - excluding SHET | C66: 0.0292 | D66: 0.0272 | E66: 0.0255 | F66: 0.0238 | G66: 0.0222 | H66: 0.0191 | I66: 0.0158 | J66: 0.0109
B67: GD | C67: 0.0292 | D67: 0.0272 | E67: 0.0255 | F67: 0.0238 | G67: 0.0222 | H67: 0.0191 | I67: 0.0158 | J67: 0.0109
B68: GT | C68: 0.0292 | D68: 0.0272 | E68: 0.0255 | F68: 0.0238 | G68: 0.0222 | H68: 0.0191 | I68: 0.0158 | J68: 0.0109
C71: Allowed Cost of Equity | D71: TIM Incentive Strength | E71: Gearing | F71: Main Cap. Rate | G71: RIIO1 start date | H71: Price Basis | I71: Fast Tracked | J71: IQI pre or post tax | K71: Allowed cost of debt
A72: Sector | B72: Default | K72: 2014 | L72: =K72+1 -> 2015 | M72: 2016 | N72: 2017 | O72: 2018 | P72: 2019 | Q72: 2020 | R72: 2021 | S72: 2022 | T72: 2023
A73: ED | B73: ENWL | C73: 0.06 | D73: 0.5811 | E73: 0.65 | F73: 0.68 | G73: 2016 | H73: =VLOOKUP($A73,$E$54:$F$57,2,FALSE) -> £m 12/13 | I73: No | J73: Post | M73: =E$64 -> 0.0255 | N73: 0.0242 | O73: 0.0229 | P73: 0.0209 | Q73: 0.0194 | R73: 0.0178 | S73: 0.0163 | T73: 0.0148
A74: ED | B74: NPgN | C74: 0.06 | D74: 0.5584370346 | E74: 0.65 | F74: 0.7 | G74: 2016 | H74: £m 12/13 | I74: No | J74: Post | M74: 0.0255 | N74: 0.0242 | O74: 0.0229 | P74: 0.0209 | Q74: 0.0194 | R74: 0.0178 | S74: 0.0163 | T74: 0.0148
A75: ED | B75: NPgY | C75: 0.06 | D75: 0.5584370346 | E75: 0.65 | F75: 0.72 | G75: 2016 | H75: £m 12/13 | I75: No | J75: Post | M75: 0.0255 | N75: 0.0242 | O75: 0.0229 | P75: 0.0209 | Q75: 0.0194 | R75: 0.0178 | S75: 0.0163 | T75: 0.0148
A76: ED | B76: UKPN-EPN | C76: 0.06 | D76: 0.5328 | E76: 0.65 | F76: 0.68 | G76: 2016 | H76: £m 12/13 | I76: No | J76: Post | M76: 0.0255 | N76: 0.0242 | O76: 0.0229 | P76: 0.0209 | Q76: 0.0194 | R76: 0.0178 | S76: 0.0163 | T76: 0.0148
A77: ED | B77: UKPN-LPN | C77: 0.06 | D77: 0.5328 | E77: 0.65 | F77: 0.68 | G77: 2016 | H77: £m 12/13 | I77: No | J77: Post | M77: 0.0255 | N77: 0.0242 | O77: 0.0229 | P77: 0.0209 | Q77: 0.0194 | R77: 0.0178 | S77: 0.0163 | T77: 0.0148
A78: ED | B78: UKPN-SPN | C78: 0.06 | D78: 0.5328 | E78: 0.65 | F78: 0.68 | G78: 2016 | H78: £m 12/13 | I78: No | J78: Post | M78: 0.0255 | N78: 0.0242 | O78: 0.0229 | P78: 0.0209 | Q78: 0.0194 | R78: 0.0178 | S78: 0.0163 | T78: 0.0148
A79: ED | B79: SPD | C79: 0.06 | D79: 0.535 | E79: 0.65 | F79: 0.8 | G79: 2016 | H79: £m 12/13 | I79: No | J79: Post | M79: 0.0255 | N79: 0.0242 | O79: 0.0229 | P79: 0.0209 | Q79: 0.0194 | R79: 0.0178 | S79: 0.0163 | T79: 0.0148
A80: ED | B80: SPMW | C80: 0.06 | D80: 0.535 | E80: 0.65 | F80: 0.8 | G80: 2016 | H80: £m 12/13 | I80: No | J80: Post | M80: 0.0255 | N80: 0.0242 | O80: 0.0229 | P80: 0.0209 | Q80: 0.0194 | R80: 0.0178 | S80: 0.0163 | T80: 0.0148
A81: ED | B81: SSEH | C81: 0.06 | D81: 0.5647 | E81: 0.65 | F81: 0.62 | G81: 2016 | H81: £m 12/13 | I81: No | J81: Post | M81: 0.0255 | N81: 0.0242 | O81: 0.0229 | P81: 0.0209 | Q81: 0.0194 | R81: 0.0178 | S81: 0.0163 | T81: 0.0148
A82: ED | B82: SSES | C82: 0.06 | D82: 0.5647 | E82: 0.65 | F82: 0.7 | G82: 2016 | H82: £m 12/13 | I82: No | J82: Post | M82: 0.0255 | N82: 0.0242 | O82: 0.0229 | P82: 0.0209 | Q82: 0.0194 | R82: 0.0178 | S82: 0.0163 | T82: 0.0148
A83: ED | B83: WPD-EMID | C83: 0.064 | D83: 0.7 | E83: 0.65 | F83: 0.8 | G83: 2016 | H83: £m 12/13 | I83: Yes | J83: Pre | M83: =E$63 -> 0.0255 | N83: 0.0238 | O83: 0.0222 | P83: 0.0191 | Q83: 0.0158 | R83: 0.0109 | S83: 0.0077 | T83: 0.0046
A84: ED | B84: WPD-WMID | C84: 0.064 | D84: 0.7 | E84: 0.65 | F84: 0.8 | G84: 2016 | H84: £m 12/13 | I84: Yes | J84: Pre | M84: 0.0255 | N84: 0.0238 | O84: 0.0222 | P84: 0.0191 | Q84: 0.0158 | R84: 0.0109 | S84: 0.0077 | T84: 0.0046
A85: ED | B85: WPD-SWALES | C85: 0.064 | D85: 0.7 | E85: 0.65 | F85: 0.8 | G85: 2016 | H85: £m 12/13 | I85: Yes | J85: Pre | M85: 0.0255 | N85: 0.0238 | O85: 0.0222 | P85: 0.0191 | Q85: 0.0158 | R85: 0.0109 | S85: 0.0077 | T85: 0.0046
A86: ED | B86: WPD-SWEST | C86: 0.064 | D86: 0.7 | E86: 0.65 | F86: 0.8 | G86: 2016 | H86: £m 12/13 | I86: Yes | J86: Pre | M86: 0.0255 | N86: 0.0238 | O86: 0.0222 | P86: 0.0191 | Q86: 0.0158 | R86: 0.0109 | S86: 0.0077 | T86: 0.0046
A87: GD | B87: Cadent-EOE | C87: 0.067 | D87: 0.6304 | E87: 0.65 | F87: 0.2663450186 | G87: 2014 | H87: £m 09/10 | I87: No | J87: Pre | K87: =C$67 -> 0.0292 | L87: 0.0272 | M87: 0.0255 | N87: 0.0238 | O87: 0.0222 | P87: 0.0191 | Q87: 0.0158 | R87: 0.0109
A88: GD | B88: Cadent-London | C88: 0.067 | D88: 0.6304 | E88: 0.65 | F88: 0.2346933783 | G88: 2014 | H88: £m 09/10 | I88: No | J88: Pre | K88: 0.0292 | L88: 0.0272 | M88: 0.0255 | N88: 0.0238 | O88: 0.0222 | P88: 0.0191 | Q88: 0.0158 | R88: 0.0109
A89: GD | B89: Cadent-WM | C89: 0.067 | D89: 0.6304 | E89: 0.65 | F89: 0.2494622386 | G89: 2014 | H89: £m 09/10 | I89: No | J89: Pre | K89: 0.0292 | L89: 0.0272 | M89: 0.0255 | N89: 0.0238 | O89: 0.0222 | P89: 0.0191 | Q89: 0.0158 | R89: 0.0109
A90: GD | B90: Cadent-NW | C90: 0.067 | D90: 0.6304 | E90: 0.65 | F90: 0.2609535249 | G90: 2014 | H90: £m 09/10 | I90: No | J90: Pre | K90: 0.0292 | L90: 0.0272 | M90: 0.0255 | N90: 0.0238 | O90: 0.0222 | P90: 0.0191 | Q90: 0.0158 | R90: 0.0109
A91: GD | B91: NGN | C91: 0.067 | D91: 0.6398 | E91: 0.65 | F91: 0.3498441138 | G91: 2014 | H91: £m 09/10 | I91: No | J91: Pre | K91: 0.0292 | L91: 0.0272 | M91: 0.0255 | N91: 0.0238 | O91: 0.0222 | P91: 0.0191 | Q91: 0.0158 | R91: 0.0109
A92: GD | B92: SGN - Scotland | C92: 0.067 | D92: 0.6373 | E92: 0.65 | F92: 0.3512904966 | G92: 2014 | H92: £m 09/10 | I92: No | J92: Pre | K92: 0.0292 | L92: 0.0272 | M92: 0.0255 | N92: 0.0238 | O92: 0.0222 | P92: 0.0191 | Q92: 0.0158 | R92: 0.0109
A93: GD | B93: SGN - Southern | C93: 0.067 | D93: 0.6373 | E93: 0.65 | F93: 0.322308559 | G93: 2014 | H93: £m 09/10 | I93: No | J93: Pre | K93: 0.0292 | L93: 0.0272 | M93: 0.0255 | N93: 0.0238 | O93: 0.0222 | P93: 0.0191 | Q93: 0.0158 | R93: 0.0109
A94: GD | B94: WWU | C94: 0.067 | D94: 0.6317 | E94: 0.65 | F94: 0.3578190447 | G94: 2014 | H94: £m 09/10 | I94: No | J94: Pre | K94: 0.0292 | L94: 0.0272 | M94: 0.0255 | N94: 0.0238 | O94: 0.0222 | P94: 0.0191 | Q94: 0.0158 | R94: 0.0109
A95: GT | B95: NGGT (TO) | C95: 0.068 | D95: 0.4436 | E95: 0.625 | F95: 0.644 | G95: 2014 | H95: £m 09/10 | I95: No | J95: Pre | K95: =C$68 -> 0.0292 | L95: 0.0272 | M95: 0.0255 | N95: 0.0238 | O95: 0.0222 | P95: 0.0191 | Q95: 0.0158 | R95: 0.0109
A96: GT | B96: NGGT (SO) | C96: 0.068 | D96: 0.4436 | E96: 0.625 | F96: 0.374 | G96: 2014 | H96: £m 09/10 | I96: No | J96: Pre | K96: 0.0292 | L96: 0.0272 | M96: 0.0255 | N96: 0.0238 | O96: 0.0222 | P96: 0.0191 | Q96: 0.0158 | R96: 0.0109
A97: ET | B97: NGET (TO) | C97: 0.07 | D97: 0.4689 | E97: 0.6 | F97: 0.85 | G97: 2014 | H97: £m 09/10 | I97: No | J97: Pre | K97: =C$66 -> 0.0292 | L97: 0.0272 | M97: 0.0255 | N97: 0.0238 | O97: 0.0222 | P97: 0.0191 | Q97: 0.0158 | R97: 0.0109
A98: ET | B98: NGET (SO) | C98: 0.07 | D98: 0.4689 | E98: 0.6 | F98: 0.279 | G98: 2014 | H98: £m 09/10 | I98: No | J98: Pre | K98: 0.0292 | L98: 0.0272 | M98: 0.0255 | N98: 0.0238 | O98: 0.0222 | P98: 0.0191 | Q98: 0.0158 | R98: 0.0109
A99: ET | B99: SPT | C99: 0.07 | D99: 0.5 | E99: 0.55 | F99: 0.9 | G99: 2014 | H99: £m 09/10 | I99: Yes | J99: Pre | K99: 0.0292 | L99: 0.0272 | M99: 0.0255 | N99: 0.0238 | O99: 0.0222 | P99: 0.0191 | Q99: 0.0158 | R99: 0.0109
A100: ET | B100: SHET | C100: 0.07 | D100: 0.5 | E100: 0.55 | F100: 0.9 | G100: 2014 | H100: £m 09/10 | I100: Yes | J100: Pre | K100: =C$65 -> 0.0292 | L100: 0.025 | M100: 0.0215 | N100: 0.0179 | O100: 0.0151 | P100: 0.0116 | Q100: 0.0102 | R100: 0.0083
B104: GD: Capitalised share of repex / GT: Uncertainty Rate
C105: 2014 | D105: =C105+1 -> 2015 | E105: 2016 | F105: 2017 | G105: 2018 | H105: 2019 | I105: 2020 | J105: 2021
B106: Cadent-EOE | C106: 0.5 | D106: 0.5714285714 | E106: 0.6428571429 | F106: 0.7142857143 | G106: 0.7857142857 | H106: 0.8571428571 | I106: 0.9285714286 | J106: 1
B107: Cadent-London | C107: 0.5 | D107: 0.5714285714 | E107: 0.6428571429 | F107: 0.7142857143 | G107: 0.7857142857 | H107: 0.8571428571 | I107: 0.9285714286 | J107: 1
B108: Cadent-WM | C108: 0.5 | D108: 0.5714285714 | E108: 0.6428571429 | F108: 0.7142857143 | G108: 0.7857142857 | H108: 0.8571428571 | I108: 0.9285714286 | J108: 1
B109: Cadent-NW | C109: 0.5 | D109: 0.5714285714 | E109: 0.6428571429 | F109: 0.7142857143 | G109: 0.7857142857 | H109: 0.8571428571 | I109: 0.9285714286 | J109: 1
B110: NGN | C110: 0.5 | D110: 0.5714285714 | E110: 0.6428571429 | F110: 0.7142857143 | G110: 0.7857142857 | H110: 0.8571428571 | I110: 0.9285714286 | J110: 1
B111: SGN - Scotland | C111: 0.5 | D111: 0.5714285714 | E111: 0.6428571429 | F111: 0.7142857143 | G111: 0.7857142857 | H111: 0.8571428571 | I111: 0.9285714286 | J111: 1
B112: SGN - Southern | C112: 0.5 | D112: 0.5714285714 | E112: 0.6428571429 | F112: 0.7142857143 | G112: 0.7857142857 | H112: 0.8571428571 | I112: 0.9285714286 | J112: 1
B113: WWU | C113: 0.5 | D113: 0.5714285714 | E113: 0.6428571429 | F113: 0.7142857143 | G113: 0.7857142857 | H113: 0.8571428571 | I113: 0.9285714286 | J113: 1
B114: NGGT (TO) | C114: 0.9 | D114: 0.9 | E114: 0.9 | F114: 0.9 | G114: 0.9 | H114: 0.9 | I114: 0.9 | J114: 0.9
B115: NGGT (SO)
B118: IQI Additional Income | C118: 2014 | D118: =C118+1 -> 2015 | E118: 2016 | F118: 2017 | G118: 2018 | H118: 2019 | I118: 2020 | J118: 2021 | K118: 2022 | L118: 2023
B119: ENWL | E119: 1.557563216 | F119: 1.473414124 | G119: 1.46895889 | H119: 1.470720053 | I119: 1.467471626 | J119: 1.448620622 | K119: 1.495679833 | L119: 1.439714872
B120: NPgN | E120: -0.658717818 | F120: -0.6354377258 | G120: -0.5890786287 | H120: -0.5817818819 | I120: -0.5682391887 | J120: -0.5193317033 | K120: -0.4796266585 | L120: -0.4656874701
B121: NPgY | E121: -0.8662603628 | F121: -0.8101977378 | G121: -0.7891908424 | H121: -0.7906187307 | I121: -0.7443265341 | J121: -0.7069727482 | K121: -0.6535094616 | L121: -0.6642975889
B122: UKPN-EPN | E122: -3.261213418 | F122: -3.346255445 | G122: -3.173291977 | H122: -3.123240475 | I122: -3.076755131 | J122: -2.934217718 | K122: -2.882593848 | L122: -2.7237011
B123: UKPN-LPN | E123: -2.426097237 | F123: -2.369038366 | G123: -2.24332766 | H123: -2.146602062 | I123: -2.174009679 | J123: -2.053892784 | K123: -1.904458123 | L123: -1.800861113
B124: UKPN-SPN | E124: -2.186101241 | F124: -2.382044743 | G124: -2.241867237 | H124: -2.114781265 | I124: -2.014617709 | J124: -1.942131326 | K124: -1.924885643 | L124: -1.84644513
B125: SPD | E125: -1.863353254 | F125: -1.818298041 | G125: -1.839467563 | H125: -1.741597343 | I125: -1.679800211 | J125: -1.597445636 | K125: -1.501639612 | L125: -1.445363888
B126: SPMW | E126: -2.131714527 | F126: -2.193973633 | G126: -1.986901022 | H126: -1.803755278 | I126: -1.77679425 | J126: -1.790147258 | K126: -1.644411369 | L126: -1.467384504
B127: SSEH | E127: 0.1659972181 | F127: 0.1663190061 | G127: 0.165543379 | H127: 0.1656974114 | I127: 0.1662263076 | J127: 0.1638030241 | K127: 0.1659334462 | L127: 0.1603668882
B128: SSES | E128: 0.3648271976 | F128: 0.3710908384 | G128: 0.3607185911 | H128: 0.3592781484 | I128: 0.3227419488 | J128: 0.3213907553 | K128: 0.3287617841 | L128: 0.3192043079
B129: WPD-EMID | E129: 7.128119675 | F129: 6.96741384 | G129: 6.203402589 | H129: 6.308597892 | I129: 6.23766484 | J129: 6.486581994 | K129: 6.815251662 | L129: 6.62710562
B130: WPD-WMID | E130: 6.507901473 | F130: 6.516616741 | G130: 6.32924565 | H130: 6.440739741 | I130: 6.636733199 | J130: 6.756816376 | K130: 6.696123445 | L130: 6.764742755
B131: WPD-SWALES | E131: 3.676313847 | F131: 3.674835087 | G131: 3.499852964 | H131: 3.724685547 | I131: 3.412173949 | J131: 3.420224103 | K131: 3.305354944 | L131: 3.363328564
B132: WPD-SWEST | E132: 5.376270196 | F132: 5.377596976 | G132: 5.26181028 | H132: 5.360849181 | I132: 5.266523823 | J132: 5.327117903 | K132: 5.322329401 | L132: 5.569988075
B133: Cadent-EOE | C133: 1.437155607 | D133: 1.371801563 | E133: 1.350766011 | F133: 1.356812199 | G133: 1.359813639 | H133: 1.350147507 | I133: 1.329843331 | J133: 1.317454096
B134: Cadent-London | C134: 1.222451077 | D134: 1.219815743 | E134: 1.294216483 | F134: 1.259639627 | G134: 1.284011218 | H134: 1.267851186 | I134: 1.259201906 | J134: 1.257376659
B135: Cadent-WM | C135: 0.8232500229 | D135: 0.8266357128 | E135: 0.796405046 | F135: 0.7875702145 | G135: 0.8113325286 | H135: 0.8106422878 | I135: 0.8090036895 | J135: 0.7804327697
B136: Cadent-NW | C136: 1.089395985 | D136: 1.027913195 | E136: 1.006698714 | F136: 1.01923509 | G136: 1.034148078 | H136: 1.020424079 | I136: 1.013773955 | J136: 0.9898055017
B137: NGN | C137: 3.067525014 | D137: 3.162921942 | E137: 3.215660422 | F137: 3.177353462 | G137: 2.992526777 | H137: 2.995397899 | I137: 3.008780646 | J137: 3.003553035
B138: SGN - Scotland | C138: 2.124089736 | D138: 2.035072334 | E138: 1.968699807 | F138: 2.085845677 | G138: 2.11503932 | H138: 2.096040782 | I138: 1.970964889 | J138: 1.955823727
B139: SGN - Southern | C139: 4.372401175 | D139: 4.105764166 | E139: 4.054566993 | F139: 4.174092746 | G139: 4.239710198 | H139: 4.246147721 | I139: 4.107852308 | J139: 4.057594497
B140: WWU | C140: 1.398277667 | D140: 1.386464987 | E140: 1.367304053 | F140: 617 | G140: 1.334777786 | H140: 1.335488711 | I140: 1.359779966 | J140: 1.351524007
B141: NGGT (TO) | C141: -1.129571821 | D141: -1.144400731 | E141: -1.176381736 | F141: -1.592755746 | G141: -1.85656676 | H141: -1.272041674 | I141: -1.103973995 | J141: -1.018311327
B142: NGGT (SO) | C142: -0.4318115499 | D142: -0.39947196 | E142: -0.3473431704 | F142: -0.3193206525 | G142: -0.3126562688 | H142: -0.3079937995 | I142: -0.3257092292 | J142: -0.3155202622
B143: NGET (TO) | C143: 15.16824629 | D143: 16.27511001 | E143: 15.6147029 | F143: 14.91167436 | G143: 13.03341576 | H143: 12.55606777 | I143: 11.28510091 | J143: 9.826817942
B144: NGET (SO) | C144: 0.9321939458 | D144: 0.899697931 | E144: 0.8778326769 | F144: 0.8723210932 | G144: 0.8987595857 | H144: 0.8280171022 | I144: 0.8841765856 | J144: 0.8998241565
B145: SPT | C145: 10.95275109 | D145: 1.34126836 | E145: 22.19017941 | F145: 7.048848325 | G145: 6.902069569 | H145: 6.942523809 | I145: 7.078506978 | J145: 5.26885245
B146: SHET | C146: 4.785055606 | D146: 4.973659719 | E146: 5.69886625 | F146: 3.792107731 | G146: 2.85125638 | H146: 2.879976525 | I146: 2.907470351 | J146: 2.819107438
B149: =LEFT('RFPR cover'!C6,2) -> GD
B150: Output incentives for each sector used to populate R5
B152: Input for R5 - Output Incentives | E152: =OR((LEFT('RFPR cover'!$C$6,2)=Data!F152),'RFPR cover'!$C$5=Data!F152) -> FALSE | F152: =B162 -> ED
B153: =CHOOSE(MATCH(TRUE,$E$152:$E$159,0),B163,B173,B183,E183,B193,E193,B203,E203)&"" -> Broad Measure of Customer Satisfaction | E153: =OR((LEFT('RFPR cover'!$C$6,2)=Data!F153),'RFPR cover'!$C$5=Data!F153) -> TRUE | F153: =B172 -> GD
B154: Shrinkage Allowance Revenue Adjustment | E154: =OR((LEFT('RFPR cover'!$C$6,2)=Data!F154),'RFPR cover'!$C$5=Data!F154) -> FALSE | F154: =B182 -> NGGT (TO)
B155: Environment Emissions Incentive | E155: =OR((LEFT('RFPR cover'!$C$6,2)=Data!F155),'RFPR cover'!$C$5=Data!F155) -> FALSE | F155: =E182 -> NGGT (SO)
B156: Discretionary Reward Scheme | E156: =OR((LEFT('RFPR cover'!$C$6,2)=Data!F156),'RFPR cover'!$C$5=Data!F156) -> FALSE | F156: =B192 -> NGET (TO)
B157: NTS Exit Capacity | E157: =OR((LEFT('RFPR cover'!$C$6,2)=Data!F157),'RFPR cover'!$C$5=Data!F157) -> FALSE | F157: =E192 -> NGET (SO)
E158: =OR((LEFT('RFPR cover'!$C$6,2)=Data!F158),'RFPR cover'!$C$5=Data!F158) -> FALSE | F158: =B202 -> SPT
E159: =OR((LEFT('RFPR cover'!$C$6,2)=Data!F159),'RFPR cover'!$C$5=Data!F159) -> FALSE | F159: =E202 -> SHET
B162: ED
B163: Broad measure of customer service
B164: Interruptions-related quality of service
B165: Incentive on connections engagement
B166: Time to Connect Incentive
B167: Losses discretionary reward scheme
B172: GD
B173: Broad Measure of Customer Satisfaction
B174: Shrinkage Allowance Revenue Adjustment
B175: Environment Emissions Incentive
B176: Discretionary Reward Scheme
B177: NTS Exit Capacity
B182: =B95 -> NGGT (TO) | E182: =B96 -> NGGT (SO)
B183: Stakeholder Satisfaction Output | E183: Constraint management
B184: Permits revenue adjustment | E184: Transportation Support Services
E185: Shrinkage incentive
E186: Residual balancing
E187: Quality of demand forecasting
E188: Greenhouse gas incentive
E189: Maintenance incentive
B192: =B97 -> NGET (TO) | E192: =B98 -> NGET (SO)
B193: Network Reliability Incentive | E193: Electricity Market Reform incentive revenue
B194: Stakeholder Satisfaction Output | E194: Balancing Services Incentive Scheme / ESO Incentive Scheme 18/19
B195: SF6 Emissions | E195: Renewable wind forecasting incentive
B196: Environmental Discretionary Reward
B202: =B145 -> SPT | E202: =B100 -> SHET
B203: Network Reliability Incentive | E203: Network Reliability Incentive
B204: Stakeholder Satisfaction Output | E204: Stakeholder Satisfaction Output
B205: SF6 Emissions | E205: SF6 Emissions
B206: Environmental Discretionary Reward | E206: Environmental Discretionary Reward
B207: Performance re offers of timely connection | E207: Performance re offers of timely connection
B212: All incentive performance recognised in t+2 allowed revenue - except TTC (t+3) and LDR (t+1) in ED
B214: Time to Connect Incentive revenue adjustment | C214: t+3
B215: Losses discretionary reward scheme revenue adjustment | C215: t+1
B218: Bond or loan types
B219: Fixed rate
B220: Floating
B221: Inflation-linked
B224: Reference rate
B225: Not applicable
B226: LIBOR 3 month
B227: LIBOR 6 month
B228: EURIBOR 3 month
B229: BOE base rate
B230: RPI 12 month
B231: CPI 12 month
B235: Currency
B236: GBP
B237: EUR
B238: USD
B239: HKD
B240: CAD
B243: Rank
B244: Senior
B245: Junior
B248: Hedged
B249: Yes - fully hedged
B250: Yes - partially hedged
B251: No
B253: Special features
B254: Callable
B255: Puttable
B259: Counterparty
B260: EIB
... 4 more rows

Sheet Content & Version Control
A1: Version control
A2: ='RFPR cover'!C5 -> Cadent-EOE
A3: ='RFPR cover'!C7 -> 2020
B6: Version:
B8: Submission | C8: Date submitted | D8: Changes
B9: Submission 1
B10: Submission 2
B11: Submission 3
B12: Submission 4
B13: Submission 5
B14: Submission 6
B15: Submission 7
B16: Submission 8
B17: Submission 9
B18: Submission 10
B21: R1 - RoRE
B22: R2 - Revenue
B23: R3 - Rec to totex
B24: R4 - Totex
B25: R5 - Output Incentives
B26: R6 - Innovation
B27: R7 - Financing
B28: R7a - Financing input
B29: R8 - Net Debt
B30: R8a - Net Debt input
B31: R9 - RAV
B32: R10 - Tax
B33: R11 - Dividends
B34: R12 - Pensions
B35: R13 - Other Activities

Sheet Change log
A1: Change log
A2: ='RFPR cover'!C5 -> Cadent-EOE
A3: ='RFPR cover'!C7 -> 2020
A5: Version | B5: Table Reference | C5: Changes made to RFPR template
A6: 1.1 | B6: R8 | C6: Row 26 added to pick up unamortised issues costs row in table R8a.
A7: 1.1 | B7: R8 | C7: Row 42 updated to include new row 26 (unamortised issue costs) in the subtotal
A8: 1.1 | B8: R1 | C8: Amended formating to percentages (Column M:N, rows 10-23 and rows 29-42)
A9: 1.1 | B9: R7 | C9: B29 to add "Net Interest" into the title to make it clear that this should include regulatory definition of net interest associated with new/refinanced debt raised in future years
A10: 1.1 | B10: R7 | C10: Row 47 added to allow input of issuance expenses forecast for new/refinanced debt in future years
A11: 1.1 | B11: R8a | C11: Additional row added for restricted cash balances in table R8a in row 18, guidance updated.
A12: 1.1 | B12: R7 | C12: D37 - formula amended to read =('R8 - Net Debt'!D54-AVERAGE('R8 - Net Debt'!D8,('R8 - Net Debt'!E10-'R8a - Net Debt input'!T18)))*(Data!C36-1)
A13: 1.1 | B13: R7 | C13: E37 - formula amended to read =('R8 - Net Debt'!E54-AVERAGE(('R8 - Net Debt'!E8-'R8a - Net Debt input'!T18),('R8 - Net Debt'!E10-'R8a - Net Debt input'!U18)))*(Data!D36-1) Formula copied across to F37:K37
A14: 1.1 | B14: R10 | C14: Amended formula in D50 to read =D85-D87, and dragged formula across to E5:K5
A15: 1.1 | B15: R1 | C15: Amended formula in B3 to correct spelling of system, originally spelt 'syestem'
A16: 1.1 | B16: R9 | C16: Formula in row 32 changed from =IF(D5="Actuals",IF(D31>=0,(D29-SUM($D$31:D31))-D11<'RFPR cover'!$F$14,(D29-SUM($D$31:D31))-D11<'RFPR cover'!$F$14), "NA") to =IF(D5="Actuals",IF(ABS((D29-SUM($D$31:D31))-D11)<'RFPR cover'!$F$14,"TRUE","FALSE"),"NA")
A17: 1.1 | B17: R8a | C17: Removed content in F12 ("Income statement debits and cash out flows (entered as +ve values, credits as -ve values")
A18: 1.1 | B18: R8a | C18: Changed "Restricted cash balances (entered as +ve values, credits as -ve values)" in F18 to "Restricted cash balances (-ive)"
A19: 1.1 | B19: Data | C19: J63:J68 updated to be consistent with Nov 2019 PCFM
A20: 1.1 | B20: Data | C20: Populated the incentives for NGGT SO and NGET SO in the Data tab, based on the incentives in the 2019 RFPR template for both entities.
A21: 1.1 | B21: R7a | C21: Removed data validation between rows 498:509
A22: 1.1 | B22: R10 | C22: Added in "Tax arising from MOD values" in "Other adjustments" in R10
A23: 1.1 | B23: R10 | C23: Changed the formulas in row 6 from =IF(H6<=('RFPR cover'!$C$7),"Actuals","Forecast") to =IF(H6<=('RFPR cover'!$C$7-1),"Actuals","Forecast")
A24: 1.1 | B24: R9 | C24: Changed the formulas in row 5 from =IF(D6<='RFPR cover'!$C$7,"Actuals","Forecast") to =IF(D6<='RFPR cover'!$C$7-1,"Actuals","Forecast").
A25: 1.1 | B25: Data | C25: Changed the tax rate from G25:G30 to be in line with the 2020 Budget, where Government announced the corporate tax rate would be 19% for the years beginning April 2020 and 2021.

Sheet R1 - RoRE
A1: R1 - Return on Regulatory Equity (RoRE)
A2: ='RFPR cover'!C5 -> Cadent-EOE
A3: ='RFPR cover'!C7 -> 2020 | B3: =IF('RFPR cover'!C5=Data!B98,"Not required to be completed for System Operator",(IF('RFPR cover'!C5=Data!B96,"Not required to be completed for System Operator",""))) -> 
D5: =IF(D6<='RFPR cover'!$C$7,"Actuals","Forecast") -> Actuals | E5: =IF(E6<='RFPR cover'!$C$7,"Actuals","Forecast") -> Actuals | F5: =IF(F6<='RFPR cover'!$C$7,"Actuals","Forecast") -> Actuals | G5: =IF(G6<='RFPR cover'!$C$7,"Actuals","Forecast") -> Actuals | H5: =IF(H6<='RFPR cover'!$C$7,"Actuals","Forecast") -> Actuals | I5: =IF(I6<='RFPR cover'!$C$7,"Actuals","Forecast") -> Actuals | J5: =IF(J6<='RFPR cover'!$C$7,"Actuals","Forecast") -> Actuals | K5: =IF(K6<='RFPR cover'!$C$7,"Actuals","Forecast") -> Forecast
D6: ='RFPR cover'!$C$13 -> 2014 | E6: =D6+1 -> 2015 | F6: 2016 | G6: 2017 | H6: 2018 | I6: 2019 | J6: 2020 | K6: 2021 | M6: ="Cumulative to "&'RFPR cover'!$C$7 -> Cumulative to 2020 | N6: RIIO-1 period
B8: RoRE based on Notional Gearing
B10: Allowed Equity Return | C10: % | D10: =D48/D$65 -> 0.067 | E10: 0.067 | F10: 0.067 | G10: 0.067 | H10: 0.067 | I10: 0.067 | J10: 0.067 | K10: 0.067 | M10: =AVERAGE(D48:INDEX(D48:K48,0,MATCH('RFPR cover'!$C$7,$D$6:$K$6,0)))/AVERAGE($D$65:INDEX($D$65:$K$65,0,MATCH('RFPR cover'!$C$7,$D$6:$K$6,0))) -> 0.067 | N10: =AVERAGE(D48:K48)/AVERAGE($D$65:$K$65) -> 0.067
B11: =B49 -> Totex outperformance | C11: % | D11: -0.003069686167 | E11: -0.004889898781 | F11: 0.008159962885 | G11: -0.0002573623258 | H11: 0.00251654924 | I11: 0.009478107751 | J11: 0.003920470299 | K11: 0.01250740213 | M11: =AVERAGE(D49:INDEX(D49:K49,0,MATCH('RFPR cover'!$C$7,$D$6:$K$6,0)))/AVERAGE($D$65:INDEX($D$65:$K$65,0,MATCH('RFPR cover'!$C$7,$D$6:$K$6,0))) -> 0.002239452853 | N11: 0.003532521694
B12: IQI Reward | C12: % | D12: 0.001279959861 | E12: 0.001267353171 | F12: 0.001273214047 | G12: 0.001282919299 | H12: 0.001305417809 | I12: 0.001295193799 | J12: 0.001267875357 | K12: 0.001244373798 | M12: =AVERAGE(D50:INDEX(D50:K50,0,MATCH('RFPR cover'!$C$7,$D$6:$K$6,0)))/AVERAGE($D$65:INDEX($D$65:$K$65,0,MATCH('RFPR cover'!$C$7,$D$6:$K$6,0))) -> 0.001281652491 | N12: =AVERAGE(D50:K50)/AVERAGE($D$65:$K$65) -> 0.001276957891
B13: Broad Measure of Customer Satisfaction | C13: % | D13: 0.002028683847 | E13: 0.001326081493 | F13: 0.002457475165 | G13: 0.003211355005 | H13: 0.003191030503 | I13: 0.003093601937 | J13: 0.003211450424 | K13: 0.003127004123 | M13: =AVERAGE(D51:INDEX(D51:K51,0,MATCH('RFPR cover'!$C$7,$D$6:$K$6,0)))/AVERAGE($D$65:INDEX($D$65:$K$65,0,MATCH('RFPR cover'!$C$7,$D$6:$K$6,0))) -> 0.002641658218 | N13: 0.002702779057
B14: Shrinkage Allowance Revenue Adjustment | C14: % | D14: 0.000678803837 | E14: 0.0005041465391 | F14: 0.0004502875746 | G14: 0.000276438383 | H14: 0.0002951607374 | I14: 0.0005359541516 | J14: 0.0002314670251 | K14: 0.0002982834171 | M14: =AVERAGE(D52:INDEX(D52:K52,0,MATCH('RFPR cover'!$C$7,$D$6:$K$6,0)))/AVERAGE($D$65:INDEX($D$65:$K$65,0,MATCH('RFPR cover'!$C$7,$D$6:$K$6,0))) -> 0.000425434623 | N14: 0.0004094221499
B15: Environment Emissions Incentive | C15: % | D15: 0.002109071107 | E15: 0.002261934746 | F15: 0.002526069621 | G15: 0.001673745633 | H15: 0.001585344172 | I15: 0.002337352147 | J15: 0.002179856568 | K15: 0.003941922561 | M15: =AVERAGE(D53:INDEX(D53:K53,0,MATCH('RFPR cover'!$C$7,$D$6:$K$6,0)))/AVERAGE($D$65:INDEX($D$65:$K$65,0,MATCH('RFPR cover'!$C$7,$D$6:$K$6,0))) -> 0.002096858779 | N15: 0.002329212331
B16: Discretionary Reward Scheme | C16: % | D16: 7.597931894e-05 | E16: 7.681974045e-05 | F16: 4.97471966e-05 | G16: 4.990302972e-05 | H16: 5.004059018e-05 | I16: 0 | J16: 0 | K16: 0 | M16: =AVERAGE(D54:INDEX(D54:K54,0,MATCH('RFPR cover'!$C$7,$D$6:$K$6,0)))/AVERAGE($D$65:INDEX($D$65:$K$65,0,MATCH('RFPR cover'!$C$7,$D$6:$K$6,0))) -> 4.335276648e-05 | N16: 3.789324287e-05
B17: NTS Exit Capacity | C17: % | D17: 0.001428977909 | E17: 0.004370837197 | F17: 0.009259282909 | G17: 0.006455317374 | H17: 0.006517474512 | I17: 0.006761073402 | J17: 0.005177447657 | K17: 0.003835860711 | M17: =AVERAGE(D55:INDEX(D55:K55,0,MATCH('RFPR cover'!$C$7,$D$6:$K$6,0)))/AVERAGE($D$65:INDEX($D$65:$K$65,0,MATCH('RFPR cover'!$C$7,$D$6:$K$6,0))) -> 0.005695378296 | N17: 0.00546120454
B18: Network Innovation | C18: % | D18: -0.0001105454843 | E18: -0.0002748542996 | F18: -0.0004404890539 | G18: -0.0004674710076 | H18: -0.0004361915086 | I18: -0.0002624488695 | J18: -0.0004222330764 | K18: -0.0003178506464 | M18: =AVERAGE(D56:INDEX(D56:K56,0,MATCH('RFPR cover'!$C$7,$D$6:$K$6,0)))/AVERAGE($D$65:INDEX($D$65:$K$65,0,MATCH('RFPR cover'!$C$7,$D$6:$K$6,0))) -> -0.0003441325344 | N18: -0.0003408227897
B19: Penalties and fines | C19: % | D19: -0.0005962750515 | E19: -0.0007025732012 | F19: -0.0005452242256 | G19: -0.0009331472332 | H19: -0.0002541468209 | I19: -0.0008419172214 | J19: -0.0004238015463 | K19: -0.0006815461887 | M19: =AVERAGE(D57:INDEX(D57:K57,0,MATCH('RFPR cover'!$C$7,$D$6:$K$6,0)))/AVERAGE($D$65:INDEX($D$65:$K$65,0,MATCH('RFPR cover'!$C$7,$D$6:$K$6,0))) -> -0.0006138815869 | N19: -0.0006224027615
B20: RoRE - Operational performance | C20: % | D20: =SUM(D10:D19) -> 0.07082496918 | E20: 0.0709398466 | F20: 0.09019032612 | G20: 0.07829169816 | H20: 0.08177067923 | I20: 0.0893969171 | J20: 0.08214253271 | K20: 0.0909554499 | M20: =SUM(M10:M19) -> 0.08046577391 | N20: =SUM(N10:N19) -> 0.08178676535
B21: Debt performance - at notional gearing | C21: % | D21: =(D59)/D$65 -> 0.02575259297 | E21: -0.001176989335 | F21: 0.007044768302 | G21: 0.01189241682 | H21: 0.03672608304 | I21: 0.01953917805 | J21: 0.004804057447 | K21: =(K59)/K$65 -> 0.005064288052 | M21: =AVERAGE(D59:INDEX(D59:K59,0,MATCH('RFPR cover'!$C$7,$D$6:$K$6,0)))/AVERAGE($D$65:INDEX($D$65:$K$65,0,MATCH('RFPR cover'!$C$7,$D$6:$K$6,0))) -> 0.01493010543 | N21: =AVERAGE(D59:K59)/AVERAGE($D$65:$K$65) -> 0.01368767808
B22: =B61 -> Tax performance - at notional gearing | C22: % | D22: =(D61)/D$65 -> -0.003866995457 | E22: -0.005090616778 | F22: -0.002979575197 | G22: -0.003872834339 | H22: -0.007866945094 | I22: -0.003174238062 | J22: 0.002832083244 | K22: 0.004063004449 | M22: =AVERAGE(D61:INDEX(D61:K61,0,MATCH('RFPR cover'!$C$7,$D$6:$K$6,0)))/AVERAGE($D$65:INDEX($D$65:$K$65,0,MATCH('RFPR cover'!$C$7,$D$6:$K$6,0))) -> -0.003429618372 | N22: =AVERAGE(D61:K61)/AVERAGE($D$65:$K$65) -> -0.002486053416
B23: =B63 -> RoRE - including financing and tax | C23: % | D23: =SUM(D20:D22) -> 0.09271056669 | E23: 0.06467224049 | F23: 0.09425551922 | G23: 0.08631128064 | H23: 0.1106298172 | I23: 0.1057618571 | J23: 0.0897786734 | K23: 0.1000827424 | M23: =SUM(M20:M22) -> 0.09196626096 | N23: =SUM(N20:N22) -> 0.09298839001
B27: RoRE based on Actual Gearing
B29: Allowed Equity Return | C29: % | D29: =D48/D$66 -> 0.05041357793 | E29: 0.05509595264 | F29: 0.05358748265 | G29: 0.05713919836 | H29: 0.06274607589 | I29: 0.06364610056 | J29: 0.06473316767 | K29: 0.06525946679 | M29: =AVERAGE(D48:INDEX(D48:K48,0,MATCH('RFPR cover'!$C$7,$D$6:$K$6,0)))/AVERAGE($D$66:INDEX($D$66:$K$66,0,MATCH('RFPR cover'!$C$7,$D$6:$K$6,0))) -> 0.05770226398 | N29: =AVERAGE(D48:K48)/AVERAGE($D$66:$K$66) -> 0.05855620607
B30: =B49 -> Totex outperformance | C30: % | D30: -0.002309759146 | E30: -0.00402109898 | F30: 0.006526445813 | G30: -0.0002194847311 | H30: 0.002356769994 | I30: 0.009003650732 | J30: 0.00378782778 | K30: 0.01218248349 | M30: =AVERAGE(D49:INDEX(D49:K49,0,MATCH('RFPR cover'!$C$7,$D$6:$K$6,0)))/AVERAGE($D$66:INDEX($D$66:$K$66,0,MATCH('RFPR cover'!$C$7,$D$6:$K$6,0))) -> 0.0019286791 | N30: 0.003087329377
B31: IQI Reward | C31: % | D31: 0.0009630948686 | E31: 0.001042179556 | F31: 0.001018333368 | G31: 0.001094104184 | H31: 0.001222534999 | I31: 0.001230358728 | J31: 0.001224978926 | K31: 0.001212047321 | M31: =AVERAGE(D50:INDEX(D50:K50,0,MATCH('RFPR cover'!$C$7,$D$6:$K$6,0)))/AVERAGE($D$66:INDEX($D$66:$K$66,0,MATCH('RFPR cover'!$C$7,$D$6:$K$6,0))) -> 0.001103794782 | N31: 0.001116027006
B32: Broad Measure of Customer Satisfaction | C32: % | D32: 0.001526465839 | E32: 0.00109047348 | F32: 0.001965521011 | G32: 0.002738720158 | H32: 0.002988427494 | I32: 0.002938741791 | J32: 0.0031027964 | K32: 0.003045770474 | M32: =AVERAGE(D51:INDEX(D51:K51,0,MATCH('RFPR cover'!$C$7,$D$6:$K$6,0)))/AVERAGE($D$66:INDEX($D$66:$K$66,0,MATCH('RFPR cover'!$C$7,$D$6:$K$6,0))) -> 0.00227506955 | N32: 0.002362156528
B33: Shrinkage Allowance Revenue Adjustment | C33: % | D33: 0.0005107601512 | E33: 0.0004145736394 | F33: 0.0003601459342 | G33: 0.0002357532477 | H33: 0.0002764205676 | I33: 0.0005091252512 | J33: 0.0002236357276 | K33: 0.0002905345784 | M33: =AVERAGE(D52:INDEX(D52:K52,0,MATCH('RFPR cover'!$C$7,$D$6:$K$6,0)))/AVERAGE($D$66:INDEX($D$66:$K$66,0,MATCH('RFPR cover'!$C$7,$D$6:$K$6,0))) -> 0.0003663961332 | N33: 0.0003578239967
B34: Environment Emissions Incentive | C34: % | D34: 0.001586952546 | E34: 0.001860051488 | F34: 0.002020383761 | G34: 0.001427410205 | H34: 0.001484688443 | I34: 0.002220348504 | J34: 0.002106104787 | K34: 0.003839518872 | M34: =AVERAGE(D53:INDEX(D53:K53,0,MATCH('RFPR cover'!$C$7,$D$6:$K$6,0)))/AVERAGE($D$66:INDEX($D$66:$K$66,0,MATCH('RFPR cover'!$C$7,$D$6:$K$6,0))) -> 0.001805873116 | N34: 0.002035669212
B35: Discretionary Reward Scheme | C35: % | D35: 5.716998979e-05 | E35: 6.317099674e-05 | F35: 3.97884632e-05 | G35: 4.255849423e-05 | H35: 4.686344282e-05 | I35: 0 | J35: 0 | K35: 0 | M35: =AVERAGE(D54:INDEX(D54:K54,0,MATCH('RFPR cover'!$C$7,$D$6:$K$6,0)))/AVERAGE($D$66:INDEX($D$66:$K$66,0,MATCH('RFPR cover'!$C$7,$D$6:$K$6,0))) -> 3.73366086e-05 | N35: 3.311767967e-05
B36: NTS Exit Capacity | C36: % | D36: 0.001075222227 | E36: 0.003594260287 | F36: 0.007405696451 | G36: 0.005505248655 | H36: 0.0061036709 | I36: 0.006422626233 | J36: 0.005002277422 | K36: 0.003736212308 | M36: =AVERAGE(D55:INDEX(D55:K55,0,MATCH('RFPR cover'!$C$7,$D$6:$K$6,0)))/AVERAGE($D$66:INDEX($D$66:$K$66,0,MATCH('RFPR cover'!$C$7,$D$6:$K$6,0))) -> 0.004905018237 | N36: 0.004772946544
B37: Network Innovation | C37: % | D37: -8.317900578e-05 | E37: -0.0002260202906 | F37: -0.0003523089482 | G37: -0.0003986704273 | H37: -0.0004084970971 | I37: -0.0002493111514 | J37: -0.0004079475304 | K37: -0.0003095934881 | M37: =AVERAGE(D56:INDEX(D56:K56,0,MATCH('RFPR cover'!$C$7,$D$6:$K$6,0)))/AVERAGE($D$66:INDEX($D$66:$K$66,0,MATCH('RFPR cover'!$C$7,$D$6:$K$6,0))) -> -0.0002963765126 | N37: -0.0002978699927
B38: Penalties and fines | C38: % | D38: -0.0004486620712 | E38: -0.0005777453705 | F38: -0.0004360775183 | G38: -0.0007958102217 | H38: -0.0002380106822 | I38: -0.0007997723602 | J38: -0.0004094629337 | K38: -0.0006638409085 | M38: =AVERAGE(D57:INDEX(D57:K57,0,MATCH('RFPR cover'!$C$7,$D$6:$K$6,0)))/AVERAGE($D$66:INDEX($D$66:$K$66,0,MATCH('RFPR cover'!$C$7,$D$6:$K$6,0))) -> -0.0005286919012 | N38: -0.0005439633486
B39: RoRE - Operational performance | C39: % | D39: =SUM(D29:D38) -> 0.05329164332 | E39: 0.05833579745 | F39: 0.07213541098 | G39: 0.06676902792 | H39: 0.07657894395 | I39: 0.08492186829 | J39: 0.07936337825 | K39: 0.08859259943 | M39: =SUM(M29:M38) -> 0.0692993631 | N39: =SUM(N29:N38) -> 0.07147944307
B40: Debt performance - at actual gearing | C40: % | D40: =(D59+D60)/D$66 -> 0.02170945459 | E40: 0.002744470756 | F40: 0.008336894715 | G40: 0.01199988851 | H40: 0.03461443907 | I40: 0.01905051636 | J40: 0.005607946145 | K40: 0.00548343711 | M40: =(AVERAGE(D59:INDEX(D59:K59,0,MATCH('RFPR cover'!$C$7,$D$6:$K$6,0)))+AVERAGE(D60:INDEX(D60:K60,0,MATCH('RFPR cover'!$C$7,$D$6:$K$6,0))))/AVERAGE($D$66:INDEX($D$66:$K$66,0,MATCH('RFPR cover'!$C$7,$D$6:$K$6,0))) -> 0.01470070336 | N40: =(AVERAGE(D59:K59)+AVERAGE(D60:K60))/AVERAGE($D$66:$K$66) -> 0.01365917889
B41: Tax performance - at actual gearing | C41: % | D41: =(D61+D62)/D$66 -> -0.002909687714 | E41: -0.004186154939 | F41: -0.002383103495 | G41: -0.003302845515 | H41: -0.0073674617 | I41: -0.003015341416 | J41: 0.00273626447 | K41: 0.003957455282 | M41: =(AVERAGE(D61:INDEX(D61:K61,0,MATCH('RFPR cover'!$C$7,$D$6:$K$6,0)))+AVERAGE(D62:INDEX(D62:K62,0,MATCH('RFPR cover'!$C$7,$D$6:$K$6,0))))/AVERAGE($D$66:INDEX($D$66:$K$66,0,MATCH('RFPR cover'!$C$7,$D$6:$K$6,0))) -> -0.002953682756 | N41: =(AVERAGE(D61:K61)+AVERAGE(D62:K62))/AVERAGE($D$66:$K$66) -> -0.002172744121
B42: =B63 -> RoRE - including financing and tax | C42: % | D42: =SUM(D39:D41) -> 0.0720914102 | E42: 0.05689411326 | F42: 0.0780892022 | G42: 0.07546607091 | H42: 0.1038259213 | I42: 0.1009570432 | J42: 0.08770758887 | K42: 0.09803349182 | M42: =SUM(M39:M41) -> 0.0810463837 | N42: =SUM(N39:N41) -> 0.08296587785
B45: RoRE input values
B46: ="Input values provided in "&'RFPR cover'!C14&" prices" -> Input values provided in £m 09/10 prices
B48: Equity Return on the RAV | C48: ='RFPR cover'!$C$14 -> £m 09/10 | D48: ='R9 - RAV'!D50 -> 57.9259241 | E48: ='R9 - RAV'!E50 -> 57.29220427 | F48: ='R9 - RAV'!F50 -> 56.8647969 | G48: ='R9 - RAV'!G50 -> 56.68722414 | H48: ='R9 - RAV'!H50 -> 56.53139222 | I48: ='R9 - RAV'!I50 -> 56.5726189 | J48: ='R9 - RAV'!J50 -> 56.92247045 | K48: ='R9 - RAV'!K50 -> 57.45719971 | M48: =SUM(D48:INDEX(D48:K48,0,MATCH('RFPR cover'!$C$7,$D$6:$K$6,0))) -> 398.796631 | N48: =SUM(D48:K48) -> 456.2538307
B49: Totex outperformance | C49: ='RFPR cover'!$C$14 -> £m 09/10 | D49: ='R4 - Totex'!D35+'R4 - Totex'!D63 -> -2.653946387 | E49: ='R4 - Totex'!E35+'R4 - Totex'!E63 -> -4.181389251 | F49: ='R4 - Totex'!F35+'R4 - Totex'!F63 -> 6.925591525 | G49: ='R4 - Totex'!G35+'R4 - Totex'!G63 -> -0.2177485948 | H49: ='R4 - Totex'!H35+'R4 - Totex'!H63 -> 2.123343763 | I49: ='R4 - Totex'!I35+'R4 - Totex'!I63 -> 8.003005637 | J49: ='R4 - Totex'!J35+'R4 - Totex'!J63 -> 3.330788877 | K49: ='R4 - Totex'!K35+'R4 - Totex'!K63 -> 10.72597465 | M49: =SUM(D49:INDEX(D49:K49,0,MATCH('RFPR cover'!$C$7,$D$6:$K$6,0))) -> 13.32964557 | N49: 24.05562022
B50: IQI Reward | C50: ='RFPR cover'!$C$14 -> £m 09/10 | D50: ='R4 - Totex'!D79 -> 1.106609817 | E50: ='R4 - Totex'!E79 -> 1.083723235 | F50: ='R4 - Totex'!F79 -> 1.080612809 | G50: ='R4 - Totex'!G79 -> 1.085449759 | H50: ='R4 - Totex'!H79 -> 1.101449047 | I50: ='R4 - Totex'!I79 -> 1.09361948 | J50: ='R4 - Totex'!J79 -> 1.077173098 | K50: ='R4 - Totex'!K79 -> 1.067137818 | M50: =SUM(D50:INDEX(D50:K50,0,MATCH('RFPR cover'!$C$7,$D$6:$K$6,0))) -> 7.628637245 | N50: 8.695775063
B51: ='R5 - Output Incentives'!B39 -> Broad Measure of Customer Satisfaction | C51: ='RFPR cover'!$C$14 -> £m 09/10 | D51: ='R5 - Output Incentives'!D39 -> 1.753931143 | E51: ='R5 - Output Incentives'!E39 -> 1.133942265 | F51: ='R5 - Output Incentives'!F39 -> 2.085728748 | G51: ='R5 - Output Incentives'!G39 -> 2.717056731 | H51: ='R5 - Output Incentives'!H39 -> 2.692438761 | I51: ='R5 - Output Incentives'!I39 -> 2.612136767 | J51: ='R5 - Output Incentives'!J39 -> 2.728413312 | K51: ='R5 - Output Incentives'!K39 -> 2.681625379 | M51: =SUM(D51:INDEX(D51:K51,0,MATCH('RFPR cover'!$C$7,$D$6:$K$6,0))) -> 15.72364773 | N51: 18.40527311
B52: ='R5 - Output Incentives'!B40 -> Shrinkage Allowance Revenue Adjustment | C52: ='RFPR cover'!$C$14 -> £m 09/10 | D52: ='R5 - Output Incentives'!D40 -> 0.5868707394 | E52: ='R5 - Output Incentives'!E40 -> 0.4310995 | F52: ='R5 - Output Incentives'!F40 -> 0.3821718131 | G52: ='R5 - Output Incentives'!G40 -> 0.2338884265 | H52: ='R5 - Output Incentives'!H40 -> 0.2490424988 | I52: ='R5 - Output Incentives'!I40 -> 0.4525422383 | J52: ='R5 - Output Incentives'!J40 -> 0.1966518642 | K52: ='R5 - Output Incentives'!K40 -> 0.2557989532 | M52: =SUM(D52:INDEX(D52:K52,0,MATCH('RFPR cover'!$C$7,$D$6:$K$6,0))) -> 2.53226708 | N52: 2.788066033
B53: ='R5 - Output Incentives'!B41 -> Environment Emissions Incentive | C53: ='RFPR cover'!$C$14 -> £m 09/10 | D53: ='R5 - Output Incentives'!D41 -> 1.823431236 | E53: ='R5 - Output Incentives'!E41 -> 1.934197426 | F53: ='R5 - Output Incentives'!F41 -> 2.143946805 | G53: ='R5 - Output Incentives'!G41 -> 1.416119312 | H53: ='R5 - Output Incentives'!H41 -> 1.33763751 | I53: ='R5 - Output Incentives'!I41 -> 1.973584063 | J53: ='R5 - Output Incentives'!J41 -> 1.851982404 | K53: ='R5 - Output Incentives'!K41 -> 3.380475101 | M53: =SUM(D53:INDEX(D53:K53,0,MATCH('RFPR cover'!$C$7,$D$6:$K$6,0))) -> 12.48089876 | N53: 15.86137386
B54: ='R5 - Output Incentives'!B42 -> Discretionary Reward Scheme | C54: ='RFPR cover'!$C$14 -> £m 09/10 | D54: ='R5 - Output Incentives'!D42 -> 0.06568913824 | E54: ='R5 - Output Incentives'!E42 -> 0.06568913824 | F54: ='R5 - Output Incentives'!F42 -> 0.04222185419 | G54: ='R5 - Output Incentives'!G42 -> 0.04222185419 | H54: ='R5 - Output Incentives'!H42 -> 0.04222185419 | I54: ='R5 - Output Incentives'!I42 -> 0 | J54: ='R5 - Output Incentives'!J42 -> 0 | K54: ='R5 - Output Incentives'!K42 -> 0 | M54: =SUM(D54:INDEX(D54:K54,0,MATCH('RFPR cover'!$C$7,$D$6:$K$6,0))) -> 0.258043839 | N54: 0.258043839
B55: ='R5 - Output Incentives'!B43 -> NTS Exit Capacity | C55: ='RFPR cover'!$C$14 -> £m 09/10 | D55: ='R5 - Output Incentives'!D43 -> 1.23544576 | E55: ='R5 - Output Incentives'!E43 -> 3.737535784 | F55: ='R5 - Output Incentives'!F43 -> 7.858615553 | G55: ='R5 - Output Incentives'!G43 -> 5.461701834 | H55: ='R5 - Output Incentives'!H43 -> 5.499132954 | I55: ='R5 - Output Incentives'!I43 -> 5.708830282 | J55: ='R5 - Output Incentives'!J43 -> 4.398703153 | K55: ='R5 - Output Incentives'!K43 -> 3.289519625 | M55: =SUM(D55:INDEX(D55:K55,0,MATCH('RFPR cover'!$C$7,$D$6:$K$6,0))) -> 33.89996532 | N55: 37.18948495
B56: Network Innovation | C56: ='RFPR cover'!$C$14 -> £m 09/10 | D56: =-'R6 - Innovation'!D28 -> -0.09557387064 | E56: =-'R6 - Innovation'!E28 -> -0.2350299802 | F56: =-'R6 - Innovation'!F28 -> -0.3738555311 | G56: =-'R6 - Innovation'!G28 -> -0.3955169222 | H56: =-'R6 - Innovation'!H28 -> -0.3680375113 | I56: =-'R6 - Innovation'!I28 -> -0.2216032817 | J56: =-'R6 - Innovation'!J28 -> -0.3587246242 | K56: =-'R6 - Innovation'!K28 -> -0.2725792248 | M56: =SUM(D56:INDEX(D56:K56,0,MATCH('RFPR cover'!$C$7,$D$6:$K$6,0))) -> -2.048341721 | N56: -2.320920946
B57: Penalties and fines | C57: ='RFPR cover'!$C$14 -> £m 09/10 | D57: =-'R13 - Other Activities'!D8 -> -0.5155191548 | E57: =-'R13 - Other Activities'!E8 -> -0.6007756322 | F57: =-'R13 - Other Activities'!F8 -> -0.4627472366 | G57: =-'R13 - Other Activities'!G8 -> -0.7895153189 | H57: =-'R13 - Other Activities'!H8 -> -0.2144369196 | I57: =-'R13 - Other Activities'!I8 -> -0.7108874942 | J57: =-'R13 - Other Activities'!J8 -> -0.3600571791 | K57: =-'R13 - Other Activities'!K8 -> -0.5844736638 | M57: =SUM(D57:INDEX(D57:K57,0,MATCH('RFPR cover'!$C$7,$D$6:$K$6,0))) -> -3.653938935 | N57: -4.238412599
B58: RoRE - Operational performance | C58: ='RFPR cover'!$C$14 -> £m 09/10 | D58: =SUM(D48:D57) -> 61.23286252 | E58: 60.66119676 | F58: 76.54708324 | G58: 66.24088122 | H58: 68.99418418 | I58: 75.48384659 | J58: 69.78740136 | K58: 78.00067835 | M58: =SUM(M48:M57) -> 478.9474559 | N58: =SUM(N48:N57) -> 556.9481342
B59: Debt performance - at notional gearing | C59: ='RFPR cover'!$C$14 -> £m 09/10 | D59: ='R7 - Financing'!D90+'R10 - Tax'!D90 -> 22.2648171 | E59: ='R7 - Financing'!E90+'R10 - Tax'!E90 -> -1.006452439 | F59: ='R7 - Financing'!F90+'R10 - Tax'!F90 -> 5.979094309 | G59: ='R7 - Financing'!G90+'R10 - Tax'!G90 -> 10.06191191 | H59: ='R7 - Financing'!H90+'R10 - Tax'!H90 -> 30.98771053 | I59: ='R7 - Financing'!I90+'R10 - Tax'!I90 -> 16.49824587 | J59: ='R7 - Financing'!J90+'R10 - Tax'!J90 -> 4.081474896 | K59: ='R7 - Financing'!K90+'R10 - Tax'!K90 -> 4.342982239 | M59: =SUM(D59:INDEX(D59:K59,0,MATCH('RFPR cover'!$C$7,$D$6:$K$6,0))) -> 88.86680216 | N59: =SUM(D59:K59) -> 93.2097844
B60: Debt performance - impact of actual gearing | C60: ='RFPR cover'!$C$14 -> £m 09/10 | D60: ='R7 - Financing'!D92+'R10 - Tax'!D91 -> 2.679657597 | E60: ='R7 - Financing'!E92+'R10 - Tax'!E91 -> 3.860324123 | F60: ='R7 - Financing'!F92+'R10 - Tax'!F91 -> 2.867669923 | G60: ='R7 - Financing'!G92+'R10 - Tax'!G91 -> 1.84305682 | H60: ='R7 - Financing'!H92+'R10 - Tax'!H91 -> 0.1983422082 | I60: ='R7 - Financing'!I92+'R10 - Tax'!I91 -> 0.4350397929 | J60: ='R7 - Financing'!J92+'R10 - Tax'!J91 -> 0.8498170554 | K60: ='R7 - Financing'!K92+'R10 - Tax'!K91 -> 0.484868135 | M60: =SUM(D60:INDEX(D60:K60,0,MATCH('RFPR cover'!$C$7,$D$6:$K$6,0))) -> 12.73390752 | N60: =SUM(D60:K60) -> 13.21877565
B61: Tax performance - at notional gearing | C61: ='RFPR cover'!$C$14 -> £m 09/10 | D61: ='R10 - Tax'!D83-'R10 - Tax'!D90 -> -3.343272915 | E61: ='R10 - Tax'!E83-'R10 - Tax'!E90 -> -4.353024721 | F61: ='R10 - Tax'!F83-'R10 - Tax'!F90 -> -2.528849827 | G61: ='R10 - Tax'!G83-'R10 - Tax'!G90 -> -3.276719824 | H61: ='R10 - Tax'!H83-'R10 - Tax'!H90 -> -6.637751622 | I61: ='R10 - Tax'!I83-'R10 - Tax'!I90 -> -2.680223286 | J61: ='R10 - Tax'!J83-'R10 - Tax'!J90 -> 2.406107086 | K61: ='R10 - Tax'!K83-'R10 - Tax'!K90 -> 3.484311314 | M61: =SUM(D61:INDEX(D61:K61,0,MATCH('RFPR cover'!$C$7,$D$6:$K$6,0))) -> -20.41373511 | N61: =SUM(D61:K61) -> -16.9294238
B62: Tax performance - impact of actual gearing | C62: ='RFPR cover'!$C$14 -> £m 09/10 | D62: ='R10 - Tax'!D85-'R10 - Tax'!D91 -> 8.881784197e-16 | E62: ='R10 - Tax'!E85-'R10 - Tax'!E91 -> 8.881784197e-16 | F62: ='R10 - Tax'!F85-'R10 - Tax'!F91 -> 3.552713679e-15 | G62: ='R10 - Tax'!G85-'R10 - Tax'!G91 -> -1.776356839e-15 | H62: ='R10 - Tax'!H85-'R10 - Tax'!H91 -> 4.440892099e-16 | I62: ='R10 - Tax'!I85-'R10 - Tax'!I91 -> -8.881784197e-16 | J62: ='R10 - Tax'!J85-'R10 - Tax'!J91 -> -8.881784197e-16 | K62: ='R10 - Tax'!K85-'R10 - Tax'!K91 -> 0 | M62: =SUM(D62:INDEX(D62:K62,0,MATCH('RFPR cover'!$C$7,$D$6:$K$6,0))) -> 2.220446049e-15 | N62: =SUM(D62:K62) -> 2.220446049e-15
B63: RoRE - including financing and tax | C63: ='RFPR cover'!$C$14 -> £m 09/10 | D63: =SUM(D58:D62) -> 82.8340643 | E63: 59.16204372 | F63: 82.86499765 | G63: 74.86913012 | H63: 93.54248529 | I63: 89.73690897 | J63: 77.1248004 | K63: 86.31284003 | M63: =SUM(M58:M62) -> 560.1344304 | N63: =SUM(N58:N62) -> 646.4472705
B65: NPV-neutral equity element of RAV | C65: ='RFPR cover'!$C$14 -> £m 09/10 | D65: ='R9 - RAV'!D46 -> 864.5660313 | E65: ='R9 - RAV'!E46 -> 855.1075264 | F65: ='R9 - RAV'!F46 -> 848.728312 | G65: ='R9 - RAV'!G46 -> 846.0779722 | H65: ='R9 - RAV'!H46 -> 843.7521227 | I65: ='R9 - RAV'!I46 -> 844.3674462 | J65: ='R9 - RAV'!J46 -> 849.5891112 | K65: ='R9 - RAV'!K46 -> 857.5701449
B66: Equity RAV based on actual gearing | C66: ='RFPR cover'!$C$14 -> £m 09/10 | D66: ='R8 - Net Debt'!D62 -> 1149.014343 | E66: ='R8 - Net Debt'!E62 -> 1039.862304 | F66: ='R8 - Net Debt'!F62 -> 1061.158205 | G66: ='R8 - Net Debt'!G62 -> 992.0899447 | H66: ='R8 - Net Debt'!H62 -> 900.9550227 | I66: ='R8 - Net Debt'!I62 -> 888.8622932 | J66: ='R8 - Net Debt'!J62 -> 879.3401049 | K66: ='R8 - Net Debt'!K62 -> 880.4423716

Sheet R2 - Revenue
A1: R2 - Revenue
A2: ='RFPR cover'!C5 -> Cadent-EOE
A3: ='RFPR cover'!C7 -> 2020
D5: =IF(D6<='RFPR cover'!$C$7,"Actuals","Forecast") -> Actuals | E5: =IF(E6<='RFPR cover'!$C$7,"Actuals","Forecast") -> Actuals | F5: =IF(F6<='RFPR cover'!$C$7,"Actuals","Forecast") -> Actuals | G5: =IF(G6<='RFPR cover'!$C$7,"Actuals","Forecast") -> Actuals | H5: =IF(H6<='RFPR cover'!$C$7,"Actuals","Forecast") -> Actuals | I5: =IF(I6<='RFPR cover'!$C$7,"Actuals","Forecast") -> Actuals | J5: =IF(J6<='RFPR cover'!$C$7,"Actuals","Forecast") -> Actuals | K5: =IF(K6<='RFPR cover'!$C$7,"Actuals","Forecast") -> Forecast
D6: ='RFPR cover'!$C$13 -> 2014 | E6: =D6+1 -> 2015 | F6: 2016 | G6: 2017 | H6: 2018 | I6: 2019 | J6: 2020 | K6: 2021
B8: Allowed Revenue - per latest submitted Revenue Return
B10: Opening Base Revenue Allowance | C10: ='RFPR cover'!$C$14 -> £m 09/10 | D10: 525.5 | E10: 506.4 | F10: 509.7 | G10: 500.2 | H10: 499 | I10: 497.9 | J10: 495.1
B11: MOD | C11: ='RFPR cover'!$C$14 -> £m 09/10 | D11: 0 | E11: -3.2 | F11: -7.6 | G11: -13.6 | H11: -12.3 | I11: -13.1 | J11: -21.5
B12: True Up | C12: ='RFPR cover'!$C$14 -> £m 09/10 | D12: 0 | E12: 0 | F12: 1.79702182 | G12: -7.11209011 | H12: -10.9701259 | I12: -1.92717515 | J12: 1.284369146
B13: Retail Price Index Forecast (RPIF term) | C13: Index | D13: 1.163016333 | E13: 1.205083814 | F13: 1.226652821 | G13: 1.232733287 | H13: 1.270922538 | I13: 1.314024254 | J13: 1.358588448
B14: Nominal Base Revenue | C14: £m nominal | D14: =SUM(D10:D12)*D13 -> 611.165083 | E14: 606.3981754 | F14: 618.1067034 | G14: 591.0807074 | H14: 604.6158191 | I14: 634.5066036 | J14: 645.1724179 | K14: 0
B15: Incentive revenue adjustment | C15: £m nominal | D15: ='R5 - Output Incentives'!D102 -> 0.3272481 | E15: ='R5 - Output Incentives'!E102 -> 0.30502755 | F15: ='R5 - Output Incentives'!F102 -> 7.99708247 | G15: ='R5 - Output Incentives'!G102 -> 11.59700658 | H15: ='R5 - Output Incentives'!H102 -> 20.12273983 | I15: ='R5 - Output Incentives'!I102 -> 16.14434186 | J15: ='R5 - Output Incentives'!J102 -> 16.85801472 | K15: ='R5 - Output Incentives'!K102 -> 18.52401439
B16: Adjustments for Allowed Pass-Through items | C16: £m nominal | D16: 0.10414516 | E16: 0.02295513 | F16: 1.62233598 | G16: 1.94841504 | H16: 5.9483852 | I16: 5.96082329 | J16: -2.035863169
B17: Network Innovation Allowance | C17: £m nominal | D17: ='R6 - Innovation'!D12 -> 0.92245514 | E17: ='R6 - Innovation'!E12 -> 2.51623262 | F17: ='R6 - Innovation'!F12 -> 3.14563328 | G17: ='R6 - Innovation'!G12 -> 2.50425 | H17: ='R6 - Innovation'!H12 -> 2.42023807 | I17: ='R6 - Innovation'!I12 -> 1.603326713 | J17: ='R6 - Innovation'!J12 -> 2.008314144 | K17: ='R6 - Innovation'!K12 -> 2.311514552
B18: Low Carbon Networks Fund revenue adjustment | C18: £m nominal | D18: ='R6 - Innovation'!D17 -> 0 | E18: ='R6 - Innovation'!E17 -> 0 | F18: ='R6 - Innovation'!F17 -> 0 | G18: ='R6 - Innovation'!G17 -> 0 | H18: ='R6 - Innovation'!H17 -> 0 | I18: ='R6 - Innovation'!I17 -> 0 | J18: ='R6 - Innovation'!J17 -> 0 | K18: ='R6 - Innovation'!K17 -> 0
B19: NTS Exit Capacity Cost Adjustment | C19: £m nominal | D19: 0 | E19: 0 | F19: -2.29650987 | G19: -4.10947234 | H19: -7.58485922 | I19: -6.49263783 | J19: -6.82728962
B20: Shrinkage Cost Adjustment | C20: £m nominal | D20: 0 | E20: 0 | F20: -2.59062413 | G20: -6.07471599 | H20: -7.95663334 | I20: -4.32595238 | J20: -3.247126377
B21: [Input description] | C21: £m nominal | D21: 0 | E21: 0 | F21: 0 | G21: 0 | H21: 0 | I21: 0 | J21: 0
B22: [Input description] | C22: £m nominal | D22: 0 | E22: 0 | F22: 0 | G22: 0 | H22: 0 | I22: 0 | J22: 0
B23: [Input description] | C23: £m nominal | D23: 0 | E23: 0 | F23: 0 | G23: 0 | H23: 0 | I23: 0 | J23: 0
B24: [Input description] | C24: £m nominal | D24: 0 | E24: 0 | F24: 0 | G24: 0 | H24: 0 | I24: 0 | J24: 0
B25: Correction factor | C25: £m nominal | D25: -5.93797057 | E25: 0 | F25: 2.90256308 | G25: 0.3134313 | H25: -0.1339372 | I25: 4.70339765 | J25: 1.84873531
B26: Allowed Network Revenue | C26: £m nominal | D26: =SUM(D14:D24,-D25) -> 618.456902 | E26: 609.2423907 | F26: 623.0820581 | G26: 596.6327594 | H26: 617.6996268 | I26: 642.6931076 | J26: 650.0797323 | K26: 20.83552894
B28: (Under) / Over recovery | D28: =IF(ISBLANK(D33),0,D33-D26) -> 2.789853019 | E28: 0.3012603783 | F28: -0.1289431888 | G28: 4.534603146 | H28: 1.776652581 | I28: 3.200103219 | J28: 1.708065661 | K28: 0
B31: Reconciliation: Regulated Network Revenue to Accounts
B33: Collected Regulated Network Revenue | D33: 621.246755 | E33: 609.5436511 | F33: 622.9531149 | G33: 601.1673625 | H33: 619.4762794 | I33: 645.8932109 | J33: 651.787798
B35: Other Turnover Items
B36: Network Innovation Competition (NIC) payments received from SO | C36: £m nominal | D36: 0 | E36: 0 | F36: 0 | G36: 0 | H36: 0 | I36: 0 | J36: 0
B37: Legacy Metering Equipment charges | C37: £m nominal | D37: 0 | E37: 0 | F37: 0 | G37: 0 | H37: 0 | I37: 0 | J37: 0
B38: Directly Remunerated Services revenue | C38: £m nominal | D38: 0 | E38: 0 | F38: 0 | G38: 0 | H38: 0 | I38: 0 | J38: 0
B39: Network Asset Secondary Deliverables incentive/penalty | C39: £m nominal | D39: 0 | E39: 0 | F39: 0 | G39: 0 | H39: 0 | I39: 0 | J39: 0
B40: Charging outside the Distribution Services Area (Out of Area Charges) | C40: £m nominal | D40: 0 | E40: 0 | F40: 0 | G40: 0 | H40: 0 | I40: 0 | J40: 0
B41: De Minimis Business of the licensee | C41: £m nominal | D41: 0.3365281228 | E41: 1.675831479 | F41: 1.457056703 | G41: 3.423352033 | H41: 4.544852225 | I41: 3.33871285 | J41: 1.97520991
B42: Other consented activities | C42: £m nominal | D42: 0 | E42: 0 | F42: 0 | G42: 0 | H42: 0 | I42: 0 | J42: 0
B43: Data Services revenue | C43: £m nominal | D43: 0 | E43: 0 | F43: 0 | G43: 0 | H43: 0 | I43: 0 | J43: 0
B44: [Input description, add additional rows as required] | C44: £m nominal | D44: 0 | E44: 0 | F44: 0 | G44: 0 | H44: 0 | I44: 0 | J44: 0
B45: Total Other Turnover Items | C45: £m nominal | D45: =SUM(D36:D44) -> 0.3365281228 | E45: 1.675831479 | F45: 1.457056703 | G45: 3.423352033 | H45: 4.544852225 | I45: 3.33871285 | J45: 1.97520991 | K45: 0
B47: Other adjustments - please list
B48: Excluded Services (Inc. Customer Contributions) | C48: £m nominal | D48: 7.623142404 | E48: 6.091598003 | F48: 6.662760351 | G48: 6.972170302 | H48: 6.893831572 | I48: 8.362411521 | J48: 7.480216566
B49: Meter Reading and metering | C49: £m nominal | D49: 15.59508264 | E49: 13.5842405 | F49: 12.15248572 | G49: 6.662657357 | H49: 5.215519142 | I49: 5.233092041 | J49: 5.321644008
B50: Services provided under consents | C50: £m nominal | D50: 3.067640783 | E50: 3.765469421 | F50: 3.42223793 | G50: 3.209909076 | H50: 1.325130532 | I50: 1.530121318 | J50: 1.521733786
B51: Other transportation Revenue | C51: £m nominal | D51: 0 | E51: 0 | F51: 0 | G51: 0.08763980898 | H51: -0.08763980898 | I51: 0.1258081535 | J51: 0.1602423152
B52: Customer contributions | C52: £m nominal | D52: 0.11166664 | E52: 0.4678842 | F52: 0 | G52: 0 | H52: 0 | I52: 0 | J52: 0
B53: Xoserve | C53: £m nominal | D53: 18.21307234 | E53: 19.35117626 | F53: 18.51316837 | G53: 0 | H53: 0 | I53: 0 | J53: 0
B54: Elimination of Inter Group/Business Trading | C54: £m nominal | D54: -45.70734259 | E54: -36.43455694 | F54: -27.3579207 | G54: 0 | H54: 0 | I54: 0 | J54: 0
B55: Revenue classified as expenditure | C55: £m nominal | D55: 0 | E55: 0 | F55: 0 | G55: 2.548244958 | H55: 0 | I55: 0 | J55: 0
B56: Other three network revenues | C56: £m nominal | D56: 1249.091499 | E56: 1229.820866 | F56: 1272.761813 | G56: 1263.097966 | H56: 1214.446824 | I56: 1308.231557 | J56: 1422.686905
B57: Metering | C57: £m nominal | D57: 321 | E57: 309 | F57: 300 | G57: 0 | H57: 0 | I57: 0 | J57: 0
B58: IFRS 15 Contribution released | C58: £m nominal | D58: 0 | E58: 0 | F58: 0 | G58: 0 | H58: 0 | I58: 21.9970921 | J58: 22.31658366
B59: [Input description] | C59: £m nominal | D59: 0 | E59: 0 | F59: 0 | G59: 0 | H59: 0 | I59: 0 | J59: 0
B60: [Input description] | C60: £m nominal | D60: 0 | E60: 0 | F60: 0 | G60: 0 | H60: 0 | I60: 0 | J60: 0
B61: [Input description] | C61: £m nominal | D61: 0 | E61: 0 | F61: 0 | G61: 0 | H61: 0 | I61: 0 | J61: 0
B62: [Input description] | C62: £m nominal | D62: 0 | E62: 0 | F62: 0 | G62: 0 | H62: 0 | I62: 0 | J62: 0
B63: Roundings | C63: £m nominal | D63: 0.4 | E63: 1.1 | F63: 0.4 | G63: -0.2 | H63: 0.1 | I63: 0.28799428 | J63: 1.749667023
B64: Total other adjustments | C64: £m nominal | D64: =SUM(D48:D63) -> 1569.394761 | E64: 1546.746677 | F64: 1586.554545 | G64: 1282.378587 | H64: 1227.893666 | I64: 1345.768076 | J64: 1461.236992 | K64: 0
B66: Reconciled total revenue | C66: £m nominal | D66: =D33+D45+D64 -> 2190.978045 | E66: 2157.96616 | F66: 2210.964717 | G66: 1886.969302 | H66: 1851.914797 | I66: 1995 | J66: 2115 | K66: 0
B67: Turnover as per Profit and Loss (Accounts) | C67: £m nominal | D67: 2191 | E67: 2158 | F67: 2211 | G67: 1887 | H67: 1852 | I67: 1995 | J67: 2115
B68: Check | D68: =IF(ABS(D66-D67)<'RFPR cover'!$F$14,"OK","Error") -> OK | E68: =IF(ABS(E66-E67)<'RFPR cover'!$F$14,"OK","Error") -> OK | F68: =IF(ABS(F66-F67)<'RFPR cover'!$F$14,"OK","Error") -> OK | G68: =IF(ABS(G66-G67)<'RFPR cover'!$F$14,"OK","Error") -> OK | H68: =IF(ABS(H66-H67)<'RFPR cover'!$F$14,"OK","Error") -> OK | I68: =IF(ABS(I66-I67)<'RFPR cover'!$F$14,"OK","Error") -> OK | J68: =IF(ABS(J66-J67)<'RFPR cover'!$F$14,"OK","Error") -> OK | K68: =IF(ABS(K66-K67)<'RFPR cover'!$F$14,"OK","Error") -> OK

Sheet R3 - Rec to totex
A1: R3 - Reconciliation to totex
A2: ='RFPR cover'!C5 -> Cadent-EOE
A3: ='RFPR cover'!C7 -> 2020
D5: =IF(D6<='RFPR cover'!$C$7,"Actuals","N/A") -> Actuals | E5: =IF(E6<='RFPR cover'!$C$7,"Actuals","N/A") -> Actuals | F5: =IF(F6<='RFPR cover'!$C$7,"Actuals","N/A") -> Actuals | G5: =IF(G6<='RFPR cover'!$C$7,"Actuals","N/A") -> Actuals | H5: =IF(H6<='RFPR cover'!$C$7,"Actuals","N/A") -> Actuals | I5: =IF(I6<='RFPR cover'!$C$7,"Actuals","N/A") -> Actuals | J5: =IF(J6<='RFPR cover'!$C$7,"Actuals","N/A") -> Actuals | K5: =IF(K6<='RFPR cover'!$C$7,"Actuals","N/A") -> N/A
D6: ='RFPR cover'!$C$13 -> 2014 | E6: =D6+1 -> 2015 | F6: 2016 | G6: 2017 | H6: 2018 | I6: 2019 | J6: 2020 | K6: 2021
B8: Total Expenditure Per Accounts
B9: Tangible Fixed Asset Additions | C9: £m nominal | D9: 509 | E9: 520 | F9: 581 | G9: 549 | H9: 610 | I9: 706 | J9: 815
B10: Intangible Asset Additions (under IFRS) - IT Software | C10: £m nominal | D10: 35 | E10: 40 | F10: 24 | G10: 11 | H10: 2 | I10: 30 | J10: 46
B11: Disposals (cash proceeds) [If Statutory Accounts treat this as an exceptional item, leave the input blank] | C11: £m nominal | D11: 0 | E11: 0 | F11: 0 | G11: 0 | H11: 0 | I11: -2 | J11: -1
B12: Customer Contributions Additions | C12: £m nominal | D12: -21.08830086 | E12: -20.50484706 | F12: -22.98658171 | G12: -39.2042886 | H12: -59 | I12: -109 | J12: -94
B13: Capitalised interest | C13: £m nominal | D13: -2 | E13: -2 | F13: 0 | G13: -1 | H13: 0 | I13: 0 | J13: 0
B14: Revaluation of tangible fixed assets | C14: £m nominal | D14: 0 | E14: 0 | F14: 0 | G14: 0 | H14: 0 | I14: 0 | J14: 0
A15: 1 | B15: [Input description] | C15: £m nominal | D15: 0 | E15: 0 | F15: 0 | G15: 0 | H15: 0 | I15: 0 | J15: 0
A16: 2 | B16: [Input description] | C16: £m nominal | D16: 0 | E16: 0 | F16: 0 | G16: 0 | H16: 0 | I16: 0 | J16: 0
A17: 3 | B17: [Input description] | C17: £m nominal | D17: 0 | E17: 0 | F17: 0 | G17: 0 | H17: 0 | I17: 0 | J17: 0
B18: Capex Incurred | C18: £m nominal | D18: =SUM(D9:D17) -> 520.9116991 | E18: 537.4951529 | F18: 582.0134183 | G18: 519.7957114 | H18: 553 | I18: 625 | J18: =SUM(J9:J17) -> 766 | K18: 0
B19: Operational Costs Incurred | C19: £m nominal | D19: 1187 | E19: 1153 | F19: 1178 | G19: 1129 | H19: 1128 | I19: 1182 | J19: 1191
A20: 1 | B20: [Input description] | C20: £m nominal | D20: 0 | E20: 0 | F20: 0 | G20: 0 | H20: 0 | I20: 0 | J20: 0
A21: 2 | B21: [Input description] | C21: £m nominal | D21: 0 | E21: 0 | F21: 0 | G21: 0 | H21: 0 | I21: 0 | J21: 0
A22: 3 | B22: [Input description] | C22: £m nominal | D22: 0 | E22: 0 | F22: 0 | G22: 0 | H22: 0 | I22: 0 | J22: 0
B23: Total Expenditure Incurred | C23: £m nominal | D23: =SUM(D18:D22) -> 1707.911699 | E23: 1690.495153 | F23: 1760.013418 | G23: 1648.795711 | H23: 1681 | I23: 1807 | J23: 1957 | K23: 0
B25: Reconciling Items to Total Net costs after non-price control allocations | C25: £m nominal
A26: 1 | B26: Total expenditure relating to excluded services (deminimis, excluded, consented and meter reading) | C26: £m nominal | D26: -88.77479166 | E26: -86.64717082 | F26: -66.48738517 | G26: -42.34823526 | H26: -33 | I26: -31.2133087 | J26: -29.41254488
A27: 2 | B27: Depreciation & amortisation of Intangibles | C27: £m nominal | D27: -271 | E27: -287 | F27: -298 | G27: -309 | H27: -305 | I27: -319 | J27: -343
A28: 3 | B28: Customer Contribution Amortisation | C28: £m nominal | D28: 21.10836141 | E28: 21.59868519 | F28: 22.23225969 | G28: 22.23225969 | H28: 20.73451775 | I28: 0 | J28: 0
A29: 4 | B29: Total expenditure relating to Metering business | C29: £m nominal | D29: -215 | E29: -199 | F29: -179 | G29: 0 | H29: 0 | I29: 0 | J29: 0
A30: 5 | B30: Inter business unit charging elimination | C30: £m nominal | D30: 45.70734259 | E30: 36.43455694 | F30: 27.3579207 | G30: 0 | H30: 0 | I30: 0 | J30: 0
A31: 6 | B31: Profit / (Loss) on disposal | C31: £m nominal | D31: 83 | E31: 40 | F31: 0 | G31: -11 | H31: 0.4511035798 | I31: 2 | J31: 3
A32: 7 | B32: Cadent Total GSOP Payments | C32: £m nominal | D32: -1.802924563 | E32: -2.269957382 | F32: -2.87115647 | G32: -3.112271917 | H32: -2.916930748 | I32: -3.31741929 | J32: -5.00557129
A33: 8 | B33: Network Innovation Competition Costs | C33: £m nominal | D33: 0 | E33: 0 | F33: 0 | G33: -0.03567741 | H33: -1.06975698 | I33: -0.72411407 | J33: -0.99611846
A34: 9 | B34: Supplier of Last Resort (SoLR) | C34: £m nominal | D34: 0 | E34: 0 | F34: 0 | G34: 0 | H34: 0 | I34: -3.18509389 | J34: -3.1000725
A35: 10 | B35: Cash typical adjustments (provision movements) | C35: £m nominal | D35: -30 | E35: -1 | F35: 0 | G35: -15 | H35: -1 | I35: -6 | J35: -39
A36: 11 | B36: Atypical items - Separation expenditure (Opex) | C36: £m nominal | D36: 0 | E36: 0 | F36: 0 | G36: -4.91904316 | H36: -21.22645788 | I36: -17.52971129 | J36: -19
A37: 12 | B37: Atypical items - Separation expenditure (Capex) | C37: £m nominal | D37: 0 | E37: 0 | F37: 0 | G37: 0 | H37: 0 | I37: 0 | J37: -5.92985427
A38: 13 | B38: Atypical Items - Grenfell investigation | C38: £m nominal | D38: 0 | E38: 0 | F38: 0 | G38: 0 | H38: -1.35563067 | I38: -1.09242274 | J38: 0.73110853
A39: 14 | B39: Atypical Items - Energy Savings Trust contributions | C39: £m nominal | D39: 0 | E39: 0 | F39: 0 | G39: 0 | H39: 0 | I39: -8.9 | J39: 0
A40: 15 | B40: Atypical Items - HRB recovery programme costs | C40: £m nominal | D40: 0 | E40: 0 | F40: 0 | G40: 0 | H40: 0 | I40: -3.67517683 | J40: -0.08331893
A41: 16 | B41: Atypical Items - Guaranteed minimum pensions payments | C41: £m nominal | D41: 0 | E41: 0 | F41: 0 | G41: 0 | H41: 0 | I41: -14 | J41: 0
A42: 17 | B42: Atypical Items - Service transformation costs | C42: £m nominal | D42: 0 | E42: 0 | F42: 0 | G42: 0 | H42: 0 | I42: -0.61276066 | J42: 0
A43: 18 | B43: Atypical Items - Donation to National Energy Action | C43: £m nominal | D43: 0 | E43: 0 | F43: -3 | G43: 0 | H43: 0 | I43: 0 | J43: 0
A44: 19 | B44: Atypical items - Legal fines and penalties | C44: £m nominal | D44: 0 | E44: 0 | F44: -3 | G44: 0 | H44: 0 | I44: 0 | J44: 0
A45: 20 | B45: Atypical Items - Enhanced GSOP payments | C45: £m nominal | D45: 0 | E45: 0 | F45: 0 | G45: 0 | H45: -1.33857 | I45: 0 | J45: 0
A46: 21 | B46: Atypical Items - Establishment of a Community Fund | C46: £m nominal | D46: 0 | E46: 0 | F46: 0 | G46: 0 | H46: 0 | I46: -4.123628 | J46: -5.691342
A47: 22 | B47: IFRS 16 Impact | C47: £m nominal | D47: 0 | E47: 0 | F47: 0 | G47: 0 | H47: 0 | I47: 0 | J47: 4.03311072
A48: 23 | B48: Total expenditure relating to other three networks | C48: £m nominal | D48: -837.1320106 | E48: -803.1382618 | F48: -845.9832223 | G48: -859.1018949 | H48: -904.1905044 | I48: -946.5945675 | J48: -1006.699428
A49: 24 | B49: Connections Income (including Biogas connections income) | C49: £m nominal | D49: -3.889162016 | E49: -3.958381518 | F49: -4.494577302 | G49: -5.097148025 | H49: -5.406634202 | I49: -6.195993578 | J49: -5.858772536
A50: 25 | B50: Ongoing Pension Costs Accrued under IAS 19 (-ve) | C50: £m nominal | D50: 1.217177529 | E50: 0.2580190355 | F50: -0.5507506714 | G50: -1.860962406 | H50: -3.093860856 | I50: 3.428641062 | J50: 0.0009406123932
A51: 26 | B51: Incremental pension deficit funding | C51: £m nominal | D51: 0 | E51: 0 | F51: 0 | G51: 0 | H51: 0.4058080369 | I51: 0.4297955701 | J51: 0.2680887519
A52: 27 | B52: Established pension deficit recovery plan payment | C52: £m nominal | D52: 0 | E52: 0 | F52: 0 | G52: 0 | H52: 12.99589902 | I52: 13.80918211 | J52: 8.398772361
A53: 28 | B53: A grossing up of costs and revenue in the regulatory accounts | C53: £m nominal | D53: 0 | E53: 0 | F53: 0 | G53: -2.315338205 | H53: 0 | I53: 0 | J53: 0
A54: 29 | B54: Adjustment for efficient level of fines | C54: £m nominal | D54: -0.5687007949 | E54: 0 | F54: 0 | G54: 0 | H54: 0 | I54: 0 | J54: 0
A55: 30 | B55: Cash typical adjustments (Utilisation) | C55: £m nominal | D55: -1.275120517 | E55: 6.680534827 | F55: 5.20109839 | G55: 0.992360368 | H55: 2.786890693 | I55: 1.834204658 | J55: 7.063822179
A56: 31 | B56: Cumulative impact of rounding in reg accounts | C56: £m nominal | D56: -0.4396448337 | E56: 1.225129883 | F56: 0.4325942051 | G56: -0.5561421694 | H56: -0.07188273061 | I56: 1.382949271 | J56: 1.324651379
B57: Total Reconciling Items | C57: £m nominal | D57: =SUM(D26:D56) -> -1298.849473 | E57: -1276.816846 | F57: -1348.163219 | G57: -1231.122093 | H57: -1242.296009 | I57: -1343.279424 | J57: -1438.956529 | K57: 0
B59: Total Net costs after non-price control allocations | C59: £m nominal | D59: =D57+D23 -> 409.0622257 | E59: 413.6783073 | F59: 411.8501993 | G59: 417.673618 | H59: 438.7039906 | I59: 463.7205762 | J59: 518.0434713 | K59: 0
B60: Total Costs per latest RRP submission | C60: £m nominal | D60: 409.0622257 | E60: 413.6783073 | F60: 411.8501993 | G60: 417.7251051 | H60: 438.7039906 | I60: 463.7205762 | J60: 518.0434713
C61: check | D61: =IF(D$5="Actuals",IF(ABS(D59-D60)<1,"OK","ERROR"),"N/A") -> OK | E61: OK | F61: OK | G61: OK | H61: OK | I61: OK | J61: OK | K61: N/A
B63: Reconciling Items to Totex
A64: 1 | B64: Shrinkage | C64: £m nominal | D64: 10.71950434 | E64: 8.19850715 | F64: 5.67707158 | G64: 5.727277251 | H64: 6.701000023 | I64: 8.372865425 | J64: 3.91895299
A65: 2 | B65: Ofgem Licence | C65: £m nominal | D65: 2.255 | E65: 2.337892009 | F65: 2.436571837 | G65: 2.055419431 | H65: 2.66436537 | I65: 2.765858156 | J65: 3.0646799
A66: 3 | B66: Network Rates | C66: £m nominal | D66: 60.472 | E66: 61.88025529 | F66: 63.28798595 | G66: 63.88986433 | H66: 63.16513294 | I66: 64.8671159 | J66: 78.419612
A67: 4 | B67: Established pension deficit recovery plan payment | C67: £m nominal | D67: 2.350311606 | E67: 4.161 | F67: 4.181002136 | G67: 4.25335679 | H67: 12.96017004 | I67: 13.80918211 | J67: 8.398772361
A68: 5 | B68: PPF levy costs | C68: £m nominal | D68: 0.02923737997 | E68: 0.247 | F68: 0.01912526287 | G68: 0.02044004757 | H68: 0.0357289799 | I68: 0.05776876047 | J68: 0.03619331882
A69: 6 | B69: Pension scheme administration costs | C69: £m nominal | D69: 0.2010069873 | E69: 0.214 | F69: 0.2139637098 | G69: 0.2141917254 | H69: 1.05325748 | I69: 1.195112581 | J69: 0.8603789964
A70: 7 | B70: NTS Pension Recharge | C70: £m nominal | D70: 7.529 | E70: 7.833468455 | F70: 10.98460426 | G70: 11.04162505 | H70: 7.10144247 | I70: 7.340064 | J70: 0
A71: 8 | B71: Bad debt | C71: £m nominal | D71: 0.06339931681 | E71: 0.183286374 | F71: -0.472841848 | G71: 0.2542679548 | H71: 0.6166123794 | I71: 0.03773307769 | J71: 0.2144078747
A72: 9 | B72: NTS exit costs | C72: £m nominal | D72: 26.804 | E72: 25.64830559 | F72: 23.16710006 | G72: 24.77708606 | H72: 25.42635765 | I72: 19.69204463 | J72: 21.83865456
A73: 10 | B73: Network Innovation (ex IRM) | C73: £m nominal | D73: 1.038329232 | E73: 2.996861206 | F73: 3.230706951 | G73: 2.791258095 | H73: 2.689153893 | I73: 1.781474126 | J73: 2.23146016
A74: 11 | B74: Innovation Roll-out expenditure (IRM) | C74: £m nominal | D74: 0 | E74: 0 | F74: 0 | G74: 0 | H74: 0 | I74: 0 | J74: 0
A75: 12 | B75: Unfunded Network Innovation | C75: £m nominal | D75: 0 | E75: 0.002678945 | F75: 0 | G75: 0.3595191746 | H75: 0.2547386296 | I75: 0.2495810936 | J75: 0.5102937199
A76: 13 | B76: SIU Gas Cost Price Differential | C76: £m nominal | D76: 0 | E76: 0 | F76: 0 | G76: 0.0008982225 | H76: 0.00015525 | I76: 0 | J76: 0
A77: 14 | B77: [Input description] | C77: £m nominal | D77: 0 | E77: 0 | F77: 0 | G77: 0 | H77: 0 | I77: 0 | J77: 0
A78: 15 | B78: [Input description] | C78: £m nominal | D78: 0 | E78: 0 | F78: 0 | G78: 0 | H78: 0 | I78: 0 | J78: 0
A79: 16 | B79: [Input description] | C79: £m nominal | D79: 0 | E79: 0 | F79: 0 | G79: 0 | H79: 0 | I79: 0 | J79: 0
A80: 17 | B80: [Input description] | C80: £m nominal | D80: 0 | E80: 0 | F80: 0 | G80: 0 | H80: 0 | I80: 0 | J80: 0
A81: 18 | B81: [Input description] | C81: £m nominal | D81: 0 | E81: 0 | F81: 0 | G81: 0 | H81: 0 | I81: 0 | J81: 0
A82: 19 | B82: [Input description] | C82: £m nominal | D82: 0 | E82: 0 | F82: 0 | G82: 0 | H82: 0 | I82: 0 | J82: 0
A83: 20 | B83: [Input description] | C83: £m nominal | D83: 0 | E83: 0 | F83: 0 | G83: 0 | H83: 0 | I83: 0 | J83: 0
A84: 21 | B84: [Input description] | C84: £m nominal | D84: 0 | E84: 0 | F84: 0 | G84: 0 | H84: 0 | I84: 0 | J84: 0
A85: 22 | B85: [Input description] | C85: £m nominal | D85: 0 | E85: 0 | F85: 0 | G85: 0 | H85: 0 | I85: 0 | J85: 0
A86: 23 | B86: [Input description] | C86: £m nominal | D86: 0 | E86: 0 | F86: 0 | G86: 0 | H86: 0 | I86: 0 | J86: 0
A87: 24 | B87: [Input description] | C87: £m nominal | D87: 0 | E87: 0 | F87: 0 | G87: 0 | H87: 0 | I87: 0 | J87: 0
A88: 25 | B88: [Input description] | C88: £m nominal | D88: 0 | E88: 0 | F88: 0 | G88: 0 | H88: 0 | I88: 0 | J88: 0
B89: Total reconciling items not recognised in totex | C89: £m nominal | D89: =SUM(D64:D88) -> 111.4617889 | E89: 113.703255 | F89: 112.7252899 | G89: 115.3852041 | H89: 122.6681151 | I89: 120.1687999 | J89: 119.4934059 | K89: 0
B91: PCFM Totex (excluding enduring value) | C91: £m nominal | D91: =D59-D89 -> 297.6004368 | E91: 299.9750523 | F91: 299.1249094 | G91: 302.2884139 | H91: 316.0358755 | I91: 343.5517763 | J91: 398.5500654 | K91: 0
B92: RRP reported totex | C92: £m nominal | D92: ='R4 - Totex'!D90+'R4 - Totex'!D118 -> 297.6007938 | E92: ='R4 - Totex'!E90+'R4 - Totex'!E118 -> 299.9631144 | F92: ='R4 - Totex'!F90+'R4 - Totex'!F118 -> 299.1252954 | G92: ='R4 - Totex'!G90+'R4 - Totex'!G118 -> 302.2884139 | H92: ='R4 - Totex'!H90+'R4 - Totex'!H118 -> 316.0451627 | I92: ='R4 - Totex'!I90+'R4 - Totex'!I118 -> 343.5517763 | J92: ='R4 - Totex'!J90+'R4 - Totex'!J118 -> 398.5500654 | K92: ='R4 - Totex'!K90+'R4 - Totex'!K118 -> 408.9744977
C93: check | D93: =IF(D$5="Actuals",IF(ABS(D91-('R4 - Totex'!D90+'R4 - Totex'!D118))<'RFPR cover'!$F$14,"OK","Error"),"N/A") -> OK | E93: =IF(E$5="Actuals",IF(ABS(E91-('R4 - Totex'!E90+'R4 - Totex'!E118))<'RFPR cover'!$F$14,"OK","Error"),"N/A") -> OK | F93: =IF(F$5="Actuals",IF(ABS(F91-('R4 - Totex'!F90+'R4 - Totex'!F118))<'RFPR cover'!$F$14,"OK","Error"),"N/A") -> OK | G93: =IF(G$5="Actuals",IF(ABS(G91-('R4 - Totex'!G90+'R4 - Totex'!G118))<'RFPR cover'!$F$14,"OK","Error"),"N/A") -> OK | H93: =IF(H$5="Actuals",IF(ABS(H91-('R4 - Totex'!H90+'R4 - Totex'!H118))<'RFPR cover'!$F$14,"OK","Error"),"N/A") -> OK | I93: =IF(I$5="Actuals",IF(ABS(I91-('R4 - Totex'!I90+'R4 - Totex'!I118))<'RFPR cover'!$F$14,"OK","Error"),"N/A") -> OK | J93: =IF(J$5="Actuals",IF(ABS(J91-('R4 - Totex'!J90+'R4 - Totex'!J118))<'RFPR cover'!$F$14,"OK","Error"),"N/A") -> OK | K93: =IF(K$5="Actuals",IF(ABS(K91-('R4 - Totex'!K90+'R4 - Totex'!K118))<'RFPR cover'!$F$14,"OK","Error"),"N/A") -> N/A

Sheet R4 - Totex
A1: R4 - Totex
A2: ='RFPR cover'!C5 -> Cadent-EOE
A3: ='RFPR cover'!C7 -> 2020
D5: =IF(D6<='RFPR cover'!$C$7,"Actuals","Forecast") -> Actuals | E5: =IF(E6<='RFPR cover'!$C$7,"Actuals","Forecast") -> Actuals | F5: =IF(F6<='RFPR cover'!$C$7,"Actuals","Forecast") -> Actuals | G5: =IF(G6<='RFPR cover'!$C$7,"Actuals","Forecast") -> Actuals | H5: =IF(H6<='RFPR cover'!$C$7,"Actuals","Forecast") -> Actuals | I5: =IF(I6<='RFPR cover'!$C$7,"Actuals","Forecast") -> Actuals | J5: =IF(J6<='RFPR cover'!$C$7,"Actuals","Forecast") -> Actuals | K5: =IF(K6<='RFPR cover'!$C$7,"Actuals","Forecast") -> Forecast
D6: ='RFPR cover'!$C$13 -> 2014 | E6: =D6+1 -> 2015 | F6: 2016 | G6: 2017 | H6: 2018 | I6: 2019 | J6: 2020 | K6: 2021 | L6: ="Cumulative to "&'RFPR cover'!$C$7 -> Cumulative to 2020 | M6: RIIO-1 period | N6: Enduring Value Appendix in Commentary
B8: Totex per the latest RRP submission
B10: =Data!B48 -> Totex excluding repex
B12: Latest Totex actuals/forecast | C12: ='RFPR cover'!$C$14 -> £m 09/10 | D12: 174.1778192 | E12: 164.8807987 | F12: 157.2201049 | G12: 166.2641848 | H12: 163.6877044 | I12: 164.2268925 | J12: 179.0943185 | K12: 184.9476586 | L12: =SUM(D12:INDEX(D12:K12,0,MATCH('RFPR cover'!$C$7,$D$6:$K$6,0))) -> 1169.551823 | M12: =SUM(D12:K12) -> 1354.499482
B13: Totex allowance including allowed adjustments and uncertainty mechanisms | C13: ='RFPR cover'!$C$14 -> £m 09/10 | D13: 169.2547855 | E13: 160.5408306 | F13: 156.6864079 | G13: 159.425413 | H13: 166.9839619 | I13: 160.4095504 | J13: 147.0052713 | K13: 141.5596057 | L13: =SUM(D13:INDEX(D13:K13,0,MATCH('RFPR cover'!$C$7,$D$6:$K$6,0))) -> 1120.306221 | M13: =SUM(D13:K13) -> 1261.865826
B14: Totex out(under)performance | C14: ='RFPR cover'!$C$14 -> £m 09/10 | D14: =D13-D12 -> -4.923033642 | E14: -4.339968111 | F14: -0.533697008 | G14: -6.83877178 | H14: 3.296257432 | I14: -3.817342022 | J14: -32.0890472 | K14: -43.38805297 | L14: -49.24560233 | M14: -92.63365531
B16: Funding Adjustment Rate (often referred to as 'sharing factor') | C16: % | D16: =1-INDEX(Data!$D$73:$D$100,MATCH('RFPR cover'!$C$5,Data!$B$73:$B$100,0),0) -> 0.3696 | E16: =1-INDEX(Data!$D$73:$D$100,MATCH('RFPR cover'!$C$5,Data!$B$73:$B$100,0),0) -> 0.3696 | F16: =1-INDEX(Data!$D$73:$D$100,MATCH('RFPR cover'!$C$5,Data!$B$73:$B$100,0),0) -> 0.3696 | G16: =1-INDEX(Data!$D$73:$D$100,MATCH('RFPR cover'!$C$5,Data!$B$73:$B$100,0),0) -> 0.3696 | H16: =1-INDEX(Data!$D$73:$D$100,MATCH('RFPR cover'!$C$5,Data!$B$73:$B$100,0),0) -> 0.3696 | I16: =1-INDEX(Data!$D$73:$D$100,MATCH('RFPR cover'!$C$5,Data!$B$73:$B$100,0),0) -> 0.3696 | J16: =1-INDEX(Data!$D$73:$D$100,MATCH('RFPR cover'!$C$5,Data!$B$73:$B$100,0),0) -> 0.3696 | K16: =1-INDEX(Data!$D$73:$D$100,MATCH('RFPR cover'!$C$5,Data!$B$73:$B$100,0),0) -> 0.3696
B18: Customer share of out(under) performance | C18: ='RFPR cover'!$C$14 -> £m 09/10 | D18: =D14*D16 -> -1.819553234 | E18: -1.604052214 | F18: -0.1972544142 | G18: -2.52761005 | H18: 1.218296747 | I18: -1.410889611 | J18: -11.86011185 | K18: -16.03622438 | L18: =SUM(D18:INDEX(D18:K18,0,MATCH('RFPR cover'!$C$7,$D$6:$K$6,0))) -> -18.20117462 | M18: =SUM(D18:K18) -> -34.237399
B19: NWO share of performance | C19: ='RFPR cover'!$C$14 -> £m 09/10 | D19: =D14*(1-D16) -> -3.103480408 | E19: -2.735915897 | F19: -0.3364425939 | G19: -4.31116173 | H19: 2.077960685 | I19: -2.406452411 | J19: -20.22893536 | K19: -27.3518286 | L19: =SUM(D19:INDEX(D19:K19,0,MATCH('RFPR cover'!$C$7,$D$6:$K$6,0))) -> -31.04442771 | M19: =SUM(D19:K19) -> -58.39625631
B21: Enduring Value adjustments to Totex performance
A22: a | B22: Gas Holders | C22: ='RFPR cover'!$C$14 -> £m 09/10 | D22: 11.44568966 | E22: -0.7956896552 | F22: -1.775 | G22: -1.775 | H22: -1.775 | I22: -1.775 | J22: -1.775 | K22: -1.775 | L22: =SUM(D22:INDEX(D22:K22,0,MATCH('RFPR cover'!$C$7,$D$6:$K$6,0))) -> 1.775 | M22: =SUM(D22:K22) -> -2.220446049e-15
A23: b | B23: Capex Enduring Value | C23: ='RFPR cover'!$C$14 -> £m 09/10 | D23: -23.40324645 | E23: -11.56102188 | F23: -7.69910257 | G23: -9.332809986 | H23: -13.6160212 | I23: -2.292377111 | J23: 22.92811512 | K23: 44.97646408 | L23: =SUM(D23:INDEX(D23:K23,0,MATCH('RFPR cover'!$C$7,$D$6:$K$6,0))) -> -44.97646408 | M23: 0
A24: c | B24: [Enduring Value adjustment] | C24: ='RFPR cover'!$C$14 -> £m 09/10 | D24: 0 | E24: 0 | F24: 0 | G24: 0 | H24: 0 | I24: 0 | J24: 0 | K24: 0 | L24: =SUM(D24:INDEX(D24:K24,0,MATCH('RFPR cover'!$C$7,$D$6:$K$6,0))) -> 0 | M24: 0
A25: d | B25: [Enduring Value adjustment] | C25: ='RFPR cover'!$C$14 -> £m 09/10 | D25: 0 | E25: 0 | F25: 0 | G25: 0 | H25: 0 | I25: 0 | J25: 0 | K25: 0 | L25: =SUM(D25:INDEX(D25:K25,0,MATCH('RFPR cover'!$C$7,$D$6:$K$6,0))) -> 0 | M25: 0
A26: e | B26: [Enduring Value adjustment] | C26: ='RFPR cover'!$C$14 -> £m 09/10 | D26: 0 | E26: 0 | F26: 0 | G26: 0 | H26: 0 | I26: 0 | J26: 0 | K26: 0 | L26: =SUM(D26:INDEX(D26:K26,0,MATCH('RFPR cover'!$C$7,$D$6:$K$6,0))) -> 0 | M26: 0
A27: f | B27: [Enduring Value adjustment] | C27: ='RFPR cover'!$C$14 -> £m 09/10 | D27: 0 | E27: 0 | F27: 0 | G27: 0 | H27: 0 | I27: 0 | J27: 0 | K27: 0 | L27: =SUM(D27:INDEX(D27:K27,0,MATCH('RFPR cover'!$C$7,$D$6:$K$6,0))) -> 0 | M27: 0
B28: Total enduring value adjustments | C28: ='RFPR cover'!$C$14 -> £m 09/10 | D28: =SUM(D22:D27) -> -11.9575568 | E28: -12.35671154 | F28: -9.47410257 | G28: -11.10780999 | H28: -15.3910212 | I28: -4.067377111 | J28: 21.15311512 | K28: 43.20146408 | L28: =SUM(D28:INDEX(D28:K28,0,MATCH('RFPR cover'!$C$7,$D$6:$K$6,0))) -> -43.20146408 | M28: 0
B30: Enduring Value: Customer share of performance | C30: ='RFPR cover'!$C$14 -> £m 09/10 | D30: =D28*D16 -> -4.419512992 | E30: -4.567040584 | F30: -3.50162831 | G30: -4.105446571 | H30: -5.688521435 | I30: -1.50330258 | J30: 7.818191347 | K30: 15.96726112 | L30: =SUM(D30:INDEX(D30:K30,0,MATCH('RFPR cover'!$C$7,$D$6:$K$6,0))) -> -15.96726112 | M30: =SUM(D30:K30) -> 0
B31: Enduring Value: NWO share of performance | C31: ='RFPR cover'!$C$14 -> £m 09/10 | D31: =D28*(1-D16) -> -7.538043804 | E31: -7.789670952 | F31: -5.97247426 | G31: -7.002363415 | H31: -9.702499764 | I31: -2.564074531 | J31: 13.33492377 | K31: 27.23420296 | L31: =SUM(D31:INDEX(D31:K31,0,MATCH('RFPR cover'!$C$7,$D$6:$K$6,0))) -> -27.23420296 | M31: =SUM(D31:K31) -> 0
B33: Total out(under) performance (including enduring value adjustments)
B34: Customer share of performance | C34: ='RFPR cover'!$C$14 -> £m 09/10 | D34: =D18+D30 -> -6.239066226 | E34: -6.171092797 | F34: -3.698882724 | G34: -6.633056621 | H34: -4.470224688 | I34: -2.914192191 | J34: -4.041920499 | K34: -0.06896325457 | L34: =SUM(D34:INDEX(D34:K34,0,MATCH('RFPR cover'!$C$7,$D$6:$K$6,0))) -> -34.16843575 | M34: =SUM(D34:K34) -> -34.237399
B35: NWO share of performance | C35: ='RFPR cover'!$C$14 -> £m 09/10 | D35: -10.64152421 | E35: -10.52558685 | F35: -6.308916854 | G35: -11.31352515 | H35: -7.624539079 | I35: -4.970526941 | J35: -6.894011586 | K35: -0.1176256377 | L35: =SUM(D35:INDEX(D35:K35,0,MATCH('RFPR cover'!$C$7,$D$6:$K$6,0))) -> -58.27863067 | M35: =SUM(D35:K35) -> -58.39625631
B36: Total | C36: ='RFPR cover'!$C$14 -> £m 09/10 | D36: =SUM(D34:D35) -> -16.88059044 | E36: -16.69667965 | F36: -10.00779958 | G36: -17.94658177 | H36: -12.09476377 | I36: -7.884719133 | J36: -10.93593208 | K36: -0.1865888922 | L36: =SUM(D36:INDEX(D36:K36,0,MATCH('RFPR cover'!$C$7,$D$6:$K$6,0))) -> -92.44706641 | M36: =SUM(D36:K36) -> -92.63365531
B38: =Data!B51 -> Repex
B40: Latest Totex actuals/forecast | C40: ='RFPR cover'!$C$14 -> £m 09/10 | D40: 80.90367782 | E40: 87.28306071 | F40: 91.55845298 | G40: 79.8710352 | H40: 84.36661415 | I40: 97.42168828 | J40: 116.7815424 | K40: 111.8409609 | L40: =SUM(D40:INDEX(D40:K40,0,MATCH('RFPR cover'!$C$7,$D$6:$K$6,0))) -> 638.1860716 | M40: =SUM(D40:K40) -> 750.0270325
B41: Totex allowance including allowed adjustments and uncertainty mechanisms | C41: ='RFPR cover'!$C$14 -> £m 09/10 | D41: 108.9463372 | E41: 107.78066 | F41: 110.1466317 | G41: 109.2795427 | H41: 110.7366513 | I41: 110.3690166 | J41: 111.5678412 | K41: 111.9933033 | L41: =SUM(D41:INDEX(D41:K41,0,MATCH('RFPR cover'!$C$7,$D$6:$K$6,0))) -> 768.8266806 | M41: =SUM(D41:K41) -> 880.8199838
B42: Totex out(under)performance | C42: ='RFPR cover'!$C$14 -> £m 09/10 | D42: =D41-D40 -> 28.04265934 | E42: 20.49759932 | F42: 18.58817874 | G42: 29.40850746 | H42: 26.37003711 | I42: 12.94732831 | J42: -5.213701253 | K42: 0.152342334 | L42: 130.640609 | M42: 130.7929513
B44: Funding Adjustment Rate (often referred to as 'sharing factor') | C44: % | D44: =1-INDEX(Data!$D$73:$D$100,MATCH('RFPR cover'!$C$5,Data!$B$73:$B$100,0),0) -> 0.3696 | E44: =1-INDEX(Data!$D$73:$D$100,MATCH('RFPR cover'!$C$5,Data!$B$73:$B$100,0),0) -> 0.3696 | F44: =1-INDEX(Data!$D$73:$D$100,MATCH('RFPR cover'!$C$5,Data!$B$73:$B$100,0),0) -> 0.3696 | G44: =1-INDEX(Data!$D$73:$D$100,MATCH('RFPR cover'!$C$5,Data!$B$73:$B$100,0),0) -> 0.3696 | H44: =1-INDEX(Data!$D$73:$D$100,MATCH('RFPR cover'!$C$5,Data!$B$73:$B$100,0),0) -> 0.3696 | I44: =1-INDEX(Data!$D$73:$D$100,MATCH('RFPR cover'!$C$5,Data!$B$73:$B$100,0),0) -> 0.3696 | J44: =1-INDEX(Data!$D$73:$D$100,MATCH('RFPR cover'!$C$5,Data!$B$73:$B$100,0),0) -> 0.3696 | K44: =1-INDEX(Data!$D$73:$D$100,MATCH('RFPR cover'!$C$5,Data!$B$73:$B$100,0),0) -> 0.3696
B46: Customer share of out(under) performance | C46: ='RFPR cover'!$C$14 -> £m 09/10 | D46: =D42*D44 -> 10.36456689 | E46: 7.575912707 | F46: 6.870190862 | G46: 10.86938436 | H46: 9.746365714 | I46: 4.785332542 | J46: -1.926983983 | K46: 0.05630572664 | L46: =SUM(D46:INDEX(D46:K46,0,MATCH('RFPR cover'!$C$7,$D$6:$K$6,0))) -> 48.28476909 | M46: =SUM(D46:K46) -> 48.34107482
B47: NWO share of performance | C47: ='RFPR cover'!$C$14 -> £m 09/10 | D47: =D42*(1-D44) -> 17.67809245 | E47: 12.92168661 | F47: 11.71798788 | G47: 18.5391231 | H47: 16.62367139 | I47: 8.161995764 | J47: -3.28671727 | K47: 0.09603660734 | L47: =SUM(D47:INDEX(D47:K47,0,MATCH('RFPR cover'!$C$7,$D$6:$K$6,0))) -> 82.35583992 | M47: =SUM(D47:K47) -> 82.45187653
B49: Enduring Value adjustments to Totex performance
A50: a | B50: Repex Enduring Value | C50: ='RFPR cover'!$C$14 -> £m 09/10 | D50: -15.37200924 | E50: -10.43383409 | F50: 2.405648006 | G50: -11.80733907 | H50: -10.90702498 | I50: 7.632513981 | J50: 21.43324514 | K50: 17.04880026 | L50: =SUM(D50:INDEX(D50:K50,0,MATCH('RFPR cover'!$C$7,$D$6:$K$6,0))) -> -17.04880026 | M50: =SUM(D50:K50) -> 1.563194019e-13
A51: b | B51: [Enduring Value adjustment] | C51: ='RFPR cover'!$C$14 -> £m 09/10 | D51: 0 | E51: 0 | F51: 0 | G51: 0 | H51: 0 | I51: 0 | J51: 0 | K51: 0 | L51: =SUM(D51:INDEX(D51:K51,0,MATCH('RFPR cover'!$C$7,$D$6:$K$6,0))) -> 0 | M51: 0
A52: c | B52: [Enduring Value adjustment] | C52: ='RFPR cover'!$C$14 -> £m 09/10 | D52: 0 | E52: 0 | F52: 0 | G52: 0 | H52: 0 | I52: 0 | J52: 0 | K52: 0 | L52: =SUM(D52:INDEX(D52:K52,0,MATCH('RFPR cover'!$C$7,$D$6:$K$6,0))) -> 0 | M52: 0
A53: d | B53: [Enduring Value adjustment] | C53: ='RFPR cover'!$C$14 -> £m 09/10 | D53: 0 | E53: 0 | F53: 0 | G53: 0 | H53: 0 | I53: 0 | J53: 0 | K53: 0 | L53: =SUM(D53:INDEX(D53:K53,0,MATCH('RFPR cover'!$C$7,$D$6:$K$6,0))) -> 0 | M53: 0
A54: e | B54: [Enduring Value adjustment] | C54: ='RFPR cover'!$C$14 -> £m 09/10 | D54: 0 | E54: 0 | F54: 0 | G54: 0 | H54: 0 | I54: 0 | J54: 0 | K54: 0 | L54: =SUM(D54:INDEX(D54:K54,0,MATCH('RFPR cover'!$C$7,$D$6:$K$6,0))) -> 0 | M54: 0
A55: f | B55: [Enduring Value adjustment] | C55: ='RFPR cover'!$C$14 -> £m 09/10 | D55: 0 | E55: 0 | F55: 0 | G55: 0 | H55: 0 | I55: 0 | J55: 0 | K55: 0 | L55: =SUM(D55:INDEX(D55:K55,0,MATCH('RFPR cover'!$C$7,$D$6:$K$6,0))) -> 0 | M55: 0
B56: Total enduring value adjustments | C56: ='RFPR cover'!$C$14 -> £m 09/10 | D56: =SUM(D50:D55) -> -15.37200924 | E56: -10.43383409 | F56: 2.405648006 | G56: -11.80733907 | H56: -10.90702498 | I56: 7.632513981 | J56: 21.43324514 | K56: 17.04880026 | L56: =SUM(D56:INDEX(D56:K56,0,MATCH('RFPR cover'!$C$7,$D$6:$K$6,0))) -> -17.04880026 | M56: 1.563194019e-13
B58: Enduring Value: Customer share of performance | C58: ='RFPR cover'!$C$14 -> £m 09/10 | D58: =D56*D44 -> -5.681494614 | E58: -3.856345079 | F58: 0.8891275029 | G58: -4.36399252 | H58: -4.031236434 | I58: 2.820977167 | J58: 7.921727402 | K58: 6.301236575 | L58: =SUM(D58:INDEX(D58:K58,0,MATCH('RFPR cover'!$C$7,$D$6:$K$6,0))) -> -6.301236575 | M58: =SUM(D58:K58) -> 6.217248938e-14
B59: Enduring Value: NWO share of performance | C59: ='RFPR cover'!$C$14 -> £m 09/10 | D59: =D56*(1-D44) -> -9.690514623 | E59: -6.57748901 | F59: 1.516520503 | G59: -7.443346549 | H59: -6.87578855 | I59: 4.811536814 | J59: 13.51151773 | K59: 10.74756368 | L59: =SUM(D59:INDEX(D59:K59,0,MATCH('RFPR cover'!$C$7,$D$6:$K$6,0))) -> -10.74756368 | M59: =SUM(D59:K59) -> 1.048050535e-13
B61: Total out(under) performance (including enduring value adjustments)
B62: Customer share of performance | C62: ='RFPR cover'!$C$14 -> £m 09/10 | D62: =D46+D58 -> 4.683072278 | E62: 3.719567627 | F62: 7.759318364 | G62: 6.505391836 | H62: 5.71512928 | I62: 7.606309709 | J62: 5.994743419 | K62: 6.357542302 | L62: =SUM(D62:INDEX(D62:K62,0,MATCH('RFPR cover'!$C$7,$D$6:$K$6,0))) -> 41.98353251 | M62: =SUM(D62:K62) -> 48.34107482
B63: NWO share of performance | C63: ='RFPR cover'!$C$14 -> £m 09/10 | D63: 7.987577825 | E63: 6.344197598 | F63: 13.23450838 | G63: 11.09577655 | H63: 9.747882842 | I63: 12.97353258 | J63: 10.22480046 | K63: 10.84360029 | L63: =SUM(D63:INDEX(D63:K63,0,MATCH('RFPR cover'!$C$7,$D$6:$K$6,0))) -> 71.60827624 | M63: =SUM(D63:K63) -> 82.45187653
B64: Total | C64: ='RFPR cover'!$C$14 -> £m 09/10 | D64: =SUM(D62:D63) -> 12.6706501 | E64: 10.06376523 | F64: 20.99382674 | G64: 17.60116839 | H64: 15.46301212 | I64: 20.57984229 | J64: 16.21954388 | K64: 17.20114259 | L64: =SUM(D64:INDEX(D64:K64,0,MATCH('RFPR cover'!$C$7,$D$6:$K$6,0))) -> 113.5918088 | M64: =SUM(D64:K64) -> 130.7929513
B66: Totex Summary
B68: Total out(under) performance (including enduring value adjustments)
B69: Customer share of performance | C69: ='RFPR cover'!$C$14 -> £m 09/10 | D69: =D34+D62 -> -1.555993948 | E69: -2.45152517 | F69: 4.06043564 | G69: -0.1276647852 | H69: 1.244904592 | I69: 4.692117518 | J69: 1.95282292 | K69: 6.288579047 | L69: =SUM(D69:INDEX(D69:K69,0,MATCH('RFPR cover'!$C$7,$D$6:$K$6,0))) -> 7.815096768 | M69: =SUM(D69:K69) -> 14.10367582
B70: NWO share of performance | C70: ='RFPR cover'!$C$14 -> £m 09/10 | D70: -2.653946387 | E70: -4.181389251 | F70: 6.925591525 | G70: -0.2177485948 | H70: 2.123343763 | I70: 8.003005637 | J70: 3.330788877 | K70: 10.72597465 | L70: =SUM(D70:INDEX(D70:K70,0,MATCH('RFPR cover'!$C$7,$D$6:$K$6,0))) -> 13.32964557 | M70: =SUM(D70:K70) -> 24.05562022
B71: Total | C71: ='RFPR cover'!$C$14 -> £m 09/10 | D71: =SUM(D69:D70) -> -4.209940334 | E71: -6.632914421 | F71: 10.98602717 | G71: -0.34541338 | H71: 3.368248355 | I71: 12.69512315 | J71: 5.283611798 | K71: 17.0145537 | L71: =SUM(D71:INDEX(D71:K71,0,MATCH('RFPR cover'!$C$7,$D$6:$K$6,0))) -> 21.14474234 | M71: =SUM(D71:K71) -> 38.15929604
B74: IQI Additional Income
B75: Additional Income is Pre-tax for Fast Track companies and Post-tax for Slow Track.
B77: IQI Additional Income per PCFM | C77: ='RFPR cover'!$C$14 -> £m 09/10 | D77: =INDEX(Data!$C$119:$L$146,MATCH('RFPR cover'!$C$5,Data!$B$119:$B$146,0),MATCH('R4 - Totex'!D$6,Data!$C$118:$L$118,0)) -> 1.437155607 | E77: =INDEX(Data!$C$119:$L$146,MATCH('RFPR cover'!$C$5,Data!$B$119:$B$146,0),MATCH('R4 - Totex'!E$6,Data!$C$118:$L$118,0)) -> 1.371801563 | F77: =INDEX(Data!$C$119:$L$146,MATCH('RFPR cover'!$C$5,Data!$B$119:$B$146,0),MATCH('R4 - Totex'!F$6,Data!$C$118:$L$118,0)) -> 1.350766011 | G77: =INDEX(Data!$C$119:$L$146,MATCH('RFPR cover'!$C$5,Data!$B$119:$B$146,0),MATCH('R4 - Totex'!G$6,Data!$C$118:$L$118,0)) -> 1.356812199 | H77: =INDEX(Data!$C$119:$L$146,MATCH('RFPR cover'!$C$5,Data!$B$119:$B$146,0),MATCH('R4 - Totex'!H$6,Data!$C$118:$L$118,0)) -> 1.359813639 | I77: =INDEX(Data!$C$119:$L$146,MATCH('RFPR cover'!$C$5,Data!$B$119:$B$146,0),MATCH('R4 - Totex'!I$6,Data!$C$118:$L$118,0)) -> 1.350147507 | J77: =INDEX(Data!$C$119:$L$146,MATCH('RFPR cover'!$C$5,Data!$B$119:$B$146,0),MATCH('R4 - Totex'!J$6,Data!$C$118:$L$118,0)) -> 1.329843331 | K77: =INDEX(Data!$C$119:$L$146,MATCH('RFPR cover'!$C$5,Data!$B$119:$B$146,0),MATCH('R4 - Totex'!K$6,Data!$C$118:$L$118,0)) -> 1.317454096 | L77: =SUM(D77:INDEX(D77:K77,0,MATCH('RFPR cover'!$C$7,$D$6:$K$6,0))) -> 9.556339855 | M77: =SUM(D77:K77) -> 10.87379395
B78: Corporation tax rate when recognised in allowed revenue | C78: % | D78: =IF(INDEX(Data!$J$73:$J$100,MATCH('RFPR cover'!$C$5,Data!$B$73:$B$100,0),0)="Pre",INDEX(Data!$G$18:$G$27,MATCH('R4 - Totex'!D$6,Data!$C$18:$C$27,0),0),"n/a") -> 0.23 | E78: =IF(INDEX(Data!$J$73:$J$100,MATCH('RFPR cover'!$C$5,Data!$B$73:$B$100,0),0)="Pre",INDEX(Data!$G$18:$G$27,MATCH('R4 - Totex'!E$6,Data!$C$18:$C$27,0),0),"n/a") -> 0.21 | F78: =IF(INDEX(Data!$J$73:$J$100,MATCH('RFPR cover'!$C$5,Data!$B$73:$B$100,0),0)="Pre",INDEX(Data!$G$18:$G$27,MATCH('R4 - Totex'!F$6,Data!$C$18:$C$27,0),0),"n/a") -> 0.2 | G78: =IF(INDEX(Data!$J$73:$J$100,MATCH('RFPR cover'!$C$5,Data!$B$73:$B$100,0),0)="Pre",INDEX(Data!$G$18:$G$27,MATCH('R4 - Totex'!G$6,Data!$C$18:$C$27,0),0),"n/a") -> 0.2 | H78: =IF(INDEX(Data!$J$73:$J$100,MATCH('RFPR cover'!$C$5,Data!$B$73:$B$100,0),0)="Pre",INDEX(Data!$G$18:$G$27,MATCH('R4 - Totex'!H$6,Data!$C$18:$C$27,0),0),"n/a") -> 0.19 | I78: =IF(INDEX(Data!$J$73:$J$100,MATCH('RFPR cover'!$C$5,Data!$B$73:$B$100,0),0)="Pre",INDEX(Data!$G$18:$G$27,MATCH('R4 - Totex'!I$6,Data!$C$18:$C$27,0),0),"n/a") -> 0.19 | J78: =IF(INDEX(Data!$J$73:$J$100,MATCH('RFPR cover'!$C$5,Data!$B$73:$B$100,0),0)="Pre",INDEX(Data!$G$18:$G$27,MATCH('R4 - Totex'!J$6,Data!$C$18:$C$27,0),0),"n/a") -> 0.19 | K78: =IF(INDEX(Data!$J$73:$J$100,MATCH('RFPR cover'!$C$5,Data!$B$73:$B$100,0),0)="Pre",INDEX(Data!$G$18:$G$27,MATCH('R4 - Totex'!K$6,Data!$C$18:$C$27,0),0),"n/a") -> 0.19
B79: Post tax | C79: ='RFPR cover'!$C$14 -> £m 09/10 | D79: =IF(ISNUMBER(D78),D77*(1-D78),D77) -> 1.106609817 | E79: 1.083723235 | F79: 1.080612809 | G79: 1.085449759 | H79: 1.101449047 | I79: 1.09361948 | J79: =IF(ISNUMBER(J78),J77*(1-J78),J77) -> 1.077173098 | K79: 1.067137818 | L79: =SUM(D79:INDEX(D79:K79,0,MATCH('RFPR cover'!$C$7,$D$6:$K$6,0))) -> 7.628637245 | M79: =SUM(D79:K79) -> 8.695775063
B84: £m Nominal
B86: =Data!B34 -> Financial Year Average RPI (RPIt) | C86: Index | D86: =Data!C$34 -> 1.166689067 | E86: =Data!D$34 -> 1.189556327 | F86: =Data!E$34 -> 1.202375711 | G86: =Data!F$34 -> 1.228139614 | H86: =Data!G$34 -> 1.274096595 | I86: =Data!H$34 -> 1.313027479 | J86: =Data!I$34 -> 1.347017848 | K86: =Data!J$34 -> 1.377999258
B88: =B10 -> Totex excluding repex
B90: Latest Totex actuals/forecast | C90: £m nominal | D90: =D12*D$86 -> 203.2113574 | E90: 196.1349973 | F90: 189.0376354 | G90: 204.1956316 | H90: 208.5539468 | I90: 215.6344225 | J90: 241.2432435 | K90: 254.8577365 | L90: =SUM(D90:INDEX(D90:K90,0,MATCH('RFPR cover'!$C$7,$D$6:$K$6,0))) -> 1458.011235 | M90: =SUM(D90:K90) -> 1712.868971
B91: Totex allowance including forecast allowed adjustments and uncertainty mechanisms | C91: £m nominal | D91: 197.4677079 | E91: 190.9723608 | F91: 188.395931 | G91: 195.7966651 | H91: 212.7536972 | I91: 210.6221476 | J91: 198.0187242 | K91: 195.0690316 | L91: =SUM(D91:INDEX(D91:K91,0,MATCH('RFPR cover'!$C$7,$D$6:$K$6,0))) -> 1394.027234 | M91: =SUM(D91:K91) -> 1589.096265
B92: Totex out(under)performance | C92: £m nominal | D92: =D91-D90 -> -5.743649529 | E92: -5.162636525 | F92: -0.6417043194 | G92: -8.398966531 | H92: 4.19975037 | I92: -5.01227497 | J92: -43.2245193 | K92: -59.78870483 | L92: -63.98400081 | M92: -123.7727056
B94: Funding Adjustment Rate (often referred to as 'sharing factor') | C94: % | D94: =1-INDEX(Data!$D$73:$D$100,MATCH('RFPR cover'!$C$5,Data!$B$73:$B$100,0),0) -> 0.3696 | E94: =1-INDEX(Data!$D$73:$D$100,MATCH('RFPR cover'!$C$5,Data!$B$73:$B$100,0),0) -> 0.3696 | F94: =1-INDEX(Data!$D$73:$D$100,MATCH('RFPR cover'!$C$5,Data!$B$73:$B$100,0),0) -> 0.3696 | G94: =1-INDEX(Data!$D$73:$D$100,MATCH('RFPR cover'!$C$5,Data!$B$73:$B$100,0),0) -> 0.3696 | H94: =1-INDEX(Data!$D$73:$D$100,MATCH('RFPR cover'!$C$5,Data!$B$73:$B$100,0),0) -> 0.3696 | I94: =1-INDEX(Data!$D$73:$D$100,MATCH('RFPR cover'!$C$5,Data!$B$73:$B$100,0),0) -> 0.3696 | J94: =1-INDEX(Data!$D$73:$D$100,MATCH('RFPR cover'!$C$5,Data!$B$73:$B$100,0),0) -> 0.3696 | K94: =1-INDEX(Data!$D$73:$D$100,MATCH('RFPR cover'!$C$5,Data!$B$73:$B$100,0),0) -> 0.3696
B96: Customer share of out(under) performance | C96: £m nominal | D96: =D92*D94 -> -2.122852866 | E96: -1.90811046 | F96: -0.2371739164 | G96: -3.10425803 | H96: 1.552227737 | I96: -1.852536829 | J96: -15.97578233 | K96: -22.0979053 | L96: =SUM(D96:INDEX(D96:K96,0,MATCH('RFPR cover'!$C$7,$D$6:$K$6,0))) -> -23.6484867 | M96: =SUM(D96:K96) -> -45.746392
B97: NWO share of performance | C97: £m nominal | D97: =D92*(1-D94) -> -3.620796663 | E97: -3.254526065 | F97: -0.4045304029 | G97: -5.294708501 | H97: 2.647522633 | I97: -3.159738141 | J97: -27.24873697 | K97: -37.69079952 | L97: =SUM(D97:INDEX(D97:K97,0,MATCH('RFPR cover'!$C$7,$D$6:$K$6,0))) -> -40.33551411 | M97: =SUM(D97:K97) -> -78.02631363
B99: Enduring Value adjustments to Totex performance
A100: a | B100: =B22 -> Gas Holders | C100: £m nominal | D100: =D22*D$86 -> 13.35356099 | E100: -0.9465176636 | F100: -2.134216887 | G100: -2.179947814 | H100: -2.261521456 | I100: -2.330623775 | J100: -2.39095668 | K100: -2.445948684 | L100: =SUM(D100:INDEX(D100:K100,0,MATCH('RFPR cover'!$C$7,$D$6:$K$6,0))) -> 1.109776714 | M100: =SUM(D100:K100) -> -1.33617197
A101: b | B101: Capex Enduring Value | C101: £m nominal | D101: -27.30431178 | E101: -13.75248672 | F101: -9.257213926 | G101: -11.46199365 | H101: -17.34812625 | I101: -3.009954138 | J101: 30.88458028 | K101: 61.97753415 | L101: =SUM(D101:INDEX(D101:K101,0,MATCH('RFPR cover'!$C$7,$D$6:$K$6,0))) -> -51.24950618 | M101: 10.72802797
A102: c | B102: [Enduring Value adjustment] | C102: £m nominal | D102: 0 | E102: 0 | F102: 0 | G102: 0 | H102: 0 | I102: 0 | J102: 0 | K102: 0 | L102: =SUM(D102:INDEX(D102:K102,0,MATCH('RFPR cover'!$C$7,$D$6:$K$6,0))) -> 0 | M102: 0
A103: d | B103: [Enduring Value adjustment] | C103: £m nominal | D103: 0 | E103: 0 | F103: 0 | G103: 0 | H103: 0 | I103: 0 | J103: 0 | K103: 0 | L103: =SUM(D103:INDEX(D103:K103,0,MATCH('RFPR cover'!$C$7,$D$6:$K$6,0))) -> 0 | M103: 0
A104: e | B104: [Enduring Value adjustment] | C104: £m nominal | D104: 0 | E104: 0 | F104: 0 | G104: 0 | H104: 0 | I104: 0 | J104: 0 | K104: 0 | L104: =SUM(D104:INDEX(D104:K104,0,MATCH('RFPR cover'!$C$7,$D$6:$K$6,0))) -> 0 | M104: 0
A105: f | B105: [Enduring Value adjustment] | C105: £m nominal | D105: 0 | E105: 0 | F105: 0 | G105: 0 | H105: 0 | I105: 0 | J105: 0 | K105: 0 | L105: =SUM(D105:INDEX(D105:K105,0,MATCH('RFPR cover'!$C$7,$D$6:$K$6,0))) -> 0 | M105: 0
B106: Total enduring value adjustments | C106: £m nominal | D106: =SUM(D100:D105) -> -13.95075079 | E106: -14.69900439 | F106: -11.39143081 | G106: -13.64194146 | H106: -19.6096477 | I106: -5.340577913 | J106: 28.4936236 | K106: 59.53158547 | L106: =SUM(D106:INDEX(D106:K106,0,MATCH('RFPR cover'!$C$7,$D$6:$K$6,0))) -> -50.13972947 | M106: 9.391856005
B108: Enduring Value: Customer share of performance | C108: £m nominal | D108: =D106*D94 -> -5.156197491 | E108: -5.432752022 | F108: -4.210272828 | G108: -5.042061565 | H108: -7.247725791 | I108: -1.973877597 | J108: 10.53124328 | K108: 22.00287399 | L108: =SUM(D108:INDEX(D108:K108,0,MATCH('RFPR cover'!$C$7,$D$6:$K$6,0))) -> -18.53164401 | M108: =SUM(D108:K108) -> 3.471229979
B109: Enduring Value: NWO share of performance | C109: £m nominal | D109: =D106*(1-D94) -> -8.794553296 | E109: -9.266252366 | F109: -7.181157984 | G109: -8.599879899 | H109: -12.36192191 | I109: -3.366700316 | J109: 17.96238032 | K109: 37.52871148 | L109: =SUM(D109:INDEX(D109:K109,0,MATCH('RFPR cover'!$C$7,$D$6:$K$6,0))) -> -31.60808546 | M109: =SUM(D109:K109) -> 5.920626025
B111: Total out(under) performance (including enduring value adjustments)
B112: Customer share of performance | C112: £m nominal | D112: =D96+D108 -> -7.279050356 | E112: -7.340862482 | F112: -4.447446745 | G112: -8.146319595 | H112: -5.695498054 | I112: -3.826414426 | J112: -5.444539052 | K112: -0.09503131365 | L112: =SUM(D112:INDEX(D112:K112,0,MATCH('RFPR cover'!$C$7,$D$6:$K$6,0))) -> -42.18013071 | M112: =SUM(D112:K112) -> -42.27516202
B113: NWO share of performance | C113: £m nominal | D113: -12.41534996 | E113: -12.52077843 | F113: -7.585688387 | G113: -13.8945884 | H113: -9.714399278 | I113: -6.526438458 | J113: -9.286356651 | K113: -0.1620880415 | L113: =SUM(D113:INDEX(D113:K113,0,MATCH('RFPR cover'!$C$7,$D$6:$K$6,0))) -> -71.94359956 | M113: =SUM(D113:K113) -> -72.10568761
B114: Total | C114: £m nominal | D114: =SUM(D112:D113) -> -19.69440031 | E114: -19.86164091 | F114: -12.03313513 | G114: -22.040908 | H114: -15.40989733 | I114: -10.35285288 | J114: -14.7308957 | K114: -0.2571193551 | L114: =SUM(D114:INDEX(D114:K114,0,MATCH('RFPR cover'!$C$7,$D$6:$K$6,0))) -> -114.1237303 | M114: =SUM(D114:K114) -> -114.3808496
B116: =B38 -> Repex
B118: Latest Totex actuals/forecast | C118: £m nominal | D118: =D40*D$86 -> 94.38943642 | E118: 103.8281171 | F118: 110.08766 | G118: 98.0927823 | H118: 107.4912158 | I118: 127.9173537 | J118: 157.3068219 | K118: 154.1167612 | L118: =SUM(D118:INDEX(D118:K118,0,MATCH('RFPR cover'!$C$7,$D$6:$K$6,0))) -> 799.1133873 | M118: =SUM(D118:K118) -> 953.2301485
B119: Totex allowance including forecast allowed adjustments and uncertainty mechanisms | C119: £m nominal | D119: 127.1065005 | E119: 128.2111661 | F119: 132.4376346 | G119: 134.2105353 | H119: 141.0891903 | I119: 144.9175516 | J119: 150.2838733 | K119: 154.3266889 | L119: =SUM(D119:INDEX(D119:K119,0,MATCH('RFPR cover'!$C$7,$D$6:$K$6,0))) -> 958.2564516 | M119: =SUM(D119:K119) -> 1112.58314
B120: Totex out(under)performance | C120: £m nominal | D120: =D119-D118 -> 32.71706407 | E120: 24.38304895 | F120: 22.34997462 | G120: 36.11775298 | H120: 33.59797449 | I120: 17.00019784 | J120: -7.022948642 | K120: 0.2099276233 | L120: 159.1430643 | M120: 159.3529919
B122: Funding Adjustment Rate (often referred to as 'sharing factor') | C122: % | D122: =1-INDEX(Data!$D$73:$D$100,MATCH('RFPR cover'!$C$5,Data!$B$73:$B$100,0),0) -> 0.3696 | E122: =1-INDEX(Data!$D$73:$D$100,MATCH('RFPR cover'!$C$5,Data!$B$73:$B$100,0),0) -> 0.3696 | F122: =1-INDEX(Data!$D$73:$D$100,MATCH('RFPR cover'!$C$5,Data!$B$73:$B$100,0),0) -> 0.3696 | G122: =1-INDEX(Data!$D$73:$D$100,MATCH('RFPR cover'!$C$5,Data!$B$73:$B$100,0),0) -> 0.3696 | H122: =1-INDEX(Data!$D$73:$D$100,MATCH('RFPR cover'!$C$5,Data!$B$73:$B$100,0),0) -> 0.3696 | I122: =1-INDEX(Data!$D$73:$D$100,MATCH('RFPR cover'!$C$5,Data!$B$73:$B$100,0),0) -> 0.3696 | J122: =1-INDEX(Data!$D$73:$D$100,MATCH('RFPR cover'!$C$5,Data!$B$73:$B$100,0),0) -> 0.3696 | K122: =1-INDEX(Data!$D$73:$D$100,MATCH('RFPR cover'!$C$5,Data!$B$73:$B$100,0),0) -> 0.3696
B124: Customer share of out(under) performance | C124: £m nominal | D124: =D120*D122 -> 12.09222688 | E124: 9.011974893 | F124: 8.260550621 | G124: 13.3491215 | H124: 12.41781137 | I124: 6.283273123 | J124: -2.595681818 | K124: 0.07758924956 | L124: =SUM(D124:INDEX(D124:K124,0,MATCH('RFPR cover'!$C$7,$D$6:$K$6,0))) -> 58.81927657 | M124: =SUM(D124:K124) -> 58.89686582
B125: NO share of performance | C125: £m nominal | D125: =D120*(1-D122) -> 20.62483719 | E125: 15.37107406 | F125: 14.089424 | G125: 22.76863148 | H125: 21.18016312 | I125: 10.71692472 | J125: -4.427266824 | K125: 0.1323383737 | L125: =SUM(D125:INDEX(D125:K125,0,MATCH('RFPR cover'!$C$7,$D$6:$K$6,0))) -> 100.3237877 | M125: =SUM(D125:K125) -> 100.4561261
B127: Enduring Value adjustments to Totex performance
A128: a | B128: =B50 -> Repex Enduring Value | C128: £m nominal | D128: =D50*D$86 -> -17.93435512 | E128: -12.41163336 | F128: 2.892492731 | G128: -14.50106084 | H128: -13.89660339 | I128: 10.02170059 | J128: 28.87096374 | K128: 23.49323411 | L128: =SUM(D128:INDEX(D128:K128,0,MATCH('RFPR cover'!$C$7,$D$6:$K$6,0))) -> -16.95849565 | M128: =SUM(D128:K128) -> 6.534738459
A129: b | B129: [Enduring Value adjustment] | C129: £m nominal | D129: 0 | E129: 0 | F129: 0 | G129: 0 | H129: 0 | I129: 0 | J129: 0 | K129: 0 | L129: =SUM(D129:INDEX(D129:K129,0,MATCH('RFPR cover'!$C$7,$D$6:$K$6,0))) -> 0 | M129: 0
A130: c | B130: [Enduring Value adjustment] | C130: £m nominal | D130: 0 | E130: 0 | F130: 0 | G130: 0 | H130: 0 | I130: 0 | J130: 0 | K130: 0 | L130: =SUM(D130:INDEX(D130:K130,0,MATCH('RFPR cover'!$C$7,$D$6:$K$6,0))) -> 0 | M130: 0
A131: d | B131: [Enduring Value adjustment] | C131: £m nominal | D131: 0 | E131: 0 | F131: 0 | G131: 0 | H131: 0 | I131: 0 | J131: 0 | K131: 0 | L131: =SUM(D131:INDEX(D131:K131,0,MATCH('RFPR cover'!$C$7,$D$6:$K$6,0))) -> 0 | M131: 0
A132: e | B132: [Enduring Value adjustment] | C132: £m nominal | D132: 0 | E132: 0 | F132: 0 | G132: 0 | H132: 0 | I132: 0 | J132: 0 | K132: 0 | L132: =SUM(D132:INDEX(D132:K132,0,MATCH('RFPR cover'!$C$7,$D$6:$K$6,0))) -> 0 | M132: 0
A133: f | B133: [Enduring Value adjustment] | C133: £m nominal | D133: 0 | E133: 0 | F133: 0 | G133: 0 | H133: 0 | I133: 0 | J133: 0 | K133: 0 | L133: =SUM(D133:INDEX(D133:K133,0,MATCH('RFPR cover'!$C$7,$D$6:$K$6,0))) -> 0 | M133: 0
B134: Total enduring value adjustments | C134: £m nominal | D134: =SUM(D128:D133) -> -17.93435512 | E134: -12.41163336 | F134: 2.892492731 | G134: -14.50106084 | H134: -13.89660339 | I134: 10.02170059 | J134: 28.87096374 | K134: 23.49323411 | L134: =SUM(D134:INDEX(D134:K134,0,MATCH('RFPR cover'!$C$7,$D$6:$K$6,0))) -> -16.95849565 | M134: 6.534738459
B136: Enduring Value: Customer share of performance | C136: £m nominal | D136: =D134*D122 -> -6.628537653 | E136: -4.587339688 | F136: 1.069065313 | G136: -5.359592087 | H136: -5.136184614 | I136: 3.704020538 | J136: 10.6707082 | K136: 8.683099328 | L136: =SUM(D136:INDEX(D136:K136,0,MATCH('RFPR cover'!$C$7,$D$6:$K$6,0))) -> -6.267859994 | M136: =SUM(D136:K136) -> 2.415239334
B137: Enduring Value: NWO share of performance | C137: £m nominal | D137: =D134*(1-D122) -> -11.30581747 | E137: -7.824293667 | F137: 1.823427418 | G137: -9.141468755 | H137: -8.760418779 | I137: 6.317680051 | J137: 18.20025554 | K137: 14.81013478 | L137: =SUM(D137:INDEX(D137:K137,0,MATCH('RFPR cover'!$C$7,$D$6:$K$6,0))) -> -10.69063566 | M137: =SUM(D137:K137) -> 4.119499124
B139: Total out(under) performance (including enduring value adjustments)
B140: Customer share of performance | C140: £m nominal | D140: =D124+D136 -> 5.463689229 | E140: 4.424635205 | F140: 9.329615934 | G140: 7.989529415 | H140: 7.281626756 | I140: 9.98729366 | J140: 8.075026379 | K140: 8.760688578 | L140: =SUM(D140:INDEX(D140:K140,0,MATCH('RFPR cover'!$C$7,$D$6:$K$6,0))) -> 52.55141658 | M140: =SUM(D140:K140) -> 61.31210516
B141: NWO share of performance | C141: £m nominal | D141: 9.319019724 | E141: 7.546780393 | F141: 15.91285142 | G141: 13.62716273 | H141: 12.41974434 | I141: 17.03460477 | J141: 13.77298872 | K141: 14.94247316 | L141: =SUM(D141:INDEX(D141:K141,0,MATCH('RFPR cover'!$C$7,$D$6:$K$6,0))) -> 89.63315209 | M141: =SUM(D141:K141) -> 104.5756252
B142: Total | C142: £m nominal | D142: =SUM(D140:D141) -> 14.78270895 | E142: 11.9714156 | F142: 25.24246735 | G142: 21.61669214 | H142: 19.70137109 | I142: 27.02189843 | J142: 21.8480151 | K142: 23.70316174 | L142: =SUM(D142:INDEX(D142:K142,0,MATCH('RFPR cover'!$C$7,$D$6:$K$6,0))) -> 142.1845687 | M142: =SUM(D142:K142) -> 165.8877304
B144: Totex Summary
B146: Total out(under) performance (including enduring value adjustments)
B147: Customer share of performance | C147: £m nominal | D147: =D112+D140 -> -1.815361127 | E147: -2.916227277 | F147: 4.882169189 | G147: -0.15679018 | H147: 1.586128702 | I147: 6.160879234 | J147: 2.630487328 | K147: 8.665657264 | L147: =SUM(D147:INDEX(D147:K147,0,MATCH('RFPR cover'!$C$7,$D$6:$K$6,0))) -> 10.37128587 | M147: =SUM(D147:K147) -> 19.03694313
B148: NWO share of performance | C148: £m nominal | D148: -3.096330235 | E148: -4.973998039 | F148: 8.327163033 | G148: -0.267425675 | H148: 2.705345059 | I148: 10.50816631 | J148: 4.486632066 | K148: 14.78038512 | L148: =SUM(D148:INDEX(D148:K148,0,MATCH('RFPR cover'!$C$7,$D$6:$K$6,0))) -> 17.68955252 | M148: =SUM(D148:K148) -> 32.46993764
B149: Total | C149: £m nominal | D149: =SUM(D147:D148) -> -4.911691362 | E149: -7.890225316 | F149: 13.20933222 | G149: -0.424215855 | H149: 4.29147376 | I149: 16.66904555 | J149: 7.117119393 | K149: 23.44604238 | L149: =SUM(D149:INDEX(D149:K149,0,MATCH('RFPR cover'!$C$7,$D$6:$K$6,0))) -> 28.06083839 | M149: =SUM(D149:K149) -> 51.50688077

Sheet R5 - Output Incentives
A1: R5 - Output Incentives
A2: ='RFPR cover'!C5 -> Cadent-EOE
A3: ='RFPR cover'!C7 -> 2020
D5: =IF(D6<='RFPR cover'!$C$7,"Actuals","Forecast") -> Actuals | E5: =IF(E6<='RFPR cover'!$C$7,"Actuals","Forecast") -> Actuals | F5: =IF(F6<='RFPR cover'!$C$7,"Actuals","Forecast") -> Actuals | G5: =IF(G6<='RFPR cover'!$C$7,"Actuals","Forecast") -> Actuals | H5: =IF(H6<='RFPR cover'!$C$7,"Actuals","Forecast") -> Actuals | I5: =IF(I6<='RFPR cover'!$C$7,"Actuals","Forecast") -> Actuals | J5: =IF(J6<='RFPR cover'!$C$7,"Actuals","Forecast") -> Actuals | K5: =IF(K6<='RFPR cover'!$C$7,"Actuals","Forecast") -> Forecast
D6: ='RFPR cover'!$C$13 -> 2014 | E6: =D6+1 -> 2015 | F6: 2016 | G6: 2017 | H6: 2018 | I6: 2019 | J6: 2020 | K6: 2021 | L6: ="Cumulative to "&'RFPR cover'!$C$7 -> Cumulative to 2020 | M6: RIIO-1 period
B8: Pre-tax Earned Incentives (Actuals may be updated once all incentives are determined)
B9: These values exclude any inflation, interest or time value of money adjustments
A11: a | B11: =Data!B153 -> Broad Measure of Customer Satisfaction | C11: ='RFPR cover'!$C$14 -> £m 09/10 | D11: 2.192413928 | E11: 1.417427831 | F11: 2.574973763 | G11: 3.354391025 | H11: 3.32399847 | I11: 3.224860207 | J11: 3.368411496 | K11: 3.310648616 | L11: =SUM(D11:INDEX(D11:K11,0,MATCH('RFPR cover'!$C$7,$D$6:$K$6,0))) -> 19.45647672 | M11: =SUM(D11:K11) -> 22.76712534
A12: b | B12: =Data!B154 -> Shrinkage Allowance Revenue Adjustment | C12: ='RFPR cover'!$C$14 -> £m 09/10 | D12: 0.7335884242 | E12: 0.538874375 | F12: 0.4718170532 | G12: 0.2887511439 | H12: 0.307459875 | I12: 0.5586941214 | J12: 0.2427800792 | K12: 0.3158011769 | L12: =SUM(D12:INDEX(D12:K12,0,MATCH('RFPR cover'!$C$7,$D$6:$K$6,0))) -> 3.141965072 | M12: 3.457766249
A13: c | B13: =Data!B155 -> Environment Emissions Incentive | C13: ='RFPR cover'!$C$14 -> £m 09/10 | D13: 2.279289045 | E13: 2.417746782 | F13: 2.646847908 | G13: 1.748295446 | H13: 1.651404334 | I13: 2.436523535 | J13: 2.28639803 | K13: 4.173426051 | L13: =SUM(D13:INDEX(D13:K13,0,MATCH('RFPR cover'!$C$7,$D$6:$K$6,0))) -> 15.46650508 | M13: 19.63993113
A14: d | B14: =Data!B156 -> Discretionary Reward Scheme | C14: ='RFPR cover'!$C$14 -> £m 09/10 | D14: 0.08211142279 | E14: 0.08211142279 | F14: 0.05212574592 | G14: 0.05212574592 | H14: 0.05212574592 | I14: 0 | J14: 0 | K14: 0 | L14: =SUM(D14:INDEX(D14:K14,0,MATCH('RFPR cover'!$C$7,$D$6:$K$6,0))) -> 0.3206000833 | M14: 0.3206000833
A15: e | B15: =Data!B157 -> NTS Exit Capacity | C15: ='RFPR cover'!$C$14 -> £m 09/10 | D15: 1.5443072 | E15: 4.67191973 | F15: 9.70199451 | G15: 6.74284177 | H15: 6.78905303 | I15: 7.04793862 | J15: 5.43049772 | K15: 4.06113534 | L15: =SUM(D15:INDEX(D15:K15,0,MATCH('RFPR cover'!$C$7,$D$6:$K$6,0))) -> 41.92855258 | M15: 45.98968792
A16: f | B16: =Data!B158 ->  | C16: ='RFPR cover'!$C$14 -> £m 09/10 | D16: 0 | E16: 0 | F16: 0 | G16: 0 | H16: 0 | I16: 0 | J16: 0 | K16: 0 | L16: =SUM(D16:INDEX(D16:K16,0,MATCH('RFPR cover'!$C$7,$D$6:$K$6,0))) -> 0 | M16: 0
A17: g | B17: =Data!B159 ->  | C17: ='RFPR cover'!$C$14 -> £m 09/10 | D17: 0 | E17: 0 | F17: 0 | G17: 0 | H17: 0 | I17: 0 | J17: 0 | K17: 0 | L17: =SUM(D17:INDEX(D17:K17,0,MATCH('RFPR cover'!$C$7,$D$6:$K$6,0))) -> 0 | M17: 0
B18: Earned Incentive revenue | C18: ='RFPR cover'!$C$14 -> £m 09/10 | D18: =SUM(D11:D17) -> 6.831710021 | E18: 9.128080142 | F18: 15.44775898 | G18: 12.18640513 | H18: 12.12404145 | I18: 13.26801648 | J18: 11.32808733 | K18: 11.86101118 | L18: 80.31409954 | M18: 92.17511072
B20: Additional Commentary
A21: =A11 -> a
A22: =A12 -> b
A23: =A13 -> c
A24: =A14 -> d
A25: =A15 -> e
A26: f
A27: g
B30: Post-tax Earned Incentives (Actuals may be updated once all incentives are determined)
B32: Year tax paid when incentive recognised in allowed revenue. Select from dropdown in Column C
B33: -
B34: t+0
B35: t+1
B36: t+2
B37: t+3
A39: =A11 -> a | B39: =$B$11&"" -> Broad Measure of Customer Satisfaction | C39: ='RFPR cover'!$C$14 -> £m 09/10 | D39: =D51 -> 1.753931143 | E39: 1.133942265 | F39: 2.085728748 | G39: 2.717056731 | H39: 2.692438761 | I39: 2.612136767 | J39: 2.728413312 | K39: 2.681625379 | L39: =SUM(D39:INDEX(D39:K39,0,MATCH('RFPR cover'!$C$7,$D$6:$K$6,0))) -> 15.72364773 | M39: =SUM(D39:K39) -> 18.40527311
A40: b | B40: =$B$12&"" -> Shrinkage Allowance Revenue Adjustment | C40: ='RFPR cover'!$C$14 -> £m 09/10 | D40: =D55 -> 0.5868707394 | E40: 0.4310995 | F40: 0.3821718131 | G40: 0.2338884265 | H40: 0.2490424988 | I40: 0.4525422383 | J40: 0.1966518642 | K40: 0.2557989532 | L40: =SUM(D40:INDEX(D40:K40,0,MATCH('RFPR cover'!$C$7,$D$6:$K$6,0))) -> 2.53226708 | M40: 2.788066033
A41: c | B41: =$B$13&"" -> Environment Emissions Incentive | C41: ='RFPR cover'!$C$14 -> £m 09/10 | D41: =D59 -> 1.823431236 | E41: 1.934197426 | F41: 2.143946805 | G41: 1.416119312 | H41: 1.33763751 | I41: 1.973584063 | J41: 1.851982404 | K41: 3.380475101 | L41: =SUM(D41:INDEX(D41:K41,0,MATCH('RFPR cover'!$C$7,$D$6:$K$6,0))) -> 12.48089876 | M41: 15.86137386
A42: d | B42: =$B$14&"" -> Discretionary Reward Scheme | C42: ='RFPR cover'!$C$14 -> £m 09/10 | D42: =D63 -> 0.06568913824 | E42: 0.06568913824 | F42: 0.04222185419 | G42: 0.04222185419 | H42: 0.04222185419 | I42: 0 | J42: 0 | K42: 0 | L42: =SUM(D42:INDEX(D42:K42,0,MATCH('RFPR cover'!$C$7,$D$6:$K$6,0))) -> 0.258043839 | M42: 0.258043839
A43: e | B43: =$B$15&"" -> NTS Exit Capacity | C43: ='RFPR cover'!$C$14 -> £m 09/10 | D43: =D67 -> 1.23544576 | E43: 3.737535784 | F43: 7.858615553 | G43: 5.461701834 | H43: 5.499132954 | I43: 5.708830282 | J43: 4.398703153 | K43: 3.289519625 | L43: =SUM(D43:INDEX(D43:K43,0,MATCH('RFPR cover'!$C$7,$D$6:$K$6,0))) -> 33.89996532 | M43: 37.18948495
A44: f | B44: =$B$16&"" ->  | C44: ='RFPR cover'!$C$14 -> £m 09/10 | D44: =D71 -> 0 | E44: 0 | F44: 0 | G44: 0 | H44: 0 | I44: 0 | J44: 0 | K44: 0 | L44: =SUM(D44:INDEX(D44:K44,0,MATCH('RFPR cover'!$C$7,$D$6:$K$6,0))) -> 0 | M44: 0
A45: g | B45: =$B$17&"" ->  | C45: ='RFPR cover'!$C$14 -> £m 09/10 | D45: =D75 -> 0 | E45: 0 | F45: 0 | G45: 0 | H45: 0 | I45: 0 | J45: 0 | K45: 0 | L45: =SUM(D45:INDEX(D45:K45,0,MATCH('RFPR cover'!$C$7,$D$6:$K$6,0))) -> 0 | M45: 0
B46: Post-Tax Earned Incentive revenue | C46: ='RFPR cover'!$C$14 -> £m 09/10 | D46: =SUM(D39:D45) -> 5.465368017 | E46: 7.302464113 | F46: 12.51268477 | G46: 9.870988157 | H46: 9.820473578 | I46: 10.74709335 | J46: 9.175750734 | K46: 9.607419059 | L46: 64.89482272 | M46: 74.50224178
A49: =$A$11 -> a | B49: =INDEX($B$11:$B$15,MATCH($A49,$A$11:$A$15,0),0)&"" -> Broad Measure of Customer Satisfaction | C49: ='RFPR cover'!$C$14 -> £m 09/10 | D49: =INDEX($D$11:$K$17,MATCH($A49,$A$11:$A$17,0),0) -> 2.192413928 | E49: 1.417427831 | F49: 2.574973763 | G49: 3.354391025 | H49: 3.32399847 | I49: 3.224860207 | J49: 3.368411496 | K49: 3.310648616 | L49: =SUM(D49:INDEX(D49:K49,0,MATCH('RFPR cover'!$C$7,$D$6:$K$6,0))) -> 19.45647672 | M49: =SUM(D49:K49) -> 22.76712534
B50: Corporation tax rate when recognised in allowed revenue | C50: t+2 | D50: =IF($C50=$B$33,$B$33,INDEX(Data!$G$14:$G$30,MATCH('R5 - Output Incentives'!D$6+RIGHT('R5 - Output Incentives'!$C50,2),Data!$C$14:$C$30,0),0)) -> 0.2 | E50: =IF($C50=$B$33,$B$33,INDEX(Data!$G$14:$G$30,MATCH('R5 - Output Incentives'!E$6+RIGHT('R5 - Output Incentives'!$C50,2),Data!$C$14:$C$30,0),0)) -> 0.2 | F50: =IF($C50=$B$33,$B$33,INDEX(Data!$G$14:$G$30,MATCH('R5 - Output Incentives'!F$6+RIGHT('R5 - Output Incentives'!$C50,2),Data!$C$14:$C$30,0),0)) -> 0.19 | G50: =IF($C50=$B$33,$B$33,INDEX(Data!$G$14:$G$30,MATCH('R5 - Output Incentives'!G$6+RIGHT('R5 - Output Incentives'!$C50,2),Data!$C$14:$C$30,0),0)) -> 0.19 | H50: =IF($C50=$B$33,$B$33,INDEX(Data!$G$14:$G$30,MATCH('R5 - Output Incentives'!H$6+RIGHT('R5 - Output Incentives'!$C50,2),Data!$C$14:$C$30,0),0)) -> 0.19 | I50: =IF($C50=$B$33,$B$33,INDEX(Data!$G$14:$G$30,MATCH('R5 - Output Incentives'!I$6+RIGHT('R5 - Output Incentives'!$C50,2),Data!$C$14:$C$30,0),0)) -> 0.19 | J50: =IF($C50=$B$33,$B$33,INDEX(Data!$G$14:$G$30,MATCH('R5 - Output Incentives'!J$6+RIGHT('R5 - Output Incentives'!$C50,2),Data!$C$14:$C$30,0),0)) -> 0.19 | K50: =IF($C50=$B$33,$B$33,INDEX(Data!$G$14:$G$30,MATCH('R5 - Output Incentives'!K$6+RIGHT('R5 - Output Incentives'!$C50,2),Data!$C$14:$C$30,0),0)) -> 0.19
B51: Post tax | D51: =IFERROR(D49*(1-D50),0) -> 1.753931143 | E51: 1.133942265 | F51: 2.085728748 | G51: 2.717056731 | H51: 2.692438761 | I51: 2.612136767 | J51: 2.728413312 | K51: 2.681625379 | L51: =SUM(D51:INDEX(D51:K51,0,MATCH('RFPR cover'!$C$7,$D$6:$K$6,0))) -> 15.72364773 | M51: =SUM(D51:K51) -> 18.40527311
A53: =$A$12 -> b | B53: =INDEX($B$11:$B$15,MATCH($A53,$A$11:$A$15,0),0)&"" -> Shrinkage Allowance Revenue Adjustment | C53: ='RFPR cover'!$C$14 -> £m 09/10 | D53: =INDEX($D$11:$K$17,MATCH($A53,$A$11:$A$17,0),0) -> 0.7335884242 | E53: 0.538874375 | F53: 0.4718170532 | G53: 0.2887511439 | H53: 0.307459875 | I53: 0.5586941214 | J53: 0.2427800792 | K53: 0.3158011769 | L53: =SUM(D53:INDEX(D53:K53,0,MATCH('RFPR cover'!$C$7,$D$6:$K$6,0))) -> 3.141965072 | M53: =SUM(D53:K53) -> 3.457766249
B54: Corporation tax rate when recognised in allowed revenue | C54: t+2 | D54: =IF($C54=$B$33,$B$33,INDEX(Data!$G$14:$G$30,MATCH('R5 - Output Incentives'!D$6+RIGHT('R5 - Output Incentives'!$C54,2),Data!$C$14:$C$30,0),0)) -> 0.2 | E54: =IF($C54=$B$33,$B$33,INDEX(Data!$G$14:$G$30,MATCH('R5 - Output Incentives'!E$6+RIGHT('R5 - Output Incentives'!$C54,2),Data!$C$14:$C$30,0),0)) -> 0.2 | F54: =IF($C54=$B$33,$B$33,INDEX(Data!$G$14:$G$30,MATCH('R5 - Output Incentives'!F$6+RIGHT('R5 - Output Incentives'!$C54,2),Data!$C$14:$C$30,0),0)) -> 0.19 | G54: =IF($C54=$B$33,$B$33,INDEX(Data!$G$14:$G$30,MATCH('R5 - Output Incentives'!G$6+RIGHT('R5 - Output Incentives'!$C54,2),Data!$C$14:$C$30,0),0)) -> 0.19 | H54: =IF($C54=$B$33,$B$33,INDEX(Data!$G$14:$G$30,MATCH('R5 - Output Incentives'!H$6+RIGHT('R5 - Output Incentives'!$C54,2),Data!$C$14:$C$30,0),0)) -> 0.19 | I54: =IF($C54=$B$33,$B$33,INDEX(Data!$G$14:$G$30,MATCH('R5 - Output Incentives'!I$6+RIGHT('R5 - Output Incentives'!$C54,2),Data!$C$14:$C$30,0),0)) -> 0.19 | J54: =IF($C54=$B$33,$B$33,INDEX(Data!$G$14:$G$30,MATCH('R5 - Output Incentives'!J$6+RIGHT('R5 - Output Incentives'!$C54,2),Data!$C$14:$C$30,0),0)) -> 0.19 | K54: =IF($C54=$B$33,$B$33,INDEX(Data!$G$14:$G$30,MATCH('R5 - Output Incentives'!K$6+RIGHT('R5 - Output Incentives'!$C54,2),Data!$C$14:$C$30,0),0)) -> 0.19
B55: Post tax | D55: =IFERROR(D53*(1-D54),0) -> 0.5868707394 | E55: 0.4310995 | F55: 0.3821718131 | G55: 0.2338884265 | H55: 0.2490424988 | I55: 0.4525422383 | J55: 0.1966518642 | K55: 0.2557989532 | L55: =SUM(D55:INDEX(D55:K55,0,MATCH('RFPR cover'!$C$7,$D$6:$K$6,0))) -> 2.53226708 | M55: =SUM(D55:K55) -> 2.788066033
A57: =$A$13 -> c | B57: =INDEX($B$11:$B$15,MATCH($A57,$A$11:$A$15,0),0)&"" -> Environment Emissions Incentive | C57: ='RFPR cover'!$C$14 -> £m 09/10 | D57: =INDEX($D$11:$K$17,MATCH($A57,$A$11:$A$17,0),0) -> 2.279289045 | E57: 2.417746782 | F57: 2.646847908 | G57: 1.748295446 | H57: 1.651404334 | I57: 2.436523535 | J57: 2.28639803 | K57: 4.173426051 | L57: =SUM(D57:INDEX(D57:K57,0,MATCH('RFPR cover'!$C$7,$D$6:$K$6,0))) -> 15.46650508 | M57: =SUM(D57:K57) -> 19.63993113
B58: Corporation tax rate when recognised in allowed revenue | C58: t+2 | D58: =IF($C58=$B$33,$B$33,INDEX(Data!$G$14:$G$30,MATCH('R5 - Output Incentives'!D$6+RIGHT('R5 - Output Incentives'!$C58,2),Data!$C$14:$C$30,0),0)) -> 0.2 | E58: =IF($C58=$B$33,$B$33,INDEX(Data!$G$14:$G$30,MATCH('R5 - Output Incentives'!E$6+RIGHT('R5 - Output Incentives'!$C58,2),Data!$C$14:$C$30,0),0)) -> 0.2 | F58: =IF($C58=$B$33,$B$33,INDEX(Data!$G$14:$G$30,MATCH('R5 - Output Incentives'!F$6+RIGHT('R5 - Output Incentives'!$C58,2),Data!$C$14:$C$30,0),0)) -> 0.19 | G58: =IF($C58=$B$33,$B$33,INDEX(Data!$G$14:$G$30,MATCH('R5 - Output Incentives'!G$6+RIGHT('R5 - Output Incentives'!$C58,2),Data!$C$14:$C$30,0),0)) -> 0.19 | H58: =IF($C58=$B$33,$B$33,INDEX(Data!$G$14:$G$30,MATCH('R5 - Output Incentives'!H$6+RIGHT('R5 - Output Incentives'!$C58,2),Data!$C$14:$C$30,0),0)) -> 0.19 | I58: =IF($C58=$B$33,$B$33,INDEX(Data!$G$14:$G$30,MATCH('R5 - Output Incentives'!I$6+RIGHT('R5 - Output Incentives'!$C58,2),Data!$C$14:$C$30,0),0)) -> 0.19 | J58: =IF($C58=$B$33,$B$33,INDEX(Data!$G$14:$G$30,MATCH('R5 - Output Incentives'!J$6+RIGHT('R5 - Output Incentives'!$C58,2),Data!$C$14:$C$30,0),0)) -> 0.19 | K58: =IF($C58=$B$33,$B$33,INDEX(Data!$G$14:$G$30,MATCH('R5 - Output Incentives'!K$6+RIGHT('R5 - Output Incentives'!$C58,2),Data!$C$14:$C$30,0),0)) -> 0.19
B59: Post tax | D59: =IFERROR(D57*(1-D58),0) -> 1.823431236 | E59: 1.934197426 | F59: 2.143946805 | G59: 1.416119312 | H59: 1.33763751 | I59: 1.973584063 | J59: 1.851982404 | K59: 3.380475101 | L59: =SUM(D59:INDEX(D59:K59,0,MATCH('RFPR cover'!$C$7,$D$6:$K$6,0))) -> 12.48089876 | M59: =SUM(D59:K59) -> 15.86137386
A61: =$A$14 -> d | B61: =INDEX($B$11:$B$15,MATCH($A61,$A$11:$A$15,0),0)&"" -> Discretionary Reward Scheme | C61: ='RFPR cover'!$C$14 -> £m 09/10 | D61: =INDEX($D$11:$K$17,MATCH($A61,$A$11:$A$17,0),0) -> 0.08211142279 | E61: 0.08211142279 | F61: 0.05212574592 | G61: 0.05212574592 | H61: 0.05212574592 | I61: 0 | J61: 0 | K61: 0 | L61: =SUM(D61:INDEX(D61:K61,0,MATCH('RFPR cover'!$C$7,$D$6:$K$6,0))) -> 0.3206000833 | M61: =SUM(D61:K61) -> 0.3206000833
B62: Corporation tax rate when recognised in allowed revenue | C62: t+2 | D62: =IF($C62=$B$33,$B$33,INDEX(Data!$G$14:$G$30,MATCH('R5 - Output Incentives'!D$6+RIGHT('R5 - Output Incentives'!$C62,2),Data!$C$14:$C$30,0),0)) -> 0.2 | E62: =IF($C62=$B$33,$B$33,INDEX(Data!$G$14:$G$30,MATCH('R5 - Output Incentives'!E$6+RIGHT('R5 - Output Incentives'!$C62,2),Data!$C$14:$C$30,0),0)) -> 0.2 | F62: =IF($C62=$B$33,$B$33,INDEX(Data!$G$14:$G$30,MATCH('R5 - Output Incentives'!F$6+RIGHT('R5 - Output Incentives'!$C62,2),Data!$C$14:$C$30,0),0)) -> 0.19 | G62: =IF($C62=$B$33,$B$33,INDEX(Data!$G$14:$G$30,MATCH('R5 - Output Incentives'!G$6+RIGHT('R5 - Output Incentives'!$C62,2),Data!$C$14:$C$30,0),0)) -> 0.19 | H62: =IF($C62=$B$33,$B$33,INDEX(Data!$G$14:$G$30,MATCH('R5 - Output Incentives'!H$6+RIGHT('R5 - Output Incentives'!$C62,2),Data!$C$14:$C$30,0),0)) -> 0.19 | I62: =IF($C62=$B$33,$B$33,INDEX(Data!$G$14:$G$30,MATCH('R5 - Output Incentives'!I$6+RIGHT('R5 - Output Incentives'!$C62,2),Data!$C$14:$C$30,0),0)) -> 0.19 | J62: =IF($C62=$B$33,$B$33,INDEX(Data!$G$14:$G$30,MATCH('R5 - Output Incentives'!J$6+RIGHT('R5 - Output Incentives'!$C62,2),Data!$C$14:$C$30,0),0)) -> 0.19 | K62: =IF($C62=$B$33,$B$33,INDEX(Data!$G$14:$G$30,MATCH('R5 - Output Incentives'!K$6+RIGHT('R5 - Output Incentives'!$C62,2),Data!$C$14:$C$30,0),0)) -> 0.19
B63: Post tax | D63: =IFERROR(D61*(1-D62),0) -> 0.06568913824 | E63: 0.06568913824 | F63: 0.04222185419 | G63: 0.04222185419 | H63: 0.04222185419 | I63: 0 | J63: 0 | K63: 0 | L63: =SUM(D63:INDEX(D63:K63,0,MATCH('RFPR cover'!$C$7,$D$6:$K$6,0))) -> 0.258043839 | M63: =SUM(D63:K63) -> 0.258043839
A65: =$A$15 -> e | B65: =INDEX($B$11:$B$15,MATCH($A65,$A$11:$A$15,0),0)&"" -> NTS Exit Capacity | C65: ='RFPR cover'!$C$14 -> £m 09/10 | D65: =INDEX($D$11:$K$17,MATCH($A65,$A$11:$A$17,0),0) -> 1.5443072 | E65: 4.67191973 | F65: 9.70199451 | G65: 6.74284177 | H65: 6.78905303 | I65: 7.04793862 | J65: 5.43049772 | K65: 4.06113534 | L65: =SUM(D65:INDEX(D65:K65,0,MATCH('RFPR cover'!$C$7,$D$6:$K$6,0))) -> 41.92855258 | M65: =SUM(D65:K65) -> 45.98968792
B66: Corporation tax rate when recognised in allowed revenue | C66: t+2 | D66: =IF($C66=$B$33,$B$33,INDEX(Data!$G$14:$G$30,MATCH('R5 - Output Incentives'!D$6+RIGHT('R5 - Output Incentives'!$C66,2),Data!$C$14:$C$30,0),0)) -> 0.2 | E66: =IF($C66=$B$33,$B$33,INDEX(Data!$G$14:$G$30,MATCH('R5 - Output Incentives'!E$6+RIGHT('R5 - Output Incentives'!$C66,2),Data!$C$14:$C$30,0),0)) -> 0.2 | F66: =IF($C66=$B$33,$B$33,INDEX(Data!$G$14:$G$30,MATCH('R5 - Output Incentives'!F$6+RIGHT('R5 - Output Incentives'!$C66,2),Data!$C$14:$C$30,0),0)) -> 0.19 | G66: =IF($C66=$B$33,$B$33,INDEX(Data!$G$14:$G$30,MATCH('R5 - Output Incentives'!G$6+RIGHT('R5 - Output Incentives'!$C66,2),Data!$C$14:$C$30,0),0)) -> 0.19 | H66: =IF($C66=$B$33,$B$33,INDEX(Data!$G$14:$G$30,MATCH('R5 - Output Incentives'!H$6+RIGHT('R5 - Output Incentives'!$C66,2),Data!$C$14:$C$30,0),0)) -> 0.19 | I66: =IF($C66=$B$33,$B$33,INDEX(Data!$G$14:$G$30,MATCH('R5 - Output Incentives'!I$6+RIGHT('R5 - Output Incentives'!$C66,2),Data!$C$14:$C$30,0),0)) -> 0.19 | J66: =IF($C66=$B$33,$B$33,INDEX(Data!$G$14:$G$30,MATCH('R5 - Output Incentives'!J$6+RIGHT('R5 - Output Incentives'!$C66,2),Data!$C$14:$C$30,0),0)) -> 0.19 | K66: =IF($C66=$B$33,$B$33,INDEX(Data!$G$14:$G$30,MATCH('R5 - Output Incentives'!K$6+RIGHT('R5 - Output Incentives'!$C66,2),Data!$C$14:$C$30,0),0)) -> 0.19
B67: Post tax | D67: =IFERROR(D65*(1-D66),0) -> 1.23544576 | E67: 3.737535784 | F67: 7.858615553 | G67: 5.461701834 | H67: 5.499132954 | I67: 5.708830282 | J67: 4.398703153 | K67: 3.289519625 | L67: =SUM(D67:INDEX(D67:K67,0,MATCH('RFPR cover'!$C$7,$D$6:$K$6,0))) -> 33.89996532 | M67: =SUM(D67:K67) -> 37.18948495
A69: =$A$16 -> f | B69: =INDEX($B$11:$B$17,MATCH($A69,$A$11:$A$17,0),0)&"" ->  | C69: ='RFPR cover'!$C$14 -> £m 09/10 | D69: =INDEX($D$11:$K$17,MATCH($A69,$A$11:$A$17,0),0) -> 0 | E69: 0 | F69: 0 | G69: 0 | H69: 0 | I69: 0 | J69: 0 | K69: 0 | L69: =SUM(D69:INDEX(D69:K69,0,MATCH('RFPR cover'!$C$7,$D$6:$K$6,0))) -> 0 | M69: =SUM(D69:K69) -> 0
B70: Corporation tax rate when recognised in allowed revenue | C70: t+2 | D70: =IF($C70=$B$33,$B$33,INDEX(Data!$G$14:$G$30,MATCH('R5 - Output Incentives'!D$6+RIGHT('R5 - Output Incentives'!$C70,2),Data!$C$14:$C$30,0),0)) -> 0.2 | E70: =IF($C70=$B$33,$B$33,INDEX(Data!$G$14:$G$30,MATCH('R5 - Output Incentives'!E$6+RIGHT('R5 - Output Incentives'!$C70,2),Data!$C$14:$C$30,0),0)) -> 0.2 | F70: =IF($C70=$B$33,$B$33,INDEX(Data!$G$14:$G$30,MATCH('R5 - Output Incentives'!F$6+RIGHT('R5 - Output Incentives'!$C70,2),Data!$C$14:$C$30,0),0)) -> 0.19 | G70: =IF($C70=$B$33,$B$33,INDEX(Data!$G$14:$G$30,MATCH('R5 - Output Incentives'!G$6+RIGHT('R5 - Output Incentives'!$C70,2),Data!$C$14:$C$30,0),0)) -> 0.19 | H70: =IF($C70=$B$33,$B$33,INDEX(Data!$G$14:$G$30,MATCH('R5 - Output Incentives'!H$6+RIGHT('R5 - Output Incentives'!$C70,2),Data!$C$14:$C$30,0),0)) -> 0.19 | I70: =IF($C70=$B$33,$B$33,INDEX(Data!$G$14:$G$30,MATCH('R5 - Output Incentives'!I$6+RIGHT('R5 - Output Incentives'!$C70,2),Data!$C$14:$C$30,0),0)) -> 0.19 | J70: =IF($C70=$B$33,$B$33,INDEX(Data!$G$14:$G$30,MATCH('R5 - Output Incentives'!J$6+RIGHT('R5 - Output Incentives'!$C70,2),Data!$C$14:$C$30,0),0)) -> 0.19 | K70: =IF($C70=$B$33,$B$33,INDEX(Data!$G$14:$G$30,MATCH('R5 - Output Incentives'!K$6+RIGHT('R5 - Output Incentives'!$C70,2),Data!$C$14:$C$30,0),0)) -> 0.19
B71: Post tax | D71: =IFERROR(D69*(1-D70),0) -> 0 | E71: 0 | F71: 0 | G71: 0 | H71: 0 | I71: 0 | J71: 0 | K71: 0 | L71: =SUM(D71:INDEX(D71:K71,0,MATCH('RFPR cover'!$C$7,$D$6:$K$6,0))) -> 0 | M71: =SUM(D71:K71) -> 0
A73: g | B73: =INDEX($B$11:$B$17,MATCH($A73,$A$11:$A$17,0),0)&"" ->  | C73: ='RFPR cover'!$C$14 -> £m 09/10 | D73: =INDEX($D$11:$K$17,MATCH($A73,$A$11:$A$17,0),0) -> 0 | E73: 0 | F73: 0 | G73: 0 | H73: 0 | I73: 0 | J73: 0 | K73: 0 | L73: =SUM(D73:INDEX(D73:K73,0,MATCH('RFPR cover'!$C$7,$D$6:$K$6,0))) -> 0 | M73: =SUM(D73:K73) -> 0
B74: Corporation tax rate when recognised in allowed revenue | C74: t+2 | D74: =IF($C74=$B$33,$B$33,INDEX(Data!$G$14:$G$30,MATCH('R5 - Output Incentives'!D$6+RIGHT('R5 - Output Incentives'!$C74,2),Data!$C$14:$C$30,0),0)) -> 0.2 | E74: =IF($C74=$B$33,$B$33,INDEX(Data!$G$14:$G$30,MATCH('R5 - Output Incentives'!E$6+RIGHT('R5 - Output Incentives'!$C74,2),Data!$C$14:$C$30,0),0)) -> 0.2 | F74: =IF($C74=$B$33,$B$33,INDEX(Data!$G$14:$G$30,MATCH('R5 - Output Incentives'!F$6+RIGHT('R5 - Output Incentives'!$C74,2),Data!$C$14:$C$30,0),0)) -> 0.19 | G74: =IF($C74=$B$33,$B$33,INDEX(Data!$G$14:$G$30,MATCH('R5 - Output Incentives'!G$6+RIGHT('R5 - Output Incentives'!$C74,2),Data!$C$14:$C$30,0),0)) -> 0.19 | H74: =IF($C74=$B$33,$B$33,INDEX(Data!$G$14:$G$30,MATCH('R5 - Output Incentives'!H$6+RIGHT('R5 - Output Incentives'!$C74,2),Data!$C$14:$C$30,0),0)) -> 0.19 | I74: =IF($C74=$B$33,$B$33,INDEX(Data!$G$14:$G$30,MATCH('R5 - Output Incentives'!I$6+RIGHT('R5 - Output Incentives'!$C74,2),Data!$C$14:$C$30,0),0)) -> 0.19 | J74: =IF($C74=$B$33,$B$33,INDEX(Data!$G$14:$G$30,MATCH('R5 - Output Incentives'!J$6+RIGHT('R5 - Output Incentives'!$C74,2),Data!$C$14:$C$30,0),0)) -> 0.19 | K74: =IF($C74=$B$33,$B$33,INDEX(Data!$G$14:$G$30,MATCH('R5 - Output Incentives'!K$6+RIGHT('R5 - Output Incentives'!$C74,2),Data!$C$14:$C$30,0),0)) -> 0.19
B75: Post tax | D75: =IFERROR(D73*(1-D74),0) -> 0 | E75: 0 | F75: 0 | G75: 0 | H75: 0 | I75: 0 | J75: 0 | K75: 0 | L75: =SUM(D75:INDEX(D75:K75,0,MATCH('RFPR cover'!$C$7,$D$6:$K$6,0))) -> 0 | M75: =SUM(D75:K75) -> 0
B77: Impact on Allowed Revenue within RIIO-1
B78: This table shows the impact on allowed revenue in the relevant year - with actuals (subject to determination) and forecasts thereafter.
B79: The cells above the allowed revenue indicate the year of performance
C81: Performance Year | D81: =IF($C50=$B$33,D$6,IF(D$6-RIGHT($C50,1)<$D$6,"Pre-RIIO",D$6-RIGHT($C50,1))) -> Pre-RIIO | E81: Pre-RIIO | F81: 2014 | G81: 2015 | H81: 2016 | I81: 2017 | J81: 2018 | K81: 2019
A82: =A11 -> a | B82: =B11&"" -> Broad Measure of Customer Satisfaction | C82: £m nominal | D82: 0 | E82: 0 | F82: 2.5578727 | G82: 1.68611066 | H82: 3.09609467 | I82: 4.11966168 | J82: 4.23510681 | K82: 4.23434159
C84: Performance Year | D84: =IF($C54=$B$33,D$6,IF(D$6-RIGHT($C54,1)<$D$6,"Pre-RIIO",D$6-RIGHT($C54,1))) -> Pre-RIIO | E84: Pre-RIIO | F84: 2014 | G84: 2015 | H84: 2016 | I84: 2017 | J84: 2018 | K84: 2019
A85: =A12 -> b | B85: =B12&"" -> Shrinkage Allowance Revenue Adjustment | C85: £m nominal | D85: 0 | E85: 0 | F85: 0.82377685 | G85: 0.63300881 | H85: 0.56029923 | I85: 0.35024871 | J85: 0.39173466 | K85: 0.71590604
C87: Performance Year | D87: =IF($C58=$B$33,D$6,IF(D$6-RIGHT($C58,1)<$D$6,"Pre-RIIO",D$6-RIGHT($C58,1))) -> Pre-RIIO | E87: Pre-RIIO | F87: 2014 | G87: 2015 | H87: 2016 | I87: 2017 | J87: 2018 | K87: 2019
A88: =A13 -> c | B88: =B13&"" -> Environment Emissions Incentive | C88: £m nominal | D88: 0 | E88: 0 | F88: 2.55950814 | G88: 2.84009611 | H88: 3.14322433 | I88: 2.12064347 | J88: 2.10405444 | K88: 3.12214116
C90: Performance Year | D90: =IF($C62=$B$33,D$6,IF(D$6-RIGHT($C62,1)<$D$6,"Pre-RIIO",D$6-RIGHT($C62,1))) -> Pre-RIIO | E90: Pre-RIIO | F90: 2014 | G90: 2015 | H90: 2016 | I90: 2017 | J90: 2018 | K90: 2019
A91: =A14 -> d | B91: =B14&"" -> Discretionary Reward Scheme | C91: £m nominal | D91: 0.3272481 | E91: 0.30502755 | F91: 0 | G91: 0.20168864 | H91: 0 | I91: 0 | J91: 0.21085631 | K91: 0
C93: Performance Year | D93: =IF($C66=$B$33,D$6,IF(D$6-RIGHT($C66,1)<$D$6,"Pre-RIIO",D$6-RIGHT($C66,1))) -> Pre-RIIO | E93: Pre-RIIO | F93: 2014 | G93: 2015 | H93: 2016 | I93: 2017 | J93: 2018 | K93: 2019
A94: =A15 -> e | B94: =B15&"" -> NTS Exit Capacity | C94: £m nominal | D94: 0 | E94: 0 | F94: 2.05592478 | G94: 6.23610236 | H94: 13.3231216 | I94: 9.553788 | J94: 9.9162625 | K94: 10.4516256
C96: Performance Year | D96: =IF($C70=$B$33,D$6,IF(D$6-RIGHT($C70,1)<$D$6,"Pre-RIIO",D$6-RIGHT($C70,1))) -> Pre-RIIO | E96: Pre-RIIO | F96: 2014 | G96: 2015 | H96: 2016 | I96: 2017 | J96: 2018 | K96: 2019
A97: =A16 -> f | B97: =B16&"" ->  | C97: £m nominal | D97: 0 | E97: 0 | F97: 0 | G97: 0 | H97: 0 | I97: 0 | J97: 0 | K97: 0
C99: Performance Year | D99: =IF($C74=$B$33,D$6,IF(D$6-RIGHT($C74,1)<$D$6,"Pre-RIIO",D$6-RIGHT($C74,1))) -> Pre-RIIO | E99: Pre-RIIO | F99: 2014 | G99: 2015 | H99: 2016 | I99: 2017 | J99: 2018 | K99: 2019
A100: =A17 -> g | B100: =B17&"" ->  | C100: £m nominal | D100: 0 | E100: 0 | F100: 0 | G100: 0 | H100: 0 | I100: 0 | J100: 0 | K100: 0
B102: Total Impact on Allowed Revenue | C102: £m nominal | D102: =SUM(D82,D85,D88,D91,D94,D97,D100) -> 0.3272481 | E102: 0.30502755 | F102: 7.99708247 | G102: 11.59700658 | H102: 20.12273983 | I102: 16.14434186 | J102: 16.85801472 | K102: 18.52401439
B104: Additional Commentary
A105: =A82 -> a
A106: =A85 -> b
A107: =A88 -> c
A108: =A91 -> d
A109: =A94 -> e
A110: =A97 -> f
A111: =A100 -> g

Sheet R6 - Innovation
A1: R6 - Innovation
A2: ='RFPR cover'!C5 -> Cadent-EOE
A3: ='RFPR cover'!C7 -> 2020 | B3: ='R1 - RoRE'!B3 -> 
D5: =IF(D6<='RFPR cover'!$C$7,"Actuals","Forecast") -> Actuals | E5: =IF(E6<='RFPR cover'!$C$7,"Actuals","Forecast") -> Actuals | F5: =IF(F6<='RFPR cover'!$C$7,"Actuals","Forecast") -> Actuals | G5: =IF(G6<='RFPR cover'!$C$7,"Actuals","Forecast") -> Actuals | H5: =IF(H6<='RFPR cover'!$C$7,"Actuals","Forecast") -> Actuals | I5: =IF(I6<='RFPR cover'!$C$7,"Actuals","Forecast") -> Actuals | J5: =IF(J6<='RFPR cover'!$C$7,"Actuals","Forecast") -> Actuals | K5: =IF(K6<='RFPR cover'!$C$7,"Actuals","Forecast") -> Forecast
D6: ='RFPR cover'!$C$13 -> 2014 | E6: =D6+1 -> 2015 | F6: 2016 | G6: 2017 | H6: 2018 | I6: 2019 | J6: 2020 | K6: 2021
B8: Network Innovation Allowance
B9: Eligible NIA expenditure and Bid Preparation costs | C9: £m nominal | D9: 1.03396013 | E9: 2.79581402 | F9: 3.49514809 | G9: 2.79 | H9: 2.68915341 | I9: 1.781474126 | J9: 2.23146016 | K9: 2.568349502
B10: Unrecoverable Expenditure (eg not conforming to technical requirements) | C10: £m nominal | D10: 0 | E10: 0 | F10: 0 | G10: 0 | H10: 0 | I10: 0 | J10: 0 | K10: 0
B11: Company Compulsory Contribution (including % contribution funded by licensee) | C11: £m nominal | D11: 0.11150499 | E11: 0.2795814 | F11: 0.34951481 | G11: 0.28575 | H11: 0.26891534 | I11: 0.1781474126 | J11: 0.223146016 | K11: 0.2568349502
B12: Allowed NIA adjustment | C12: £m nominal | D12: =D9-D10-D11 -> 0.92245514 | E12: 2.51623262 | F12: 3.14563328 | G12: 2.50425 | H12: 2.42023807 | I12: 1.603326713 | J12: 2.008314144 | K12: 2.311514552
B14: Low Carbon Networks Fund
B15: Second Tier and Discretionary (as per latest Revenue RRP) | C15: £m nominal | D15: 0 | E15: 0 | F15: 0 | G15: 0 | H15: 0 | I15: 0 | J15: 0 | K15: 0
B16: First Tier Funding Mechanism (as per latest Revenue RRP) | C16: £m nominal | D16: 0 | E16: 0 | F16: 0 | G16: 0 | H16: 0 | I16: 0 | J16: 0 | K16: 0
B17: Low Carbon Networks Fund revenue adjustment | C17: £m nominal | D17: =D15-D16 -> 0 | E17: 0 | F17: 0 | G17: 0 | H17: 0 | I17: 0 | J17: 0 | K17: 0
B19: Network Innovation Competition
B20: Awarded NIC funding actually spent or forecast to be spent | C20: £m nominal | D20: 0 | E20: 0.3 | F20: 0.3 | G20: 2.3 | H20: 1.9 | I20: 1.471902818 | J20: 1.720513537 | K20: 0
B21: Company Compulsory Contribution (including % contribution funded by licensee) | C21: £m nominal | D21: 0 | E21: 0 | F21: 0.1 | G21: 0.2 | H21: 0.2 | I21: 0.1906777944 | J21: 0.2600624553 | K21: 0.1187790195
B23: Successful Delivery Rewards | C23: £m nominal | D23: 0 | E23: 0 | F23: 0 | G23: 0 | H23: 0 | I23: 0.07785400875 | J23: 0 | K23: 0
B27: RoRE Inputs
B28: Network innovation | C28: ='RFPR cover'!$C$14 -> £m 09/10 | D28: =(SUM(D10,D11,D21)-D23)/Data!C34 -> 0.09557387064 | E28: =(SUM(E10,E11,E21)-E23)/Data!D34 -> 0.2350299802 | F28: =(SUM(F10,F11,F21)-F23)/Data!E34 -> 0.3738555311 | G28: =(SUM(G10,G11,G21)-G23)/Data!F34 -> 0.3955169222 | H28: =(SUM(H10,H11,H21)-H23)/Data!G34 -> 0.3680375113 | I28: =(SUM(I10,I11,I21)-I23)/Data!H34 -> 0.2216032817 | J28: =(SUM(J10,J11,J21)-J23)/Data!I34 -> 0.3587246242 | K28: =(SUM(K10,K11,K21)-K23)/Data!J34 -> 0.2725792248

Sheet R7 - Financing
A1: R7 - Financing
A2: ='RFPR cover'!C5 -> Cadent-EOE
A3: ='RFPR cover'!C7 -> 2020 | B3: ='R1 - RoRE'!B3 -> 
D5: Actuals | E5: Actuals | F5: Actuals | G5: Actuals | H5: Actuals | I5: Actuals | J5: Actuals | K5: Forecast
D6: ='RFPR cover'!$C$13 -> 2014 | E6: =D6+1 -> 2015 | F6: 2016 | G6: 2017 | H6: 2018 | I6: 2019 | J6: 2020 | K6: 2021 | L6: ="Cumulative to "&'RFPR cover'!$C$7 -> Cumulative to 2020 | M6: RIIO-1 period
B8: Net Interest Per Statutory Accounts | C8: £m nominal | D8: 190 | E8: 202 | F8: 157 | G8: 1009.9592 | H8: 144.5319051 | I8: 146.4870987 | J8: 154.7900868 | K8: 130.9119353
B10: Reconciliation with Statutory Accounts
B11: Interest not qualifying for corporation tax relief | C11: £m nominal | D11: 0 | E11: 0 | F11: 0 | G11: 0 | H11: 0 | I11: 0 | J11: 0 | K11: 0
B12: Fair value adjustments (e.g. losses on derivatives) | C12: £m nominal | D12: 0 | E12: 0 | F12: 0 | G12: -12 | H12: 6.412367166 | I12: 8 | J12: 11.87911731 | K12: 12.94153229
B13: Dividends on preference shares | C13: £m nominal | D13: 0 | E13: 0 | F13: 0 | G13: 0 | H13: 0 | I13: 0 | J13: 0 | K13: 0
B14: Costs of early redemption on long term debt | C14: £m nominal | D14: 0 | E14: -18.13 | F14: 0 | G14: 0 | H14: 0 | I14: 0 | J14: -4.376 | K14: 0
B15: Swap Termination Costs paid | C15: £m nominal | D15: -0.3169319263 | E15: 0 | F15: 0 | G15: 0 | H15: 0 | I15: 0 | J15: 0 | K15: 0
B16: Movements relating to pension fund liabilities reported within net interest | C16: £m nominal | D16: 11.22097399 | E16: 0 | F16: 0 | G16: -1 | H16: 1.99999996 | I16: 14 | J16: 17 | K16: 16.77013382
B17: Debt issuance expenses (inc. amortisation to discounts that had previously benefitted from a tax deduction) | C17: £m nominal | D17: 0 | E17: 0 | F17: 0 | G17: -1 | H17: -2.750202954 | I17: -2.77 | J17: -4.566235503 | K17: -3.946711444
B18: Commitment fees for undrawn liquidity backup lines | C18: £m nominal | D18: 0 | E18: 0 | F18: 0 | G18: -1 | H18: -2.509623794 | I18: -2.15 | J18: -2.13299451 | K18: -2.6
B19: Less: Capitalised Interest | C19: £m nominal | D19: 0 | E19: 11.8 | F19: 0 | G19: 1 | H19: 0 | I19: 0 | J19: 0 | K19: 0
B20: Less: Unwind of discount | C20: £m nominal | D20: -1.234323432 | E20: -4.32 | F20: -4 | G20: -2 | H20: -2.16435857 | I20: -0.3 | J20: -0.30747824 | K20: -0.8390082898
B21: Less: Term Debt / Letter of Credit / RCF Fees | C21: £m nominal | D21: 0 | E21: 0 | F21: 0 | G21: 0 | H21: -1.610053807 | I21: -1.63 | J21: -1.62036365 | K21: -1.2
B22: losses/(gains) on derivative financial instruments | C22: £m nominal | D22: 10.14087222 | E22: -15.53 | F22: -6 | G22: 0 | H22: 0 | I22: -18 | J22: -15.03896397 | K22: 0
B23: Less: Commitment Commission and other | C23: £m nominal | D23: 0 | E23: -1.24 | F23: 0 | G23: 0 | H23: 0 | I23: 0 | J23: 0 | K23: 0
B24: Economic cost of changing capital structure in FY16/17 | C24: £m nominal | D24: 0 | E24: 0 | F24: 0 | G24: 9.194183496 | H24: 25.62678046 | I24: 30.45026393 | J24: 31.26637847 | K24: 28.60604821
B25: Less: Debt cap disallowance | C25: £m nominal | D25: -2.319436911 | E25: 0 | F25: 0 | G25: 0 | H25: 0 | I25: 0 | J25: 0 | K25: 0
B26: Less finance costs relating to metering | C26: £m nominal | D26: -15 | E26: -12 | F26: -11 | G26: 0 | H26: 0 | I26: 0 | J26: 0 | K26: 0
B27: Less finance costs relating to other three networks | C27: £m nominal | D27: -125.9470667 | E27: -107.55 | F27: -90 | G27: -105.27462 | H27: -94.98400567 | I27: -94.83956705 | J27: -105.2159655 | K27: -111.8476473
B28: Exceptional costs of early redemption on long term debt- TBC | C28: £m nominal | D28: 0 | E28: 0 | F28: 0 | G28: -833 | H28: 0 | I28: 0 | J28: 0 | K28: 0
B29: Rounding | C29: £m nominal | D29: -1.010654234 | E29: 0.36 | F29: 0 | G29: -1.452200429 | H29: 0.3216586914 | I29: 0 | J29: 0 | K29: 0
B30: Net Interest Per Regulatory (RIIO-1) Definition | C30: £m nominal | D30: =SUM(D8,D11:D29) -> 65.53343306 | E30: 55.39 | F30: 46 | G30: 63.4265635 | H30: 74.87446659 | I30: 79.24779558 | J30: 81.67758121 | K30: 68.79628265
B31: Forecast new financing/refinancing Net Interest costs | C31: £m nominal | K31: 0
B32: Net Interest including forecast new financing/refinancing costs | C32: £m nominal | D32: =SUM(D30:D31) -> 65.53343306 | E32: 55.39 | F32: 46 | G32: 63.4265635 | H32: 74.87446659 | I32: 79.24779558 | J32: 81.67758121 | K32: 68.79628265
B33: External Net Interest | C33: £m nominal | D33: 61 | E33: 51.3 | F33: 43 | G33: 45.6265635 | H33: 74.87446659 | I33: 79.24779558 | J33: 81.67758121 | K33: 68.79628265
B34: Intra-company Net Interest | C34: £m nominal | D34: 4.5 | E34: 4.1 | F34: 3 | G34: 17.8 | H34: 0 | I34: 0 | J34: 0 | K34: 0
D35: =IF(ABS(D32-SUM(D33:D34))<'RFPR cover'!$F$14,"OK","ERROR") -> OK | E35: =IF(ABS(E32-SUM(E33:E34))<'RFPR cover'!$F$14,"OK","ERROR") -> OK | F35: =IF(ABS(F32-SUM(F33:F34))<'RFPR cover'!$F$14,"OK","ERROR") -> OK | G35: =IF(ABS(G32-SUM(G33:G34))<'RFPR cover'!$F$14,"OK","ERROR") -> OK | H35: =IF(ABS(H32-SUM(H33:H34))<'RFPR cover'!$F$14,"OK","ERROR") -> OK | I35: =IF(ABS(I32-SUM(I33:I34))<'RFPR cover'!$F$14,"OK","ERROR") -> OK | J35: =IF(ABS(J32-SUM(J33:J34))<'RFPR cover'!$F$14,"OK","ERROR") -> OK | K35: =IF(ABS(K32-SUM(K33:K34))<'RFPR cover'!$F$14,"OK","ERROR") -> OK
B37: Memo: Net interest (RIIO-1) Definition that relates to non-cash principal inflation accretion on bonds and loans | C37: £m nominal | D37: 0 | E37: 0 | F37: 0 | G37: 0 | H37: 10.59445335 | I37: 8.545162015 | J37: 9.555893962 | K37: 7.724864468
B39: Less inflation in interest charge | C39: £m nominal | D39: 56.1784094 | E39: 38.11964761 | F39: 19.62132476 | G39: 39.45437627 | H39: 77.00778837 | I39: 69.6311319 | J39: 63.28518027 | K39: 54.82427888
B41: Assumed Regulatory finance cost at actual gearing | C41: £m nominal | D41: =D32-D39 -> 9.355023662 | E41: 17.27035239 | F41: 26.37867524 | G41: 23.97218722 | H41: -2.133321777 | I41: 9.616663676 | J41: 18.39240093 | K41: 13.97200377
B43: Financial Year Average RPI (RPIt) | C43: Index | D43: 1.166689067 | E43: 1.189556327 | F43: 1.202375711 | G43: 1.228139614 | H43: 1.274096595 | I43: 1.313027479 | J43: 1.347017848 | K43: 1.377999258
B45: Assumed regulatory finance cost at actual gearing | C45: £m 09/10 | D45: =D41/D43 -> 8.018437751 | E45: 14.5183141 | F45: 21.93879583 | G45: 19.51910594 | H45: -1.674379938 | I45: 7.324038401 | J45: 13.65416276 | K45: 10.13934056 | L45: =SUM(D45:INDEX(D45:K45,0,MATCH('RFPR cover'!$C$7,$D$6:$K$6,0))) -> 83.29847484 | M45: =SUM(D45:K45) -> 93.4378154
B47: Adjustments to be applied to Assumed Finance cost for performance assessment
B48: Add back Debt Issuance expenses | C48: £m nominal | D48: 0 | E48: 0 | F48: 0 | G48: 1 | H48: 2.750202954 | I48: 2.77 | J48: 4.566235503 | K48: 3.946711444 | L48: =SUM(D48:INDEX(D48:K48,0,MATCH('RFPR cover'!$C$7,$D$6:$K$6,0))) -> 11.08643846 | M48: =SUM(D48:K48) -> 15.0331499
B49: New/refinanced debt issuance expenses | C49: £m nominal | K49: 0 | L49: =SUM(D49:INDEX(D49:K49,0,MATCH('RFPR cover'!$C$7,$D$6:$K$6,0))) -> 0 | M49: 0
B50: Costs of early redemption on long term debt (excluding exceptional costs of buy backs associated with M&A activity) | C50: £m nominal | D50: 0 | E50: 18.13 | F50: 0 | G50: 0 | H50: 0 | I50: 0 | J50: 4.376 | K50: 0 | L50: =SUM(D50:INDEX(D50:K50,0,MATCH('RFPR cover'!$C$7,$D$6:$K$6,0))) -> 22.506 | M50: 22.506
B51: Add accrual for inflation accretion on index-linked swaps (if applicable) | C51: £m nominal | D51: 0 | E51: 0 | F51: 0 | G51: 0 | H51: 0 | I51: 0 | J51: 0 | K51: 0 | L51: =SUM(D51:INDEX(D51:K51,0,MATCH('RFPR cover'!$C$7,$D$6:$K$6,0))) -> 0 | M51: 0
B52: Correction of debt issuance expense add back above | C52: £m nominal | D52: 0 | E52: 0 | F52: 0 | G52: -0.6567477153 | H52: -1.811514265 | I52: -1.828953683 | J52: 0 | K52: 0 | L52: =SUM(D52:INDEX(D52:K52,0,MATCH('RFPR cover'!$C$7,$D$6:$K$6,0))) -> -4.297215664 | M52: -4.297215664
B53: Correction of inflation strip calculation | C53: £m nominal | D53: 7.227440822 | E53: 3.114583784 | F53: 1.048841208 | G53: 0.7509989348 | H53: 2.507052284 | I53: 4.967062691 | J53: 0 | K53: 0 | L53: =SUM(D53:INDEX(D53:K53,0,MATCH('RFPR cover'!$C$7,$D$6:$K$6,0))) -> 19.61597972 | M53: 19.61597972
B54: Other Adjustments [please specify] | C54: £m nominal | D54: 0 | E54: 0 | F54: 0 | G54: 0 | H54: 0 | I54: 0 | J54: 0 | K54: 0 | L54: =SUM(D54:INDEX(D54:K54,0,MATCH('RFPR cover'!$C$7,$D$6:$K$6,0))) -> 0 | M54: 0
B55: Other Adjustments [please specify] | C55: £m nominal | D55: 0 | E55: 0 | F55: 0 | G55: 0 | H55: 0 | I55: 0 | J55: 0 | K55: 0 | L55: =SUM(D55:INDEX(D55:K55,0,MATCH('RFPR cover'!$C$7,$D$6:$K$6,0))) -> 0 | M55: 0
B57: Total Adjustments to be applied for performance assessment (at actual gearing) | C57: £m nominal | D57: =SUM(D48:D55) -> 7.227440822 | E57: =SUM(E48:E55) -> 21.24458378 | F57: 1.048841208 | G57: 1.094251219 | H57: 3.445740973 | I57: 5.908109008 | J57: 8.942235503 | K57: 3.946711444 | L57: =SUM(D57:INDEX(D57:K57,0,MATCH('RFPR cover'!$C$7,$D$6:$K$6,0))) -> 48.91120252 | M57: =SUM(D57:K57) -> 52.85791396
B58: Total Adjustments to be applied for performance assessment (at actual gearing) | C58: £m 09/10 | D58: =D57/D43 -> 6.194830331 | E58: =E57/E43 -> 17.85924996 | F58: 0.8723073815 | G58: 0.8909827575 | H58: 2.704458192 | I58: 4.499608046 | J58: 6.638542701 | K58: 2.86408822 | L58: =SUM(D58:INDEX(D58:K58,0,MATCH('RFPR cover'!$C$7,$D$6:$K$6,0))) -> 39.65997937 | M58: =SUM(D58:K58) -> 42.52406759
B61: Cost of Debt out(under)performance at notional gearing
B62: Performance against allowance is impacted by deviating from notional levels of gearing
B64: Notional Gearing | C64: % | D64: 0.65 | E64: 0.65 | F64: 0.65 | G64: 0.65 | H64: 0.65 | I64: 0.65 | J64: 0.65 | K64: 0.65
B65: Actual Gearing | C65: % | D65: 0.5348475358 | E65: 0.5743788994 | F65: 0.5623978056 | G65: 0.5895987225 | H65: 0.6262714494 | I65: 0.6315563751 | J65: 0.6377436661 | K65: 0.6406651609
B67: Assumed regulatory finance cost at actual gearing | C67: £m nominal | D67: =D41 -> 9.355023662 | E67: 17.27035239 | F67: 26.37867524 | G67: 23.97218722 | H67: -2.133321777 | I67: 9.616663676 | J67: 18.39240093 | K67: 13.97200377
B68: Adjustment to regulatory finance cost relating to variance from notional gearing | C68: £m nominal | D68: =((D64-D65)/D65)*D67 -> 2.014132916 | E68: 2.273765726 | F68: 4.10888843 | G68: 2.455824067 | H68: -0.08082858299 | I68: 0.2808397546 | J68: 0.3534702394 | K68: 0.2035796787
B69: Assumed regulatory finance cost at notional gearing | C69: £m nominal | D69: =SUM(D67:D68) -> 11.36915658 | E69: 19.54411812 | F69: 30.48756367 | G69: 26.42801129 | H69: -2.21415036 | I69: 9.89750343 | J69: 18.74587117 | K69: 14.17558345
B71: Assumed regulatory finance cost at notional gearing | C71: £m 09/10 | D71: =D69/D43 -> 9.744804247 | E71: 16.42975425 | F71: 25.35610408 | G71: 21.51873533 | H71: -1.737819855 | I71: 7.537925589 | J71: 13.91657223 | K71: 10.28707626 | L71: =SUM(D71:INDEX(D71:K71,0,MATCH('RFPR cover'!$C$7,$D$6:$K$6,0))) -> 92.76607586 | M71: =SUM(D71:K71) -> 103.0531521
B72: Adjustments to be applied for performance assessment (at notional gearing) | C72: £m 09/10 | D72: =D58*((D64-D65)/D65)+D58 -> 7.528574866 | E72: 20.21054827 | F72: 1.008182806 | G72: 0.9822592388 | H72: 2.806926336 | I72: 4.631012123 | J72: 6.766124048 | K72: 2.90581954 | L72: =SUM(D72:INDEX(D72:K72,0,MATCH('RFPR cover'!$C$7,$D$6:$K$6,0))) -> 43.93362769 | M72: =SUM(D72:K72) -> 46.83944723
B74: Cost of Debt Allowance
B76: The latest published PCFM contains the allowed cost of debt rate (%) for the reporting year.
B77: However, the RAV does not account for the reporting year actual expenditure and additional allowances.
B78: Consequently the return element of revenue does not currently reflect the monetary allowance. This is updated and available in the forthcoming annual iteration process.
B79: To address this timing issue, network operators should forecast the allowance in row 79 (linked to R9-RAV table) - which will be trued-up over time.
B81: Cost of Debt Allowance as per latest published PCFM (prior year AIP) | C81: £m 09/10 | D81: 46.94680239 | E81: 43.36167368 | F81: 40.39675258 | G81: 37.63755927 | H81: 35.10966124 | I81: 30.27172336 | J81: 25.08291183 | K81: 25.05276829
B82: Forecast revised Cost of Debt Allowance | C82: £m 09/10 | D82: 46.88418078 | E82: 43.19514591 | F82: 40.19334792 | G82: 37.39664637 | H82: 34.78669466 | I82: 29.95091956 | J82: 24.92937192 | K82: 17.35966993 | L82: =SUM(D82:INDEX(D82:K82,0,MATCH('RFPR cover'!$C$7,$D$6:$K$6,0))) -> 257.3363071 | M82: =SUM(D82:K82) -> 274.695977
B85: Out(under) performance
B87: Pre-Tax performance
B88: Pre-Tax Cost of Debt out(under)performance at actual gearing | C88: £m 09/10 | D88: =D82-D45-D58 -> 32.6709127 | E88: 10.81758185 | F88: 17.3822447 | G88: 16.98655768 | H88: 33.75661641 | I88: 18.12727311 | J88: 4.636666465 | K88: 4.356241151 | L88: =SUM(D88:INDEX(D88:K88,0,MATCH('RFPR cover'!$C$7,$D$6:$K$6,0))) -> 134.3778529 | M88: =SUM(D88:K88) -> 138.7340941
B90: Pre-Tax Cost of Debt out(under)performance at notional gearing | C90: £m 09/10 | D90: =D82-D71-D72 -> 29.61080167 | E90: 6.554843384 | F90: 13.82906103 | G90: 14.8956518 | H90: 33.71758818 | I90: 17.78198185 | J90: 4.246675648 | K90: 4.166774135 | L90: =SUM(D90:INDEX(D90:K90,0,MATCH('RFPR cover'!$C$7,$D$6:$K$6,0))) -> 120.6366036 | M90: =SUM(D90:K90) -> 124.8033777
B92: Pre-Tax Impact on out(under) performance relating to deviating from notional levels of gearing | C92: £m 09/10 | D92: =D88-D90 -> 3.06011103 | E92: 4.262738464 | F92: 3.55318367 | G92: 2.090905872 | H92: 0.03902822655 | I92: 0.3452912651 | J92: 0.3899908164 | K92: 0.1894670154 | L92: =SUM(D92:INDEX(D92:K92,0,MATCH('RFPR cover'!$C$7,$D$6:$K$6,0))) -> 13.74124934 | M92: =SUM(D92:K92) -> 13.93071636

Sheet R8 - Net Debt
A1: R8 - Net Debt
A2: ='RFPR cover'!C5 -> Cadent-EOE
A3: ='RFPR cover'!C7 -> 2020 | B3: ='R1 - RoRE'!B3 -> 
D5: Actuals | E5: Actuals | F5: Actuals | G5: Actuals | H5: Actuals | I5: Actuals | J5: Actuals | K5: Forecast
D6: ='RFPR cover'!$C$13 -> 2014 | E6: =D6+1 -> 2015 | F6: 2016 | G6: 2017 | H6: 2018 | I6: 2019 | J6: 2020 | K6: 2021
B8: Opening Cash, short term deposits and overdrafts (per Balance Sheet) | C8: £m nominal | D8: -513 | E8: =D10 -> -257.707346 | F8: -230.1982394 | G8: -67.9508992 | H8: -38.99908504 | I8: -164.53 | J8: -328.34 | K8: -335.7
B10: Closing Cash, short term deposits and overdrafts (per Balance Sheet) | C10: £m nominal | D10: -257.707346 | E10: -230.1982394 | F10: -67.9508992 | G10: -38.99908504 | H10: -164.53 | I10: -328.34 | J10: -335.7 | K10: -60
B11: External borrowings, bonds, external loans and finance leases (+ve) | C11: £m nominal | D11: 4571.476896 | E11: 4673.721831 | F11: 4702.326905 | G11: 1709.99927 | H11: 6330.666466 | I11: 6684.145364 | J11: 6961.114859 | K11: 6958.061093
B12: Loans from other group companies (+ve) | C12: £m nominal | D12: 0 | E12: 0 | F12: 0 | G12: 4311.999103 | H12: 0 | I12: 0 | J12: 0 | K12: 0
B13: Loans to other group companies (-ve) | C13: £m nominal | D13: 1196.767773 | E13: 1241.041197 | F13: 955.0530052 | G13: 0 | H13: 0 | I13: 0 | J13: 0 | K13: 0
B14: Other amounts due to/(from) group companies per Balance Sheet | C14: £m nominal | D14: 0 | E14: 0 | F14: 0 | G14: 0 | H14: 0 | I14: 0 | J14: 0 | K14: 0
B15: Guarantees given on behalf of other group companies (per Notes to the Accounts) (+ve) | C15: £m nominal | D15: 0 | E15: 0 | F15: 0 | G15: 0 | H15: 40.91 | I15: 41.91 | J15: 74.69603439 | K15: 44.0983376
B16: Currency SWAPS | C16: £m nominal | D16: 0 | E16: 0 | F16: 0 | G16: 9.000712006 | H16: -14.64129762 | I16: -4.74769047 | J16: -26.10001358 | K16: 0
B17: Interest rate SWAPS | C17: £m nominal | D17: 0 | E17: 0 | F17: 0 | G17: 0 | H17: 0 | I17: 0 | J17: 0 | K17: 0
B18: Inflation-linked SWAPS | C18: £m nominal | D18: 0 | E18: 0 | F18: 0 | G18: 0 | H18: 5.52257724 | I18: 34.6005225 | J18: 58.91810593 | K18: 0
B19: Interest Rate Forward Contracts | C19: £m nominal | D19: 0 | E19: 0 | F19: 0 | G19: 0 | H19: 0 | I19: 0 | J19: 0 | K19: 0
B20: Foreign exchange forward rate contracts | C20: £m nominal | D20: 0 | E20: 0 | F20: 0 | G20: 0 | H20: 0 | I20: 0 | J20: 0.10614119 | K20: 0
B21: Other swaps, forward rate contracts & OTC options | C21: £m nominal | D21: -205.5373223 | E21: -281.5647887 | F21: -320.4290109 | G21: 0 | H21: 0 | I21: 0 | J21: 0 | K21: 0
B22: Other derivatives including exchange traded futures and options | C22: £m nominal | D22: 0 | E22: 0 | F22: 0 | G22: 0 | H22: 0 | I22: 0 | J22: 0 | K22: 0
B23: Total Debt per Statutory Accounts | C23: £m nominal | D23: =SUM(D10:D22) -> 5305 | E23: 5403 | F23: 5269 | G23: 5992 | H23: 6197.927745 | I23: 6427.568196 | J23: 6733.035127 | K23: 6942.15943
B25: Conversion to Regulatory (RIIO-1) Definition of Net Debt
B26: Unamortised Issue Costs | C26: £m nominal | D26: 0 | E26: 0 | F26: 0 | G26: 11.76529318 | H26: 11.70151638 | I26: 10.9 | J26: 14.36155951 | K26: 13.07955335
B27: Fixed asset investments not readily convertible to cash | C27: £m nominal | D27: 0 | E27: 0 | F27: 0 | G27: 0 | H27: 0 | I27: 0 | J27: 0 | K27: 0
B28: Preference shares | C28: £m nominal | D28: 0 | E28: 0 | F28: 0 | G28: 0 | H28: 0 | I28: 0 | J28: 0 | K28: 0
B29: Long term loans (Not for benefit of regulated business or distribution in nature) | C29: £m nominal | D29: 0 | E29: 0 | F29: 0 | G29: 0 | H29: 0 | I29: 0 | J29: 0 | K29: 0
B30: Currency debt amount to reflect ultimate sterling liability | C30: £m nominal | D30: 0 | E30: 0 | F30: 0 | G30: -9.751834099 | H30: -5.349132993 | I30: -1.74 | J30: -17.71589001 | K30: 0
B31: Impact of fair value adjustments | C31: £m nominal | D31: 42.38373791 | E31: -6.4196 | F31: -28.08 | G31: -317.4531761 | H31: -309.3773091 | I31: -301.32 | J31: -283.6513216 | K31: -303.0943699
B32: Accrued Interest | C32: £m nominal | D32: -50.67388744 | E32: -49.606 | F32: -50.31 | G32: -40.00826043 | H32: -40.91080948 | I32: -41.91 | J32: -44.0983376 | K32: -44.0983376
B33: ILS financial exposure; direct offset with row 180 (no net impact on regulatory net debt) | C33: £m nominal | D33: 0 | E33: 0 | F33: 0 | G33: 0 | H33: -5.52257724 | I33: -34.600522 | J33: -58.91810593 | K33: 0
B34: ILS financial exposure; financials presented up to FY16/17 relate to pre segmentation derivatives. Post FY 17/18 balances relate to accretions on instrument B2.1. | C34: £m nominal | D34: 57.6433474 | E34: 34.4324 | F34: 26.325 | G34: 0 | H34: 0 | I34: 27.848262 | J34: 37.16919655 | K34: 47.05641064
B35: Less: Derivatives excluding Cross currency | C35: £m nominal | D35: 0 | E35: 0 | F35: 0 | G35: 0 | H35: 0 | I35: 0 | J35: 0 | K35: 0
B36: Net debt relating to Metering | C36: £m nominal | D36: -299 | E36: -430 | F36: -332 | G36: 0 | H36: 0 | I36: 0 | J36: 0 | K36: 0
B37: Net debt relating to other three networks | C37: £m nominal | D37: -3336.612197 | E37: -3267.6496 | F37: -3224.646 | G37: -3721.167407 | H37: -3851.549699 | I37: -4018.939668 | J37: -4192.094052 | K37: -4440.964568
B38: 9. IFRS 16 Lease Liabilities | C38: £m nominal | D38: 0 | E38: 0 | F38: 0 | G38: 0 | H38: 0 | I38: 0 | J38: -30.59769679 | K38: 0
B39: 10. [Insert adjustment as necessary] | C39: £m nominal | D39: 0 | E39: 0 | F39: 0 | G39: 0 | H39: 0 | I39: 0 | J39: 0 | K39: 0
B40: 11. [Insert adjustment as necessary] | C40: £m nominal | D40: 0 | E40: 0 | F40: 0 | G40: 0 | H40: 0 | I40: 0 | J40: 0 | K40: 0
B41: 12. [Insert adjustment as necessary] | C41: £m nominal | D41: 0.06 | E41: -0.73 | F41: 0 | G41: -0.03061514993 | H41: 0.05999985 | I41: 0 | J41: 0 | K41: 0
B42: Total Net Debt per Regulatory (RIIO-1) definition | C42: £m nominal | D42: =SUM(D23,D26:D41) -> 1718.801001 | E42: 1683.0272 | F42: 1660.289 | G42: 1915.354 | H42: 1996.979734 | I42: 2067.806268 | J42: 2157.490479 | K42: 2214.138119
B43: Forecast new debt/refinancing | C43: £m nominal | K43: 0
B44: Regulatory Net Debt including forecast new debt/refinancing | C44: £m nominal | D44: =SUM(D42:D43) -> 1718.801001 | E44: 1683.0272 | F44: 1660.289 | G44: 1915.354 | H44: 1996.979734 | I44: 2067.806268 | J44: 2157.490479 | K44: 2214.138119
D45: OK | E45: OK | F45: OK | G45: OK | H45: OK | I45: OK | J45: OK | K45: OK
B47: Opening Regulatory Net Debt including forecast new debt/refinancing | C47: £m nominal | D47: 1433 | E47: =D48 -> 1718.801001 | F47: 1683.0272 | G47: 1660.289 | H47: 1915.354 | I47: 1996.979734 | J47: 2067.806268 | K47: 2157.490479
B48: Closing Regulatory Net Debt including forecast new debt/refinancing | C48: £m nominal | D48: =D44 -> 1718.801001 | E48: 1683.0272 | F48: 1660.289 | G48: 1915.354 | H48: 1996.979734 | I48: 2067.806268 | J48: 2157.490479 | K48: 2214.138119
B50: Allocation of net debt (Per regulatory definition. Transmission companies only)
B51: System operator allocation (transmission companies only) | C51: % | D51: 0 | E51: 0 | F51: 0 | G51: 0 | H51: 0 | I51: 0 | J51: 0 | K51: 0
B52: Transmission or distribution allocation | C52: % | D52: =1-D51 -> 1 | E52: 1 | F52: 1 | G52: 1 | H52: 1 | I52: 1 | J52: 1 | K52: 1
B54: Average Net Debt (per Regulatory Definition) | C54: £m nominal | D54: =AVERAGE(D47:D48)*D52 -> 1575.9005 | E54: 1700.9141 | F54: 1671.6581 | G54: 1787.8215 | H54: 1956.166867 | I54: 2032.393001 | J54: 2112.648374 | K54: 2185.814299
B55: Equity RAV | C55: £m nominal | D55: =D56-D54 -> 1370.54759 | E55: 1260.396111 | F55: 1300.718541 | G55: 1244.446773 | H55: 1167.345899 | I55: 1185.677596 | J55: 1200.043678 | K55: 1225.974624
B56: Average RAV | C56: £m nominal | D56: 2946.44809 | E56: 2961.310212 | F56: 2972.376641 | G56: 3032.268273 | H56: 3123.512766 | I56: 3218.070597 | J56: 3312.692052 | K56: 3411.788923
B57: Actual Regulatory Gearing | C57: % | D57: =D54/D56 -> 0.5348475358 | E57: 0.5743788994 | F57: 0.5623978056 | G57: 0.5895987225 | H57: 0.6262714494 | I57: 0.6315563751 | J57: 0.6377436661 | K57: 0.6406651609
B58: Notional Gearing | C58: % | D58: 0.65 | E58: 0.65 | F58: 0.65 | G58: 0.65 | H58: 0.65 | I58: 0.65 | J58: 0.65 | K58: 0.65
B59: Gearing Ratio delta | C59: % | D59: =IF(ISBLANK(D23),"n/a",D57-D58) -> -0.1151524642 | E59: -0.07562110055 | F59: -0.08760219442 | G59: -0.06040127749 | H59: -0.02372855064 | I59: -0.01844362488 | J59: -0.01225633386 | K59: -0.009334839135
B61: NPV Neutral assumed Average Net Debt | C61: £m 09/10 | D61: =D63*D57 -> 1321.174318 | E61: 1403.302057 | F61: 1363.779829 | G61: 1425.27569 | H61: 1509.765328 | I61: 1523.616125 | J61: 1548.057356 | K61: 1569.758042
B62: NPV Neutral assumed Equity RAV | C62: £m 09/10 | D62: =D63*(1-D57) -> 1149.014343 | E62: 1039.862304 | F62: 1061.158205 | G62: 992.0899447 | H62: 900.9550227 | I62: 888.8622932 | J62: 879.3401049 | K62: 880.4423716
B63: NPV Neutral assumed Average RAV | C63: £m 09/10 | D63: 2470.188661 | E63: 2443.164361 | F63: 2424.938034 | G63: 2417.365635 | H63: 2410.720351 | I63: 2412.478418 | J63: 2427.397461 | K63: 2450.200414
B64: Actual Regulatory Gearing | C64: % | D64: =D61/D63 -> 0.5348475358 | E64: 0.5743788994 | F64: 0.5623978056 | G64: 0.5895987225 | H64: 0.6262714494 | I64: 0.6315563751 | J64: 0.6377436661 | K64: 0.6406651609
B65: Notional Gearing | C65: % | D65: 0.65 | E65: 0.65 | F65: 0.65 | G65: 0.65 | H65: 0.65 | I65: 0.65 | J65: 0.65 | K65: 0.65
B66: Gearing Ratio delta | C66: % | D66: =IF(ISBLANK(D23),"n/a",D64-D65) -> -0.1151524642 | E66: -0.07562110055 | F66: -0.08760219442 | G66: -0.06040127749 | H66: -0.02372855064 | I66: -0.01844362488 | J66: -0.01225633386 | K66: -0.009334839135

Sheet R9 - RAV
A1: R9 - Regulatory Asset Value (RAV)
A2: ='RFPR cover'!C5 -> Cadent-EOE
A3: ='RFPR cover'!C7 -> 2020
D5: =IF(D6<='RFPR cover'!$C$7-1,"Actuals","Forecast") -> Actuals | E5: =IF(E6<='RFPR cover'!$C$7-1,"Actuals","Forecast") -> Actuals | F5: =IF(F6<='RFPR cover'!$C$7-1,"Actuals","Forecast") -> Actuals | G5: =IF(G6<='RFPR cover'!$C$7-1,"Actuals","Forecast") -> Actuals | H5: =IF(H6<='RFPR cover'!$C$7-1,"Actuals","Forecast") -> Actuals | I5: =IF(I6<='RFPR cover'!$C$7-1,"Actuals","Forecast") -> Actuals | J5: =IF(J6<='RFPR cover'!$C$7,"Actuals","N/A") -> Actuals | K5: =IF(K6<='RFPR cover'!$C$7-1,"Actuals","Forecast") -> Forecast
D6: ='RFPR cover'!$C$13 -> 2014 | E6: =D6+1 -> 2015 | F6: 2016 | G6: 2017 | H6: 2018 | I6: 2019 | J6: 2020 | K6: 2021
B8: RAV per latest published PCFM
B9: The latest published PCFM does not account for the impact of the reporting years totex. This will be published in the forthcoming annual iteration process.
B11: Closing RAV per latest published PCFM | C11: ='RFPR cover'!$C$14 -> £m 09/10 | D11: 2514.3 | E11: 2489.1 | F11: 2480.6 | G11: 2477.8 | H11: 2478.5 | I11: 2479.4 | J11: 2477.3 | K11: 2473.8
B13: Revised RAV - including forecast totex, allowances and enduring value
B14: Revised adjusted RAV including forecast totex, allowances and enduring value
B16: Opening RAV (before transfers) | C16: ='RFPR cover'!$C$14 -> £m 09/10 | D16: 2534.963902 | E16: =D29 -> 2507.475111 | F16: 2476.69586 | G16: 2468.166746 | H16: 2458.671215 | I16: 2452.271195 | J16: 2457.782012 | K16: 2477.840185
B17: Transfers | C17: ='RFPR cover'!$C$14 -> £m 09/10 | D17: 0 | E17: 0 | F17: 0 | G17: 0 | H17: 0 | I17: 0 | J17: 0 | K17: 0
B18: Opening RAV (after transfers) | C18: ='RFPR cover'!$C$14 -> £m 09/10 | D18: =SUM(D16:D17) -> 2534.963902 | E18: 2507.475111 | F18: 2476.69586 | G18: 2468.166746 | H18: 2458.671215 | I18: 2452.271195 | J18: 2457.782012 | K18: 2477.840185
B19: Net additions (after disposals) | C19: ='RFPR cover'!$C$14 -> £m 09/10 | D19: 102.8225882 | E19: 100.1321558 | F19: 108.1173263 | G19: 113.5431241 | H19: 123.4113181 | I19: 132.2614703 | J19: 143.2892829 | K19: 152.157139
B20: Net additions (after disposals) - enduring value adjustment | C20: ='RFPR cover'!$C$14 -> £m 09/10 | D20: -6.852977729 | E20: -5.833305203 | F20: -0.6158327302 | G20: -7.18172072 | H20: -7.986617769 | I20: 3.441245933 | J20: 16.09809984 | K20: 18.00125797
B21: Total Net Additions | C21: ='RFPR cover'!$C$14 -> £m 09/10 | D21: =SUM(D19:D20) -> 95.96961043 | E21: 94.2988506 | F21: 107.5014936 | G21: 106.3614034 | H21: 115.4247003 | I21: 135.7027163 | J21: 159.3873828 | K21: 170.1583969
B22: Depreciation | C22: ='RFPR cover'!$C$14 -> £m 09/10 | D22: -123.4584008 | E22: -125.3760573 | F22: -116.575564 | G22: -116.4164088 | H22: -122.6835914 | I22: -131.3782231 | J22: -140.3384061 | K22: -151.7501468
B23: Depreciation - enduring value adjustment | C23: ='RFPR cover'!$C$14 -> £m 09/10 | D23: 0 | E23: 0.2979555534 | F23: 0.5449562842 | G23: 0.5594743421 | H23: 0.8588707834 | I23: 1.186323888 | J23: 1.009196814 | K23: 0.2850966201
B24: Total Depreciation | C24: ='RFPR cover'!$C$14 -> £m 09/10 | D24: =SUM(D22:D23) -> -123.4584008 | E24: -125.0781018 | F24: -116.0306077 | G24: -115.8569345 | H24: -121.8247207 | I24: -130.1918992 | J24: -139.3292093 | K24: -151.4650502
B25: [Input other adjustment] | C25: ='RFPR cover'!$C$14 -> £m 09/10 | D25: 0 | E25: 0 | F25: 0 | G25: 0 | H25: 0 | I25: 0 | J25: 0 | K25: 0
B26: [Input other adjustment] | C26: ='RFPR cover'!$C$14 -> £m 09/10 | D26: 0 | E26: 0 | F26: 0 | G26: 0 | H26: 0 | I26: 0 | J26: 0 | K26: 0
B27: [Input other adjustment] | C27: ='RFPR cover'!$C$14 -> £m 09/10 | D27: 0 | E27: 0 | F27: 0 | G27: 0 | H27: 0 | I27: 0 | J27: 0 | K27: 0
B28: Other adjustments | C28: ='RFPR cover'!$C$14 -> £m 09/10 | D28: =SUM(D25:D27) -> 0 | E28: 0 | F28: 0 | G28: 0 | H28: 0 | I28: 0 | J28: 0 | K28: 0
B29: Adjusted Closing RAV | C29: ='RFPR cover'!$C$14 -> £m 09/10 | D29: =D18+D21+D24+D28 -> 2507.475111 | E29: 2476.69586 | F29: 2468.166746 | G29: 2458.671215 | H29: 2452.271195 | I29: 2457.782012 | J29: 2477.840185 | K29: 2496.533532
B31: Total enduring value and other adjustments | C31: ='RFPR cover'!$C$14 -> £m 09/10 | D31: =(D20+D23+D28) -> -6.852977729 | E31: -5.535349649 | F31: -0.07087644597 | G31: -6.622246378 | H31: -7.127746985 | I31: 4.627569821 | J31: 17.10729666 | K31: 18.28635459
B32: CHECK | D32: =IF(D5="Actuals",IF(ABS((D29-SUM($D$31:D31))-D11)<'RFPR cover'!$F$14,"TRUE","FALSE"),"NA") -> TRUE | E32: =IF(E5="Actuals",IF(ABS((E29-SUM($D$31:E31))-E11)<'RFPR cover'!$F$14,"TRUE","FALSE"),"NA") -> TRUE | F32: =IF(F5="Actuals",IF(ABS((F29-SUM($D$31:F31))-F11)<'RFPR cover'!$F$14,"TRUE","FALSE"),"NA") -> TRUE | G32: =IF(G5="Actuals",IF(ABS((G29-SUM($D$31:G31))-G11)<'RFPR cover'!$F$14,"TRUE","FALSE"),"NA") -> TRUE | H32: =IF(H5="Actuals",IF(ABS((H29-SUM($D$31:H31))-H11)<'RFPR cover'!$F$14,"TRUE","FALSE"),"NA") -> TRUE | I32: =IF(I5="Actuals",IF(ABS((I29-SUM($D$31:I31))-I11)<'RFPR cover'!$F$14,"TRUE","FALSE"),"NA") -> TRUE | J32: =IF(J5="Actuals",IF(ABS((J29-SUM($D$31:J31))-J11)<'RFPR cover'!$F$14,"TRUE","FALSE"),"NA") -> FALSE | K32: =IF(K5="Actuals",IF(ABS((K29-SUM($D$31:K31))-K11)<'RFPR cover'!$F$14,"TRUE","FALSE"),"NA") -> NA
B34: Year end RPI | C34: Index | D34: =Data!C$35 -> 1.182989058 | E34: =Data!D$35 -> 1.193648704 | F34: =Data!E$35 -> 1.210796832 | G34: =Data!F$35 -> 1.251118104 | H34: =Data!G$35 -> 1.293061497 | I34: =Data!H$35 -> 1.328516409 | J34: =Data!I$35 -> 1.356092452 | K34: =Data!J$35 -> 1.387282578
B35: Financial Year Average RPI (RPIt) | C35: Index | D35: =Data!C$34 -> 1.166689067 | E35: =Data!D$34 -> 1.189556327 | F35: =Data!E$34 -> 1.202375711 | G35: =Data!F$34 -> 1.228139614 | H35: =Data!G$34 -> 1.274096595 | I35: =Data!H$34 -> 1.313027479 | J35: =Data!I$34 -> 1.347017848 | K35: =Data!J$34 -> 1.377999258
B36: Index for Opening RAV conversion to nominal in yr 1 | C36: Index | D36: =INDEX(Data!$F$14:$F$30,MATCH($D$6-1,Data!$C$14:$C$30,0),0)/IF('RFPR cover'!$C$6="ED1",Data!$E$17,Data!$E$14) -> 1.154486089
B38: Adjusted Closing RAV | C38: £m nominal | D38: =D29*D34 -> 2966.315619 | E38: 2956.304805 | F38: 2988.448476 | G38: 3076.088069 | H38: 3170.937462 | I38: 3265.203732 | J38: 3360.180371 | K38: 3463.397474
B40: Cost of debt | C40: annual real % | D40: =INDEX(Data!$K$73:$T$100,MATCH('RFPR cover'!$C$5,Data!$B$73:$B$100,0),MATCH('R9 - RAV'!D$6,Data!$K$72:$T$72,0)) -> 0.0292 | E40: =INDEX(Data!$K$73:$T$100,MATCH('RFPR cover'!$C$5,Data!$B$73:$B$100,0),MATCH('R9 - RAV'!E$6,Data!$K$72:$T$72,0)) -> 0.0272 | F40: =INDEX(Data!$K$73:$T$100,MATCH('RFPR cover'!$C$5,Data!$B$73:$B$100,0),MATCH('R9 - RAV'!F$6,Data!$K$72:$T$72,0)) -> 0.0255 | G40: =INDEX(Data!$K$73:$T$100,MATCH('RFPR cover'!$C$5,Data!$B$73:$B$100,0),MATCH('R9 - RAV'!G$6,Data!$K$72:$T$72,0)) -> 0.0238 | H40: =INDEX(Data!$K$73:$T$100,MATCH('RFPR cover'!$C$5,Data!$B$73:$B$100,0),MATCH('R9 - RAV'!H$6,Data!$K$72:$T$72,0)) -> 0.0222 | I40: =INDEX(Data!$K$73:$T$100,MATCH('RFPR cover'!$C$5,Data!$B$73:$B$100,0),MATCH('R9 - RAV'!I$6,Data!$K$72:$T$72,0)) -> 0.0191 | J40: =INDEX(Data!$K$73:$T$100,MATCH('RFPR cover'!$C$5,Data!$B$73:$B$100,0),MATCH('R9 - RAV'!J$6,Data!$K$72:$T$72,0)) -> 0.0158 | K40: =INDEX(Data!$K$73:$T$100,MATCH('RFPR cover'!$C$5,Data!$B$73:$B$100,0),MATCH('R9 - RAV'!K$6,Data!$K$72:$T$72,0)) -> 0.0109
B41: Cost of equity | C41: annual real % | D41: ='RFPR cover'!$C$10 -> 0.067 | E41: ='RFPR cover'!$C$10 -> 0.067 | F41: ='RFPR cover'!$C$10 -> 0.067 | G41: ='RFPR cover'!$C$10 -> 0.067 | H41: ='RFPR cover'!$C$10 -> 0.067 | I41: ='RFPR cover'!$C$10 -> 0.067 | J41: ='RFPR cover'!$C$10 -> 0.067 | K41: ='RFPR cover'!$C$10 -> 0.067
B42: Notional gearing | C42: % | D42: ='RFPR cover'!$C$12 -> 0.65 | E42: ='RFPR cover'!$C$12 -> 0.65 | F42: ='RFPR cover'!$C$12 -> 0.65 | G42: ='RFPR cover'!$C$12 -> 0.65 | H42: ='RFPR cover'!$C$12 -> 0.65 | I42: ='RFPR cover'!$C$12 -> 0.65 | J42: ='RFPR cover'!$C$12 -> 0.65 | K42: ='RFPR cover'!$C$12 -> 0.65
B43: Vanilla WACC | C43: annual real % | D43: =D40*D42+D41*(1-D42) -> 0.04243 | E43: 0.04113 | F43: 0.040025 | G43: 0.03892 | H43: 0.03788 | I43: 0.035865 | J43: 0.03372 | K43: 0.030535
B45: NPV-neutral debt element of RAV | C45: ='RFPR cover'!$C$14 -> £m 09/10 | D45: =D47*D42 -> 1605.62263 | E45: 1588.056835 | F45: 1576.209722 | G45: 1571.287663 | H45: 1566.968228 | I45: 1568.110972 | J45: 1577.808349 | K45: 1592.630269
B46: NPV-neutral equity element of RAV | C46: ='RFPR cover'!$C$14 -> £m 09/10 | D46: =D47*(1-D42) -> 864.5660313 | E46: 855.1075264 | F46: 848.728312 | G46: 846.0779722 | H46: 843.7521227 | I46: 844.3674462 | J46: 849.5891112 | K46: 857.5701449
B47: NPV-neutral RAV return base | C47: ='RFPR cover'!$C$14 -> £m 09/10 | D47: =AVERAGE(D16,D29*(1/(1+D43))) -> 2470.188661 | E47: 2443.164361 | F47: 2424.938034 | G47: 2417.365635 | H47: 2410.720351 | I47: 2412.478418 | J47: 2427.397461 | K47: 2450.200414
B49: Debt Return on RAV | C49: ='RFPR cover'!$C$14 -> £m 09/10 | D49: =D40*D45 -> 46.88418078 | E49: 43.19514591 | F49: 40.19334792 | G49: 37.39664637 | H49: 34.78669466 | I49: 29.95091956 | J49: 24.92937192 | K49: 17.35966993
B50: Equity Return on RAV | C50: ='RFPR cover'!$C$14 -> £m 09/10 | D50: 57.9259241 | E50: 57.29220427 | F50: 56.8647969 | G50: 56.68722414 | H50: 56.53139222 | I50: 56.5726189 | J50: 56.92247045 | K50: 57.45719971
B51: Total return on RAV | C51: ='RFPR cover'!$C$14 -> £m 09/10 | D51: =SUM(D49:D50) -> 104.8101049 | E51: 100.4873502 | F51: 97.05814482 | G51: 94.08387051 | H51: 91.31808688 | I51: 86.52353846 | J51: 81.85184238 | K51: 74.81686964
B53: NPV-neutral debt element of RAV | C53: £m nominal | D53: =D$35*D45 -> 1873.262368 | E53: 1889.083055 | F53: 1895.196285 | G53: 1929.760623 | H53: 1996.468884 | I53: 2058.972795 | J53: 2125.336007 | K53: 2194.64333
B54: NPV-neutral equity element of RAV | C54: £m nominal | D54: 1008.679737 | E54: 1017.198568 | F54: 1020.490307 | G54: 1039.101874 | H54: 1075.021707 | I54: 1108.677659 | J54: 1144.411696 | K54: 1181.731024
B55: Adjusted NPV-neutral average RAV | C55: £m nominal | D55: =SUM(D53:D54) -> 2881.942105 | E55: 2906.281624 | F55: 2915.686593 | G55: 2968.862497 | H55: 3071.49059 | I55: 3167.650454 | J55: 3269.747704 | K55: 3376.374353
B57: Debt Return on RAV | C57: £m nominal | D57: =D$35*D49 -> 54.69926115 | E57: 51.38305911 | F57: 48.32750527 | G57: 45.92830282 | H57: 44.32160922 | I57: 39.32638039 | J57: 33.58030892 | K57: 23.92161229
B58: Equity Return on NPV-neutral RAV | C58: £m nominal | D58: 67.58154236 | E58: 68.15230408 | F58: 68.3728506 | G58: 69.61982555 | H58: 72.02645434 | I58: 74.28140316 | J58: 76.67558365 | K58: 79.17597859
B59: Total return on RAV | C59: £m nominal | D59: =SUM(D57:D58) -> 122.2808035 | E59: 119.5353632 | F59: 116.7003559 | G59: 115.5481284 | H59: 116.3480636 | I59: 113.6077835 | J59: 110.2558926 | K59: 103.0975909

Sheet R10 - Tax
A1: R10 - Tax
A2: ='RFPR cover'!C5 -> Cadent-EOE
A3: ='RFPR cover'!C7 -> 2020
D5: =IF(D6<=('RFPR cover'!$C$7-1),"Actuals","Forecast") -> Actuals | E5: =IF(E6<=('RFPR cover'!$C$7-1),"Actuals","Forecast") -> Actuals | F5: =IF(F6<=('RFPR cover'!$C$7-1),"Actuals","Forecast") -> Actuals | G5: =IF(G6<=('RFPR cover'!$C$7-1),"Actuals","Forecast") -> Actuals | H5: =IF(H6<=('RFPR cover'!$C$7-1),"Actuals","Forecast") -> Actuals | I5: =IF(I6<=('RFPR cover'!$C$7-1),"Actuals","Forecast") -> Actuals | J5: =IF(J6<='RFPR cover'!$C$7,"Actuals","N/A") -> Actuals | K5: =IF(K6<=('RFPR cover'!$C$7-1),"Actuals","Forecast") -> Forecast
D6: ='RFPR cover'!$C$13 -> 2014 | E6: =D6+1 -> 2015 | F6: 2016 | G6: 2017 | H6: 2018 | I6: 2019 | J6: 2020 | K6: 2021
B8: CT600 will not have been submitted for the current reporting year.
B9: It is assumed the current tax charge per the statutory accounts will equal the tax liability in the forthcoming CT600, where this is not the case the licensee should provide an explanation in the commentary of the variance.
B10: This will be corrected / trued-up in future years
B12: Tax liability per latest submitted CT600 (pre-group relief) | C12: £m nominal | D12: 154.975 | E12: 126.992 | F12: 134.012 | G12: -25.7 | H12: 125.2 | I12: 132.89854 | J12: 0
B14: Adjustments to remove non-regulated tax liability
B15: Tax on non-regulated activities | C15: £m nominal | D15: 44.6468619 | E15: 42.4797453 | F15: 43.44862871 | G15: 0.4293253918 | H15: 0.7552502622 | I15: 0.5849864272 | J15: 0
B16: Tax relating to capital contributions (excluded services) | C16: £m nominal | D16: -4.498791074 | E16: -3.427918254 | F16: -83.87205642 | G16: -0.7489804721 | H16: -0.5642697889 | I16: -0.215764 | J16: 0
B17: Tax on Separation costs/restructuring costs | C17: £m nominal | D17: 1.381593191 | E17: 0 | F17: 0 | G17: -2.28009114 | H17: -3.8 | I17: -3.116 | J17: 0
B18: Transfer pricing and de-grouping charge adjustment | C18: £m nominal | D18: 7.160544 | E18: 6.69186 | F18: 7.863804 | G18: -4 | H18: 0 | I18: 0 | J18: 0
B19: Tax on Payment to Energy Savings Trust, GSOP and Grenfell | C19: £m nominal | D19: 0 | E19: 0 | F19: 0 | G19: 0 | H19: 0 | I19: -3.116 | J19: 0
B20: Tax relating to other three networks (included in CT600) | C20: £m nominal | D20: 69.00873365 | E20: 52.40118575 | F20: 112.0962901 | G20: -6.637845068 | H20: 79.8724291 | I20: 85.74959154 | J20: 0
B21: Non-regulated tax | C21: £m nominal | D21: =SUM(D15:D20) -> 117.6989417 | E21: 98.1448728 | F21: 79.53666639 | G21: -13.23759129 | H21: 76.26340958 | I21: 79.88681397 | J21: 0 | K21: 0
B23: Other adjustments
B24: Tax on output incentives | C24: £m nominal | D24: =('R5 - Output Incentives'!D102)*INDEX(Data!$G$14:$G$30,MATCH('R10 - Tax'!D$6,Data!$C$14:$C$30,0),1) -> 0.075267063 | E24: =('R5 - Output Incentives'!E102)*INDEX(Data!$G$14:$G$30,MATCH('R10 - Tax'!E$6,Data!$C$14:$C$30,0),1) -> 0.0640557855 | F24: =('R5 - Output Incentives'!F102)*INDEX(Data!$G$14:$G$30,MATCH('R10 - Tax'!F$6,Data!$C$14:$C$30,0),1) -> 1.599416494 | G24: =('R5 - Output Incentives'!G102)*INDEX(Data!$G$14:$G$30,MATCH('R10 - Tax'!G$6,Data!$C$14:$C$30,0),1) -> 2.319401316 | H24: =('R5 - Output Incentives'!H102)*INDEX(Data!$G$14:$G$30,MATCH('R10 - Tax'!H$6,Data!$C$14:$C$30,0),1) -> 3.823320568 | I24: =('R5 - Output Incentives'!I102)*INDEX(Data!$G$14:$G$30,MATCH('R10 - Tax'!I$6,Data!$C$14:$C$30,0),1) -> 3.067424953 | J24: =('R5 - Output Incentives'!J102)*INDEX(Data!$G$14:$G$30,MATCH('R10 - Tax'!J$6,Data!$C$14:$C$30,0),1) -> 3.203022797 | K24: =('R5 - Output Incentives'!K102)*INDEX(Data!$G$14:$G$30,MATCH('R10 - Tax'!K$6,Data!$C$14:$C$30,0),1) -> 3.519562734
B25: Tax on IQI | C25: £m nominal | D25: =('R4 - Totex'!D77-'R4 - Totex'!D79)*D41 -> 0.385644159 | E25: =('R4 - Totex'!E77-'R4 - Totex'!E79)*E41 -> 0.342685398 | F25: =('R4 - Totex'!F77-'R4 - Totex'!F79)*F41 -> 0.3248256485 | G25: =('R4 - Totex'!G77-'R4 - Totex'!G79)*G41 -> 0.3332709619 | H25: =('R4 - Totex'!H77-'R4 - Totex'!H79)*H41 -> 0.3291814461 | I25: =('R4 - Totex'!I77-'R4 - Totex'!I79)*I41 -> 0.3368283475 | J25: =('R4 - Totex'!J77-'R4 - Totex'!J79)*J41 -> 0.3403513132 | K25: =('R4 - Totex'!K77-'R4 - Totex'!K79)*K41 -> 0.3449356458
B26: Collected revenue adjustment ('k') | C26: £m nominal | D26: 2.007401398 | E26: 0.0632843529 | F26: -0.606234111 | G26: 0.8442533215 | H26: 0.3632744115 | I26: -0.277536296 | J26: 0
B27: Pension - timing adjustment | C27: £m nominal | D27: 0.5601423036 | E27: 0.2157728907 | F27: -0.00130131788 | G27: -0.04126174446 | H27: -1.693294387 | I27: -0.7305391483 | J27: 0
B28: Pension - disallowed contributions | C28: £m nominal | D28: 0 | E28: 0 | F28: 0 | G28: 0 | H28: 0 | I28: 0 | J28: 0
B29: Tax on derivatives not disregarded | C29: £m nominal | D29: 0 | E29: 0 | F29: 0 | G29: 0 | H29: 0 | I29: 0 | J29: 0
B30: Tax arising from MOD values | C30: £m nominal | D30: 0.2077052227 | E30: -0.005624531801 | F30: 0.5878393349 | G30: 0.1999796558 | H30: -0.1008523469 | I30: -1.098131049 | J30: 0
B31: Tax on finance costs not included within the RIIO 1 definition | C31: £m nominal | D31: 0.5907288228 | E31: -1.6485 | F31: -0.4 | G31: -57.528 | H31: -0.02971067406 | I31: 0.09346119341 | J31: 0
B32: Difference between actual and allowed pass through costs (inc exit capacity and shrinkage) | C32: £m nominal | D32: 0.6581478757 | E32: 1.539516179 | F32: 0.9520303131 | G32: -0.6370063465 | H32: 0.4101698314 | I32: 2.154691988 | J32: 0
B33: Other revenue timing adjustments | C33: £m nominal | D33: -0.05060442645 | E33: -0.1057525807 | F33: 0.4149294047 | G33: -1.802397558 | H33: -2.62583263 | I33: -0.7820508097 | J33: 0
B34: Regulatory tax losses carried forward from previous price controls | C34: £m nominal | D34: 0 | E34: 0 | F34: 0 | G34: 0 | H34: 0 | I34: 0 | J34: 0
B35: 0 | C35: £m nominal | D35: 0 | E35: 0 | F35: 0 | G35: 0 | H35: 0 | I35: 0 | J35: 0
B36: Total other adjustments | C36: £m nominal | D36: =SUM(D24:D35) -> 4.434432418 | E36: 0.4654374934 | F36: 2.871505766 | G36: -56.31176039 | H36: 0.4762562182 | I36: 2.764149179 | J36: 3.54337411 | K36: 3.86449838
B38: Forecast regulated tax liability (including impact of enduring value adjustments) | C38: £m nominal | J38: 48.63691704 | K38: 54.15290651
B39: Adjusted forecast regulated tax liability with timing differences | C39: £m nominal | D39: =D12+D38-D21-D36 -> 32.84162592 | E39: 28.38168971 | F39: 51.60382784 | G39: 43.84935168 | H39: 48.4603342 | I39: 50.24757685 | J39: 45.09354293 | K39: 50.28840813
B41: Financial year average RPI | C41: Index | D41: =Data!C$34 -> 1.166689067 | E41: =Data!D$34 -> 1.189556327 | F41: =Data!E$34 -> 1.202375711 | G41: =Data!F$34 -> 1.228139614 | H41: =Data!G$34 -> 1.274096595 | I41: =Data!H$34 -> 1.313027479 | J41: =Data!I$34 -> 1.347017848 | K41: =Data!J$34 -> 1.377999258
B43: Adjusted/forecast regulated tax liability with timing differences | C43: ='RFPR cover'!$C$14 -> £m 09/10 | D43: =D39/D41 -> 28.14942459 | E43: 23.8590549 | F43: 42.91822213 | G43: 35.70388187 | H43: 38.03505511 | I43: 38.26848841 | J43: 33.47657419 | K43: 36.49378461
B45: Tax out(under)performance at notional gearing
B46: Performance against allowance is impacted by deviating from notional levels of gearing
B48: Notional Gearing | C48: % | D48: ='RFPR cover'!$C$12 -> 0.65 | E48: ='RFPR cover'!$C$12 -> 0.65 | F48: ='RFPR cover'!$C$12 -> 0.65 | G48: ='RFPR cover'!$C$12 -> 0.65 | H48: ='RFPR cover'!$C$12 -> 0.65 | I48: ='RFPR cover'!$C$12 -> 0.65 | J48: ='RFPR cover'!$C$12 -> 0.65 | K48: ='RFPR cover'!$C$12 -> 0.65
B49: Actual Gearing | C49: % | D49: ='R8 - Net Debt'!D57 -> 0.5348475358 | E49: ='R8 - Net Debt'!E57 -> 0.5743788994 | F49: ='R8 - Net Debt'!F57 -> 0.5623978056 | G49: ='R8 - Net Debt'!G57 -> 0.5895987225 | H49: ='R8 - Net Debt'!H57 -> 0.6262714494 | I49: ='R8 - Net Debt'!I57 -> 0.6315563751 | J49: ='R8 - Net Debt'!J57 -> 0.6377436661 | K49: ='R8 - Net Debt'!K57 -> 0.6406651609
B51: Adjusted/forecast regulated tax liability with timing differences | C51: £m nominal | D51: =D39 -> 32.84162592 | E51: 28.38168971 | F51: 51.60382784 | G51: 43.84935168 | H51: 48.4603342 | I51: 50.24757685 | J51: 45.09354293 | K51: 50.28840813
B52: Adjustment to regulatory tax cost relating to variance from notional gearing | C52: £m nominal | D52: =D87-D89 -> -0.443870861 | E52: -0.4786945251 | F52: -0.8242450785 | G52: -0.3043932384 | H52: 0.2029814015 | I52: 0.1178422832 | J52: 0.6193941508 | K52: 0.4070625238
B53: Revised regulated tax liability for comparison against allowance | C53: £m nominal | D53: =SUM(D51:D52) -> 32.39775506 | E53: 27.90299518 | F53: 50.77958277 | G53: 43.54495844 | H53: 48.66331561 | I53: 50.36541914 | J53: 45.71293708 | K53: 50.69547066
B55: Revised regulated tax liability for comparison against allowance | C55: ='RFPR cover'!$C$14 -> £m 09/10 | D55: =D53/D41 -> 27.76897115 | E55: 23.45664056 | F55: 42.23270839 | G55: 35.45603282 | H55: 38.19436909 | I55: 38.35823694 | J55: 33.93640043 | K55: 36.78918573
B58: Allowance
B60: The latest published PCFM does not account for the forecast TIM performance - and ultimate impact on tax allowance.
B62: Tax Allowance per latest published PCFM | C62: ='RFPR cover'!$C$14 -> £m 09/10 | D62: 20.19697114 | E62: 14.75583744 | F62: 34.44000114 | G62: 31.03242398 | H62: 32.67054156 | I62: 33.5665007 | J62: 32.74657774 | K62: 28.5641698
B63: Tax clawbacks | C63: ='RFPR cover'!$C$14 -> £m 09/10 | D63: 0 | E63: 0 | F63: 5.719908177e-17 | G63: 0 | H63: 0 | I63: 0 | J63: 0 | K63: 0
B64: Net Tax Allowance | C64: ='RFPR cover'!$C$14 -> £m 09/10 | D64: =SUM(D62:D63) -> 20.19697114 | E64: 14.75583744 | F64: 34.44000114 | G64: 31.03242398 | H64: 32.67054156 | I64: 33.5665007 | J64: 32.74657774 | K64: 28.5641698
B66: Network operators should provide forecast allowances taking account of the latest totex, allowances, reopeners, enduring value adjustments - and other financial variables
B68: Forecast tax allowance | C68: ='RFPR cover'!$C$14 -> £m 09/10 | D68: 17.07971366 | E68: 11.54232001 | F68: 31.85389184 | G68: 27.3455731 | H68: 28.82673981 | I68: 34.39427768 | J68: 36.17730677 | K68: 40.44970515
B69: Forecast tax clawbacks | C69: ='RFPR cover'!$C$14 -> £m 09/10 | D69: 0 | E69: 0 | F69: 5.719908177e-17 | G69: 0 | H69: 0 | I69: 4.281237441e-16 | J69: 0 | K69: 0
B70: Net forecast tax allowance | C70: ='RFPR cover'!$C$14 -> £m 09/10 | D70: =SUM(D68:D69) -> 17.07971366 | E70: 11.54232001 | F70: 31.85389184 | G70: 27.3455731 | H70: 28.82673981 | I70: 34.39427768 | J70: 36.17730677 | K70: 40.44970515
B72: Reconciliation of forecast movement in allowance | D72: =D70-D64 -> -3.11725748 | E72: -3.213517427 | F72: -2.586109305 | G72: -3.686850886 | H72: -3.843801748 | I72: 0.8277769756 | J72: 3.430729031 | K72: 11.88553534
B73: Changes in corporation tax rates | C73: ='RFPR cover'!$C$14 -> £m 09/10 | D73: 0 | E73: 0 | F73: 0 | G73: 0 | H73: 0 | I73: 0 | J73: 0 | K73: 0
B74: Tax allowance retained within deadband | C74: ='RFPR cover'!$C$14 -> £m 09/10 | D74: 0 | E74: 0 | F74: 0 | G74: 0 | H74: 0 | I74: 0 | J74: 0 | K74: 0
B75: Other adjustments | C75: ='RFPR cover'!$C$14 -> £m 09/10 | D75: -3.11725748 | E75: -3.213517427 | F75: -2.586109305 | G75: -3.686850886 | H75: -3.843801748 | I75: 0.8277769756 | J75: 3.430729031 | K75: 11.88553534
B76: Check | C76: ='RFPR cover'!$C$14 -> £m 09/10 | D76: =IF(ABS(D72-SUM(D73:D75))<'RFPR cover'!$F$14,"OK","ERROR") -> OK | E76: =IF(ABS(E72-SUM(E73:E75))<'RFPR cover'!$F$14,"OK","ERROR") -> OK | F76: =IF(ABS(F72-SUM(F73:F75))<'RFPR cover'!$F$14,"OK","ERROR") -> OK | G76: =IF(ABS(G72-SUM(G73:G75))<'RFPR cover'!$F$14,"OK","ERROR") -> OK | H76: =IF(ABS(H72-SUM(H73:H75))<'RFPR cover'!$F$14,"OK","ERROR") -> OK | I76: =IF(ABS(I72-SUM(I73:I75))<'RFPR cover'!$F$14,"OK","ERROR") -> OK | J76: =IF(ABS(J72-SUM(J73:J75))<'RFPR cover'!$F$14,"OK","ERROR") -> OK | K76: =IF(ABS(K72-SUM(K73:K75))<'RFPR cover'!$F$14,"OK","ERROR") -> OK
B79: Out(under) performance
B81: Regulated tax out(under) performance at actual gearing | C81: ='RFPR cover'!$C$14 -> £m 09/10 | D81: =D$70-D43 -> -11.06971092 | E81: -12.31673488 | F81: -11.0643303 | G81: -8.358308774 | H81: -9.208315295 | I81: -3.874210734 | J81: 2.700732574 | K81: 3.955920537
B83: Regulated tax out(under) performance at notional gearing | C83: ='RFPR cover'!$C$14 -> £m 09/10 | D83: =D$70-D55 -> -10.68925749 | E83: -11.91432054 | F83: -10.37881655 | G83: -8.110459722 | H83: -9.367629277 | I83: -3.963959262 | J83: 2.240906335 | K83: 3.660519418
B85: Impact on out(under) performance relating to deviating from notional levels of gearing | C85: ='RFPR cover'!$C$14 -> £m 09/10 | D85: =D81-D83 -> -0.3804534331 | E85: -0.4024143408 | F85: -0.6855137467 | G85: -0.2478490515 | H85: 0.1593139816 | I85: 0.08974852778 | J85: 0.4598262389 | K85: 0.2954011197
B87: Tax impact of financing performance (at actual gearing) | C87: £m nominal | D87: -9.014350752 | E87: -9.47328181 | F87: -10.2628544 | G87: -6.240900689 | H87: -3.275146423 | I87: -1.567738329 | J87: 0.3968657896 | K87: 0.6498771596
B88: Tax impact of financing performance (at actual gearing) | C88: ='RFPR cover'!$C$14 -> £m 09/10 | D88: =D87/D$41 -> -7.726438007 | E88: -7.963710163 | F88: -8.53548047 | G88: -5.08158895 | H88: -2.570563673 | I88: -1.193987448 | J88: 0.2946254871 | K88: 0.471609223
B89: Tax impact of financing performance (at notional gearing) | C89: £m nominal | D89: -8.570479891 | E89: -8.994587285 | F89: -9.438609319 | G89: -5.936507451 | H89: -3.478127824 | I89: -1.685580612 | J89: -0.2225283612 | K89: 0.2428146358
B90: Tax impact of financing performance (at notional gearing) | C90: ='RFPR cover'!$C$14 -> £m 09/10 | D90: =D89/D$41 -> -7.345984573 | E90: -7.561295822 | F90: -7.849966723 | G90: -4.833739898 | H90: -2.729877655 | I90: -1.283735976 | J90: -0.1652007519 | K90: 0.1762081034
B91: Tax impact of financing performance relating to deviating from notional levels of gearing | C91: ='RFPR cover'!$C$14 -> £m 09/10 | D91: =D88-D90 -> -0.3804534331 | E91: -0.4024143408 | F91: -0.6855137467 | G91: -0.2478490515 | H91: 0.1593139816 | I91: 0.08974852778 | J91: 0.4598262389 | K91: 0.2954011197

Sheet R11 - Dividends
A1: R11 - Dividends
A2: ='RFPR cover'!C5 -> Cadent-EOE
A3: ='RFPR cover'!C7 -> 2020 | B3: ='R1 - RoRE'!B3 -> 
D5: =IF(D6<='RFPR cover'!$C$7,"Actuals","N/A") -> Actuals | E5: =IF(E6<='RFPR cover'!$C$7,"Actuals","N/A") -> Actuals | F5: =IF(F6<='RFPR cover'!$C$7,"Actuals","N/A") -> Actuals | G5: =IF(G6<='RFPR cover'!$C$7,"Actuals","N/A") -> Actuals | H5: =IF(H6<='RFPR cover'!$C$7,"Actuals","N/A") -> Actuals | I5: =IF(I6<='RFPR cover'!$C$7,"Actuals","N/A") -> Actuals | J5: =IF(J6<='RFPR cover'!$C$7,"Actuals","N/A") -> Actuals | K5: =IF(K6<='RFPR cover'!$C$7,"Actuals","N/A") -> N/A
D6: ='RFPR cover'!$C$13 -> 2014 | E6: =D6+1 -> 2015 | F6: 2016 | G6: 2017 | H6: 2018 | I6: 2019 | J6: 2020 | K6: 2021
B8: Dividend paid as per Statutory Accounts | C8: £m nominal | D8: 455 | E8: 540 | F8: 458 | G8: 95 | H8: 418 | I8: 423 | J8: 275
B9: Less dividend paid not related to Regulated business
B10: Metering | C10: £m nominal | D10: 65 | E10: 97 | F10: 67 | G10: - | H10: - | I10: 0 | J10: 0
B11: Non regulated activities | C11: £m nominal | D11: 3 | E11: 7 | F11: 8 | G11: - | H11: 3 | I11: 2.121726915 | J11: 1.157518742
B12: Other networks (London, West Midlands and North West) | C12: £m nominal | D12: 262 | E12: 299 | F12: 257 | G12: 67 | H12: 258 | I12: 260.5464416 | J12: 171.8078247
B13: Dividend paid relating to the Regulated Business | C13: £m nominal | D13: =D8-SUM(D10:D12) -> 125 | E13: 137 | F13: 126 | G13: 28 | H13: 157 | I13: 160.3318314 | J13: 102.0346565 | K13: 0
B15: Shareholder loan interest (not included as Net Interest per Regulatory (RIIO-1) definition) | C15: £m nominal | D15: 0 | E15: 0 | F15: 0 | G15: 0 | H15: 0 | I15: 0 | J15: 0

Sheet R12 - Pensions
A1: R12 - Pensions
A2: ='RFPR cover'!C5 -> Cadent-EOE
A3: ='RFPR cover'!C7 -> 2020
D5: =IF(D6<='RFPR cover'!$C$7,"Actuals","Forecast") -> Actuals | E5: =IF(E6<='RFPR cover'!$C$7,"Actuals","Forecast") -> Actuals | F5: =IF(F6<='RFPR cover'!$C$7,"Actuals","Forecast") -> Actuals | G5: =IF(G6<='RFPR cover'!$C$7,"Actuals","Forecast") -> Actuals | H5: =IF(H6<='RFPR cover'!$C$7,"Actuals","Forecast") -> Actuals | I5: =IF(I6<='RFPR cover'!$C$7,"Actuals","Forecast") -> Actuals | J5: =IF(J6<='RFPR cover'!$C$7,"Actuals","Forecast") -> Actuals | K5: =IF(K6<='RFPR cover'!$C$7,"Actuals","Forecast") -> Forecast
D6: ='RFPR cover'!$C$13 -> 2014 | E6: =D6+1 -> 2015 | F6: 2016 | G6: 2017 | H6: 2018 | I6: 2019 | J6: 2020 | K6: 2021
B8: Licensee share of total pension deficit repair payment made for defined benefit scheme | C8: £m nominal | D8: 2.698030577 | E8: 4.206557883 | F8: 4.214821577 | G8: 4.650718096 | H8: 13.78758432 | I8: 14.23897768 | J8: 14.6365603
B9: Of which:
B10: Established deficit element funded via specific allowances | C10: £m nominal | D10: 2.698030577 | E10: 4.206557883 | F10: 4.214821577 | G10: 4.50479737 | H10: 13.37141381 | I10: 13.80918211 | J10: 14.19476392
B11: Incremental deficit funded via totex | C11: £m nominal | D11: 0 | E11: 0 | F11: 0 | G11: 0.1459207266 | H11: 0.4 | I11: 0.4 | J11: 0.4417963789
B14: Established deficit element funded via specific allowances | C14: ='RFPR cover'!$C$14 -> £m 09/10 | D14: =D10/Data!C$34 -> 2.312553235 | E14: =E10/Data!D$34 -> 3.536241023 | F14: =F10/Data!E$34 -> 3.505411444 | G14: =G10/Data!F$34 -> 3.667984747 | H14: =H10/Data!G$34 -> 10.49481951 | I14: =I10/Data!H$34 -> 10.51705492 | J14: =J10/Data!I$34 -> 10.53791822 | K14: =K10/Data!J$34 -> 0
B17: Established deficit (EDE) allowance as per PCFM | C17: ='RFPR cover'!$C$14 -> £m 09/10 | D17: 4.4 | E17: 4.4 | F17: 3.5 | G17: 3.5 | H17: 3.5 | I17: 10.2 | J17: 10.15898782 | K17: 10.15898782
B18: Less Pension Payment History Allowance (PPH) | C18: ='RFPR cover'!$C$14 -> £m 09/10 | D18: 0 | E18: 0 | F18: 0 | G18: 0 | H18: 0 | I18: -0.4 | J18: -0.4 | K18: -0.4
B19: Established deficit allowance less PPH | C19: ='RFPR cover'!$C$14 -> £m 09/10 | D19: =D17-D18 -> 4.4 | E19: 4.4 | F19: 3.5 | G19: 3.5 | H19: 3.5 | I19: 10.6 | J19: 10.55898782 | K19: 10.55898782
D21: Enter valuation date
B24: Latest pension scheme valuation | D24: 2016-03-31
B26: Price base | D26: 42460
D28: £m
B29: Total Liabilities attributable to post cut-off date notional sub fund | D29: 120.6
B30: Total Liabilities attributable to pre cut-off date notional sub fund | D30: 18243.3
B32: Total Assets attributable to post cut-off date notional sub fund | D32: 103.9
B33: Total Assets attributable to pre cut-off date notional sub fund | D33: 16725.7
B35: Deficit in the post Cut-Off Date Notional Sub-Fund | D35: =D29-D32 -> 16.7
B36: Deficit in the pre Cut-Off Date Notional Sub-Fund | D36: =D30-D33 -> 1517.6
B38: Licensee element of established deficit | D38: 68.3
B39: Licensee element of incremental deficit | D39: 5.9

Sheet R13 - Other Activities
A1: R13 - Other activities
A2: ='RFPR cover'!C5 -> Cadent-EOE
A3: ='RFPR cover'!C7 -> 2020
D5: =IF(D6<='RFPR cover'!$C$7,"Actuals","Forecast") -> Actuals | E5: =IF(E6<='RFPR cover'!$C$7,"Actuals","Forecast") -> Actuals | F5: =IF(F6<='RFPR cover'!$C$7,"Actuals","Forecast") -> Actuals | G5: =IF(G6<='RFPR cover'!$C$7,"Actuals","Forecast") -> Actuals | H5: =IF(H6<='RFPR cover'!$C$7,"Actuals","Forecast") -> Actuals | I5: =IF(I6<='RFPR cover'!$C$7,"Actuals","Forecast") -> Actuals | J5: =IF(J6<='RFPR cover'!$C$7,"Actuals","Forecast") -> Actuals | K5: =IF(K6<='RFPR cover'!$C$7,"Actuals","Forecast") -> Forecast
D6: ='RFPR cover'!$C$13 -> 2014 | E6: =D6+1 -> 2015 | F6: 2016 | G6: 2017 | H6: 2018 | I6: 2019 | J6: 2020 | K6: 2021
B8: Post-tax total fines and penalties (including GS payments) | C8: ='RFPR cover'!$C$14 -> £m 09/10 | D8: =(D16+D21)/Data!C34 -> 0.5155191548 | E8: =(E16+E21)/Data!D34 -> 0.6007756322 | F8: =(F16+F21)/Data!E34 -> 0.4627472366 | G8: =(G16+G21)/Data!F34 -> 0.7895153189 | H8: =(H16+H21)/Data!G34 -> 0.2144369196 | I8: =(I16+I21)/Data!H34 -> 0.7108874942 | J8: =(J16+J21)/Data!I34 -> 0.3600571791 | K8: =(K16+K21)/Data!J34 -> 0.5844736638
B10: Ofgem related fines and penalties
B11: Failure to meet gas network repair targets | C11: £m nominal | D11: 0.375 | E11: 0.375 | F11: 0 | G11: 0 | H11: 0 | I11: 0 | J11: 0 | K11: 0
B12: Fine/penalty | C12: £m nominal | D12: 0 | E12: 0 | F12: 0 | G12: 0 | H12: 0 | I12: 0.506 | J12: 0 | K12: 0
B13: Payments to residents who faced delayed compensation | C13: £m nominal | D13: 0 | E13: 0 | F13: 0 | G13: 0 | H13: 0 | I13: 0 | J13: 0 | K13: 0
B14: Total Ofgem related fines and penalties | C14: £m nominal | D14: =SUM(D11:D13) -> 0.375 | E14: 0.375 | F14: 0 | G14: 0 | H14: 0 | I14: 0.506 | J14: 0 | K14: 0
B15: Any adjustment for tax | C15: £m nominal | D15: 0 | E15: 0 | F15: 0 | G15: 0 | H15: 0 | I15: 0 | J15: 0 | K15: 0
B16: Post-tax total fines and penalties | C16: £m nominal | D16: =D14-D15 -> 0.375 | E16: 0.375 | F16: 0 | G16: 0 | H16: 0 | I16: 0.506 | J16: 0 | K16: 0
B18: Guaranteed Standard (GS) payments
B19: Total GS payments | C19: £m nominal | D19: 0.2940916389 | E19: 0.429944879 | F19: 0.695495047 | G19: 1.212043798 | H19: 0.337300431 | I19: 0.52767261 | J19: 0.598769687 | K19: 0.9943262658
B20: Any adjustment for tax | C20: £m nominal | D20: 0.06764107695 | E20: 0.09028842459 | F20: 0.1390990094 | G20: 0.2424087596 | H20: 0.06408708189 | I20: 0.1002577959 | J20: 0.1137662405 | K20: 0.1889219905
B21: Post-tax total GS payments | C21: £m nominal | D21: =D19-D20 -> 0.226450562 | E21: 0.3396564544 | F21: 0.5563960376 | G21: 0.9696350386 | H21: 0.2732133491 | I21: 0.4274148141 | J21: 0.4850034465 | K21: 0.8054042753
